Body_Code,Body_Name,Service_Area,Responsible_Unit,Expense_Type,Expense_Code,Narrative,Date,Transaction_Number,Amount,Supplier_Name
http://statistics.data.gov.uk/id/local-authority/38,Oxfordshire County Council,"Older People, Phys Disabilities & Equip",PD Pool Continuing Care Home Support,Other Agency and Contracted Services,57302,Home Support (Ext) Continuing Care,05/11/2014,3150004598,-3500,Caremark (West Oxfordshire & Cherwe
http://statistics.data.gov.uk/id/local-authority/38,Oxfordshire County Council,Education & Early Intervention,Sufficiency & Access - Intervention Grnt,Voluntary Associations,55100,Fees to Non Maintain,20/11/2014,3150004608,-2840,Linda Stanley
http://statistics.data.gov.uk/id/local-authority/38,Oxfordshire County Council,In-House,Pension Fund Investment Miscellaneous ex,Pension Fund Revenue,PR362,Investment - Global Custodian Fees,05/11/2014,3300006163,2408.33,BNP Paribas Securities Services
http://statistics.data.gov.uk/id/local-authority/38,Oxfordshire County Council,Baillie Gifford,Miscellaneous (Baillie Gifford),Pension Fund Revenue,PR361,Investment - Management Fees,10/11/2014,3300006226,199296.5,Baillie Gifford & Co
http://statistics.data.gov.uk/id/local-authority/38,Oxfordshire County Council,L&G UK Equity Index Fund,L&G UK Equity Index Fund Miscellaneous,Pension Fund Revenue,PR361,Investment - Management Fees,03/11/2014,3300006227,64679.4,Legal & General Investment Manageme
http://statistics.data.gov.uk/id/local-authority/38,Oxfordshire County Council,Legal & General,Miscellaneous (Legal & General),Pension Fund Revenue,PR361,Investment - Management Fees,03/11/2014,3300006228,74941.19,Legal & General Investment Manageme
http://statistics.data.gov.uk/id/local-authority/38,Oxfordshire County Council,In-House,Pension Fund Investment Miscellaneous ex,Pension Fund Revenue,PR362,Investment - Global Custodian Fees,21/11/2014,3300006244,2583.33,BNP Paribas Securities Services
http://statistics.data.gov.uk/id/local-authority/38,Oxfordshire County Council,In-House,Pension Fund Investment Miscellaneous ex,Pension Fund Revenue,PR362,Investment - Global Custodian Fees,24/11/2014,3300006247,628.1,BNP Paribas Securities Services
http://statistics.data.gov.uk/id/local-authority/38,Oxfordshire County Council,In-House,Pension Fund Investment Miscellaneous ex,Pension Fund Revenue,PR362,Investment - Global Custodian Fees,24/11/2014,3300006247,1328.15,BNP Paribas Securities Services
http://statistics.data.gov.uk/id/local-authority/38,Oxfordshire County Council,In-House,Pension Fund Investment Miscellaneous ex,Pension Fund Revenue,PR362,Investment - Global Custodian Fees,24/11/2014,3300006247,535.09,BNP Paribas Securities Services
http://statistics.data.gov.uk/id/local-authority/38,Oxfordshire County Council,In-House,Miscellaneous,Pension Fund Balance Sheet,PB810,Give As You Earn,12/11/2014,3300006269,689.13,Charities Aid Foundation
http://statistics.data.gov.uk/id/local-authority/38,Oxfordshire County Council,Scheduled Bodies,North Oxfordshire Academy,Contributions Leaving the Fund,PR401,Transfers out,17/11/2014,3300006280,15059.57,Warwickshire CC Pension Only
http://statistics.data.gov.uk/id/local-authority/38,Oxfordshire County Council,Scheduled Bodies,Oxfordshire County Council,Contributions Leaving the Fund,PR401,Transfers out,24/11/2014,3300006319,5527.84,NHS Pension Scheme
http://statistics.data.gov.uk/id/local-authority/38,Oxfordshire County Council,Scheduled Bodies,Cherwell District Council,Contributions Leaving the Fund,PR401,Transfers out,24/11/2014,3300006321,59192.15,Scottish Life
http://statistics.data.gov.uk/id/local-authority/38,Oxfordshire County Council,Scheduled Bodies,Oxfordshire County Council,Contributions Leaving the Fund,PR401,Transfers out,24/11/2014,3300006323,14213.15,Oxfordshire County Council
http://statistics.data.gov.uk/id/local-authority/38,Oxfordshire County Council,Scheduled Bodies,South Oxfordshire District Council,Pension Fund Revenue,PR507,Combined Benefits Basic Pension,26/11/2014,3300006331,3399.02,Dorset County Council
http://statistics.data.gov.uk/id/local-authority/38,Oxfordshire County Council,Scheduled Bodies,Oxford Brookes Univeristy,Contributions Leaving the Fund,PR401,Transfers out,28/11/2014,3300006342,3404.62,Univs Superann Scheme Ltd Trust Fun
http://statistics.data.gov.uk/id/local-authority/38,Oxfordshire County Council,Education & Early Intervention,Sufficiency & Access - Intervention Grnt,Voluntary Associations,55100,Fees to Non Maintain,04/11/2014,3301763888,1800,Oxfordshire Pre School Learning All
http://statistics.data.gov.uk/id/local-authority/38,Oxfordshire County Council,Adult Social Care,MH Community Sup't,Other Agency and Contracted Services,57300,Home Support (Ext) OS&HCD,10/11/2014,3301831173,654.48,The Kingwood Trust
http://statistics.data.gov.uk/id/local-authority/38,Oxfordshire County Council,Personal Budgets,Personal Budgets - Mental Health,Other Agency and Contracted Services,57300,Home Support (Ext) OS&HCD,10/11/2014,3301831177,695.37,The Kingwood Trust
http://statistics.data.gov.uk/id/local-authority/38,Oxfordshire County Council,Commercial,Rising Bollards,Private Contractors,56400,Major Contracts,10/11/2014,3301831707,1993,ATG Access Ltd
http://statistics.data.gov.uk/id/local-authority/38,Oxfordshire County Council,Commercial,Rising Bollards,Private Contractors,56400,Major Contracts,10/11/2014,3301831710,460,ATG Access Ltd
http://statistics.data.gov.uk/id/local-authority/38,Oxfordshire County Council,Commercial,Traffic Signals Maintenance,Private Contractors,56201,Maint Costs 1st Sche,03/11/2014,3301831711,25486.65,SIEMENS PLC
http://statistics.data.gov.uk/id/local-authority/38,Oxfordshire County Council,Commercial,"Electrical NP Rds, Street Lighting",Private Contractors,56400,Major Contracts,19/11/2014,3301831717,1200.83,Sugg Lighting Ltd
http://statistics.data.gov.uk/id/local-authority/38,Oxfordshire County Council,"Older People, Phys Disabilities & Equip",Other Contracted Services,Voluntary Associations,55400,Service Agreements-A,03/11/2014,3301831756,4500,Citibank NA London
http://statistics.data.gov.uk/id/local-authority/38,Oxfordshire County Council,Commercial,"Electrical Prin Rds, illuminated Signs",Private Contractors,56400,Major Contracts,03/11/2014,3301831757,900,Ringrose Tree Surgery Ltd
http://statistics.data.gov.uk/id/local-authority/38,Oxfordshire County Council,Learning  Disabilities Pooled Budget,OCCG Carers,Other Agency and Contracted Services,57401,Direct Payments,03/11/2014,3301831759,600,REDACTED PERSONAL DATA
http://statistics.data.gov.uk/id/local-authority/38,Oxfordshire County Council,Commercial,"Electrical NP Rds, illuminated Signs",Private Contractors,56400,Major Contracts,06/11/2014,3301831790,19805.52,Marwood Electrical Co Ltd
http://statistics.data.gov.uk/id/local-authority/38,Oxfordshire County Council,Children's Social Care,Aim Higher Funding,Voluntary Associations,55402,Service Agreements - Family Support,03/11/2014,3301831793,7867,Children In Touch
http://statistics.data.gov.uk/id/local-authority/38,Oxfordshire County Council,Strategy & Infrastructure Planning,Resource Efficiency,Grants and Subscriptions,47100,Grants to Voluntary,20/11/2014,3301831797,10750,Low Carbon Hub
http://statistics.data.gov.uk/id/local-authority/38,Oxfordshire County Council,Commercial,"Electrical NP Rds, Street Lighting",Private Contractors,56400,Major Contracts,17/11/2014,3301831799,7539.15,Sugg Lighting Ltd
http://statistics.data.gov.uk/id/local-authority/38,Oxfordshire County Council,Commercial,"Electrical NP Rds, illuminated Signs",Private Contractors,56400,Major Contracts,07/11/2014,3301831803,784.5,Westcotec Ltd
http://statistics.data.gov.uk/id/local-authority/38,Oxfordshire County Council,Commercial,"Electrical NP Rds, Street Lighting",Private Contractors,56400,Major Contracts,17/11/2014,3301831827,3732,Sugg Lighting Ltd
http://statistics.data.gov.uk/id/local-authority/38,Oxfordshire County Council,Learning  Disabilities Pooled Budget,Direct Payments City Team,Other Agency and Contracted Services,57401,Direct Payments,03/11/2014,3301831844,5318.09,REDACTED PERSONAL DATA
http://statistics.data.gov.uk/id/local-authority/38,Oxfordshire County Council,Learning  Disabilities Pooled Budget,Direct Payments City Team,Other Agency and Contracted Services,57401,Direct Payments,03/11/2014,3301831844,1128.08,REDACTED PERSONAL DATA
http://statistics.data.gov.uk/id/local-authority/38,Oxfordshire County Council,Education & Early Intervention,Statementing Miscellaneous,"Equipment, Furniture and Materials",40500,Specialist Supplies,07/11/2014,3301831890,1255,Flash of Splendour Arts CIC
http://statistics.data.gov.uk/id/local-authority/38,Oxfordshire County Council,Adult Social Care,MH Community Sup't,Other Agency and Contracted Services,57300,Home Support (Ext) OS&HCD,25/11/2014,3301831927,1860,Ashamber Homes Limited
http://statistics.data.gov.uk/id/local-authority/38,Oxfordshire County Council,Adult Social Care,MH Community Sup't,Other Agency and Contracted Services,57300,Home Support (Ext) OS&HCD,04/11/2014,3301831929,596.25,Style Acre
http://statistics.data.gov.uk/id/local-authority/38,Oxfordshire County Council,Education & Early Intervention,EIBI & Alternative Programmes,Services,44200,Consultants Fees,04/11/2014,3301831980,1075.21,Oona Bannister
http://statistics.data.gov.uk/id/local-authority/38,Oxfordshire County Council,Education & Early Intervention,Rural Childrn Centre,Grants and Subscriptions,47100,Grants to Voluntary,04/11/2014,3301831982,27414.5,Banbury & District Comm Bus Project
http://statistics.data.gov.uk/id/local-authority/38,Oxfordshire County Council,"Older People, Phys Disabilities & Equip",PD Comm Supp Purchasg Budget - Abingdon,Other Agency and Contracted Services,57401,Direct Payments,04/11/2014,3301832198,12837.94,1 Off Advance Housing & Support
http://statistics.data.gov.uk/id/local-authority/38,Oxfordshire County Council,Learning  Disabilities Pooled Budget,Life of Your Own Carers Grants,Other Agency and Contracted Services,57401,Direct Payments,04/11/2014,3301832199,516.5,1 Off Advance Housing & Support
http://statistics.data.gov.uk/id/local-authority/38,Oxfordshire County Council,"Older People, Phys Disabilities & Equip",Life Of Your Own Grant Cherwell,Other Agency and Contracted Services,57401,Direct Payments,04/11/2014,3301832218,600,REDACTED PERSONAL DATA
http://statistics.data.gov.uk/id/local-authority/38,Oxfordshire County Council,"Older People, Phys Disabilities & Equip",Carers Break / Respite Project,Other Agency and Contracted Services,57401,Direct Payments,04/11/2014,3301832220,600,REDACTED PERSONAL DATA
http://statistics.data.gov.uk/id/local-authority/38,Oxfordshire County Council,"Older People, Phys Disabilities & Equip",Carers Break / Respite Project,Other Agency and Contracted Services,57401,Direct Payments,04/11/2014,3301832222,600,REDACTED PERSONAL DATA
http://statistics.data.gov.uk/id/local-authority/38,Oxfordshire County Council,Adult Social Care,MH Carers Grant,Other Agency and Contracted Services,57401,Direct Payments,04/11/2014,3301832223,600,REDACTED PERSONAL DATA
http://statistics.data.gov.uk/id/local-authority/38,Oxfordshire County Council,"Older People, Phys Disabilities & Equip",Life Of Your Own Grant Vale,Other Agency and Contracted Services,57401,Direct Payments,04/11/2014,3301832225,600,REDACTED PERSONAL DATA
http://statistics.data.gov.uk/id/local-authority/38,Oxfordshire County Council,"Older People, Phys Disabilities & Equip",Life Of Your Own Grant Cherwell,Other Agency and Contracted Services,57401,Direct Payments,04/11/2014,3301832231,600,REDACTED PERSONAL DATA
http://statistics.data.gov.uk/id/local-authority/38,Oxfordshire County Council,"Older People, Phys Disabilities & Equip",Life Of Your Own Grant West,Other Agency and Contracted Services,57401,Direct Payments,04/11/2014,3301832232,600,REDACTED PERSONAL DATA
http://statistics.data.gov.uk/id/local-authority/38,Oxfordshire County Council,"Older People, Phys Disabilities & Equip",Carers Break / Respite Project,Other Agency and Contracted Services,57401,Direct Payments,04/11/2014,3301832233,600,REDACTED PERSONAL DATA
http://statistics.data.gov.uk/id/local-authority/38,Oxfordshire County Council,Learning  Disabilities Pooled Budget,OCCG Carers,Other Agency and Contracted Services,57401,Direct Payments,04/11/2014,3301832238,600,REDACTED PERSONAL DATA
http://statistics.data.gov.uk/id/local-authority/38,Oxfordshire County Council,Oxfordshire Customer Services,MIS Payroll Workflow,Balance Sheet General,B7102,Local Government AVC,05/11/2014,3301832380,58816.08,Prudential Assurance Co. Ltd
http://statistics.data.gov.uk/id/local-authority/38,Oxfordshire County Council,Oxfordshire Customer Services,MIS Payroll Workflow,Balance Sheet General,B7103,Teachers AVC,05/11/2014,3301832381,19103.57,Prudential Assurance
http://statistics.data.gov.uk/id/local-authority/38,Oxfordshire County Council,Oxfordshire Customer Services,MIS Payroll Workflow,Balance Sheet General,B7110,Personal Accident Scheme,17/11/2014,3301832383,702.17,Chartis Insurance UK Ltd
http://statistics.data.gov.uk/id/local-authority/38,Oxfordshire County Council,Oxfordshire Customer Services,MIS Payroll Workflow,Balance Sheet General,B7111,Court Orders,17/11/2014,3301832384,730.18,HMCTS
http://statistics.data.gov.uk/id/local-authority/38,Oxfordshire County Council,Oxfordshire Customer Services,MIS Payroll Workflow,Balance Sheet General,B7111,Court Orders,17/11/2014,3301832386,2716.84,Child Maintenance Service
http://statistics.data.gov.uk/id/local-authority/38,Oxfordshire County Council,Oxfordshire Customer Services,MIS Payroll Workflow,Balance Sheet General,B7115,Fire Brigade Union Subs,17/11/2014,3301832388,6691.61,Fire Brigades Union
http://statistics.data.gov.uk/id/local-authority/38,Oxfordshire County Council,Oxfordshire Customer Services,MIS Payroll Workflow,Balance Sheet General,B7114,Fire Service National Benevolent,17/11/2014,3301832389,759.57,The Fire Fighters Charity Regular G
http://statistics.data.gov.uk/id/local-authority/38,Oxfordshire County Council,Oxfordshire Customer Services,MIS Payroll Workflow,Balance Sheet General,B7113,GMBU Subscriptions,17/11/2014,3301832393,1092.36,G M B
http://statistics.data.gov.uk/id/local-authority/38,Oxfordshire County Council,Oxfordshire Customer Services,MIS Payroll Workflow,Balance Sheet General,B7111,Court Orders,17/11/2014,3301832394,621.09,Herefordshire Council
http://statistics.data.gov.uk/id/local-authority/38,Oxfordshire County Council,Oxfordshire Customer Services,MIS Payroll Workflow,Balance Sheet General,B7111,Court Orders,17/11/2014,3301832396,1427.31,Oxford City Council
http://statistics.data.gov.uk/id/local-authority/38,Oxfordshire County Council,Oxfordshire Customer Services,MIS Payroll Workflow,Balance Sheet General,B7123,Conservative Group Association,17/11/2014,3301832397,812.16,Oxfordshire Labour Councillors
http://statistics.data.gov.uk/id/local-authority/38,Oxfordshire County Council,Oxfordshire Customer Services,MIS Payroll Workflow,Balance Sheet General,B7105,Unison Subscription,17/11/2014,3301832402,17310.69,Unison
http://statistics.data.gov.uk/id/local-authority/38,Oxfordshire County Council,Oxfordshire Customer Services,MIS Payroll Workflow,Balance Sheet General,B7111,Court Orders,17/11/2014,3301832404,530.15,Vale of White Horse District Counci
http://statistics.data.gov.uk/id/local-authority/38,Oxfordshire County Council,Oxfordshire Customer Services,MIS Payroll Workflow,Balance Sheet General,B7104,NHS Pension Scheme,17/11/2014,3301832406,18229.01,NHS Pension Scheme
http://statistics.data.gov.uk/id/local-authority/38,Oxfordshire County Council,Learning  Disabilities Pooled Budget,Direct Payments North Team,Other Agency and Contracted Services,57401,Direct Payments,05/11/2014,3301832452,1208,REDACTED PERSONAL DATA
http://statistics.data.gov.uk/id/local-authority/38,Oxfordshire County Council,Learning  Disabilities Pooled Budget,Direct Payments North Team,Other Agency and Contracted Services,57401,Direct Payments,05/11/2014,3301832453,906.08,REDACTED PERSONAL DATA
http://statistics.data.gov.uk/id/local-authority/38,Oxfordshire County Council,"Older People, Phys Disabilities & Equip",Community Support Budget - Henley,Other Agency and Contracted Services,57401,Direct Payments,05/11/2014,3301832454,1272,REDACTED PERSONAL DATA
http://statistics.data.gov.uk/id/local-authority/38,Oxfordshire County Council,"Older People, Phys Disabilities & Equip",PD Comm Supp Purchasg Budget - Wantage,Other Agency and Contracted Services,57401,Direct Payments,05/11/2014,3301832455,3056.92,REDACTED PERSONAL DATA
http://statistics.data.gov.uk/id/local-authority/38,Oxfordshire County Council,"Older People, Phys Disabilities & Equip",PD Comm Supp Purchasg Budget - Didcot,Other Agency and Contracted Services,57401,Direct Payments,05/11/2014,3301832457,1828,REDACTED PERSONAL DATA
http://statistics.data.gov.uk/id/local-authority/38,Oxfordshire County Council,Learning  Disabilities Pooled Budget,Direct Payments City Team,Other Agency and Contracted Services,57401,Direct Payments,05/11/2014,3301832458,3894.32,REDACTED PERSONAL DATA
http://statistics.data.gov.uk/id/local-authority/38,Oxfordshire County Council,Learning  Disabilities Pooled Budget,Direct Payments City Team,Other Agency and Contracted Services,57401,Direct Payments,05/11/2014,3301832458,1251.75,REDACTED PERSONAL DATA
http://statistics.data.gov.uk/id/local-authority/38,Oxfordshire County Council,Learning  Disabilities Pooled Budget,Direct Payments South Team,Other Agency and Contracted Services,57401,Direct Payments,05/11/2014,3301832459,1825.08,REDACTED PERSONAL DATA
http://statistics.data.gov.uk/id/local-authority/38,Oxfordshire County Council,"Older People, Phys Disabilities & Equip",PD Comm Supp Purchasg Budget - Didcot,Other Agency and Contracted Services,57401,Direct Payments,05/11/2014,3301832461,536,REDACTED PERSONAL DATA
http://statistics.data.gov.uk/id/local-authority/38,Oxfordshire County Council,Learning  Disabilities Pooled Budget,Direct Payments South Team,Other Agency and Contracted Services,57401,Direct Payments,05/11/2014,3301832463,4794.2,REDACTED PERSONAL DATA
http://statistics.data.gov.uk/id/local-authority/38,Oxfordshire County Council,"Older People, Phys Disabilities & Equip",Community Support Budget - Bicester,Other Agency and Contracted Services,57401,Direct Payments,05/11/2014,3301832464,1232,REDACTED PERSONAL DATA
http://statistics.data.gov.uk/id/local-authority/38,Oxfordshire County Council,Learning  Disabilities Pooled Budget,Direct Payments City Team,Other Agency and Contracted Services,57401,Direct Payments,05/11/2014,3301832465,507.24,REDACTED PERSONAL DATA
http://statistics.data.gov.uk/id/local-authority/38,Oxfordshire County Council,"Older People, Phys Disabilities & Equip",Community Support Budget - Kidlington,Other Agency and Contracted Services,57401,Direct Payments,05/11/2014,3301832466,540,REDACTED PERSONAL DATA
http://statistics.data.gov.uk/id/local-authority/38,Oxfordshire County Council,"Older People, Phys Disabilities & Equip",Community Support Budget - Witney,Other Agency and Contracted Services,57401,Direct Payments,05/11/2014,3301832468,768,REDACTED PERSONAL DATA
http://statistics.data.gov.uk/id/local-authority/38,Oxfordshire County Council,"Older People, Phys Disabilities & Equip",Community Support Budget - Thame,Other Agency and Contracted Services,57401,Direct Payments,05/11/2014,3301832470,800,REDACTED PERSONAL DATA
http://statistics.data.gov.uk/id/local-authority/38,Oxfordshire County Council,"Older People, Phys Disabilities & Equip",PD Comm Supp Purchasg Budget - Wantage,Other Agency and Contracted Services,57401,Direct Payments,05/11/2014,3301832471,1680,REDACTED PERSONAL DATA
http://statistics.data.gov.uk/id/local-authority/38,Oxfordshire County Council,Learning  Disabilities Pooled Budget,Direct Payments South Team,Other Agency and Contracted Services,57401,Direct Payments,05/11/2014,3301832472,1157.32,REDACTED PERSONAL DATA
http://statistics.data.gov.uk/id/local-authority/38,Oxfordshire County Council,"Older People, Phys Disabilities & Equip",Community Support Budget - City,Other Agency and Contracted Services,57401,Direct Payments,05/11/2014,3301832474,1339.6,REDACTED PERSONAL DATA
http://statistics.data.gov.uk/id/local-authority/38,Oxfordshire County Council,Learning  Disabilities Pooled Budget,Direct Payments City Team,Other Agency and Contracted Services,57401,Direct Payments,05/11/2014,3301832475,1589.52,REDACTED PERSONAL DATA
http://statistics.data.gov.uk/id/local-authority/38,Oxfordshire County Council,"Older People, Phys Disabilities & Equip",Community Support Budget - Thame,Other Agency and Contracted Services,57401,Direct Payments,05/11/2014,3301832476,2232,REDACTED PERSONAL DATA
http://statistics.data.gov.uk/id/local-authority/38,Oxfordshire County Council,Learning  Disabilities Pooled Budget,Direct Payments North Team,Other Agency and Contracted Services,57401,Direct Payments,05/11/2014,3301832477,2088.08,REDACTED PERSONAL DATA
http://statistics.data.gov.uk/id/local-authority/38,Oxfordshire County Council,"Older People, Phys Disabilities & Equip",PD Comm Supp Budget - Banbury,Other Agency and Contracted Services,57401,Direct Payments,05/11/2014,3301832479,732,REDACTED PERSONAL DATA
http://statistics.data.gov.uk/id/local-authority/38,Oxfordshire County Council,"Older People, Phys Disabilities & Equip",Community Support Budget - Didcot,Other Agency and Contracted Services,57401,Direct Payments,05/11/2014,3301832480,4480,REDACTED PERSONAL DATA
http://statistics.data.gov.uk/id/local-authority/38,Oxfordshire County Council,"Older People, Phys Disabilities & Equip",PD Comm Supp Purchasg Budget - Witney,Other Agency and Contracted Services,57401,Direct Payments,05/11/2014,3301832481,3236,REDACTED PERSONAL DATA
http://statistics.data.gov.uk/id/local-authority/38,Oxfordshire County Council,"Older People, Phys Disabilities & Equip",PD CS Purch Budget - Health S28a JC,Other Agency and Contracted Services,57401,Direct Payments,05/11/2014,3301832481,832,REDACTED PERSONAL DATA
http://statistics.data.gov.uk/id/local-authority/38,Oxfordshire County Council,"Older People, Phys Disabilities & Equip",Community Support Budget - Abingdon,Other Agency and Contracted Services,57401,Direct Payments,05/11/2014,3301832482,1272,REDACTED PERSONAL DATA
http://statistics.data.gov.uk/id/local-authority/38,Oxfordshire County Council,"Older People, Phys Disabilities & Equip",Community Support Budget - Bicester,Other Agency and Contracted Services,57401,Direct Payments,05/11/2014,3301832483,1624,REDACTED PERSONAL DATA
http://statistics.data.gov.uk/id/local-authority/38,Oxfordshire County Council,Adult Social Care,MH Community Sup't,Other Agency and Contracted Services,57401,Direct Payments,05/11/2014,3301832484,508.36,REDACTED PERSONAL DATA
http://statistics.data.gov.uk/id/local-authority/38,Oxfordshire County Council,"Older People, Phys Disabilities & Equip",Community Support Budget - Didcot,Other Agency and Contracted Services,57401,Direct Payments,05/11/2014,3301832485,744,REDACTED PERSONAL DATA
http://statistics.data.gov.uk/id/local-authority/38,Oxfordshire County Council,Learning  Disabilities Pooled Budget,Direct Payments South Team,Other Agency and Contracted Services,57401,Direct Payments,05/11/2014,3301832486,2933,REDACTED PERSONAL DATA
http://statistics.data.gov.uk/id/local-authority/38,Oxfordshire County Council,"Older People, Phys Disabilities & Equip",Community Support Budget - Bicester,Other Agency and Contracted Services,57401,Direct Payments,05/11/2014,3301832487,3004.76,REDACTED PERSONAL DATA
http://statistics.data.gov.uk/id/local-authority/38,Oxfordshire County Council,"Older People, Phys Disabilities & Equip",Community Support Budget - City,Other Agency and Contracted Services,57401,Direct Payments,05/11/2014,3301832488,864,REDACTED PERSONAL DATA
http://statistics.data.gov.uk/id/local-authority/38,Oxfordshire County Council,"Older People, Phys Disabilities & Equip",Community Support Budget - Witney,Other Agency and Contracted Services,57401,Direct Payments,05/11/2014,3301832489,568,REDACTED PERSONAL DATA
http://statistics.data.gov.uk/id/local-authority/38,Oxfordshire County Council,"Older People, Phys Disabilities & Equip",Community Support Budget - Banbury,Other Agency and Contracted Services,57401,Direct Payments,05/11/2014,3301832490,2600,REDACTED PERSONAL DATA
http://statistics.data.gov.uk/id/local-authority/38,Oxfordshire County Council,"Older People, Phys Disabilities & Equip",PHB OP Package,Other Agency and Contracted Services,57401,Direct Payments,05/11/2014,3301832492,719.29,REDACTED PERSONAL DATA
http://statistics.data.gov.uk/id/local-authority/38,Oxfordshire County Council,"Older People, Phys Disabilities & Equip",Community Support Budget - Wantage,Other Agency and Contracted Services,57401,Direct Payments,05/11/2014,3301832493,1352,REDACTED PERSONAL DATA
http://statistics.data.gov.uk/id/local-authority/38,Oxfordshire County Council,"Older People, Phys Disabilities & Equip",Community Support Budget - City,Other Agency and Contracted Services,57401,Direct Payments,05/11/2014,3301832494,2164,REDACTED PERSONAL DATA
http://statistics.data.gov.uk/id/local-authority/38,Oxfordshire County Council,"Older People, Phys Disabilities & Equip",PD Comm Supp Purchasg Budget - Witney,Other Agency and Contracted Services,57401,Direct Payments,05/11/2014,3301832495,780,REDACTED PERSONAL DATA
http://statistics.data.gov.uk/id/local-authority/38,Oxfordshire County Council,"Older People, Phys Disabilities & Equip",PD Comm Supp Purchasg Budget - City,Other Agency and Contracted Services,57401,Direct Payments,05/11/2014,3301832496,3201.48,REDACTED PERSONAL DATA
http://statistics.data.gov.uk/id/local-authority/38,Oxfordshire County Council,"Older People, Phys Disabilities & Equip",PD Community Support Budget - Kidlington,Other Agency and Contracted Services,57401,Direct Payments,05/11/2014,3301832497,2400,REDACTED PERSONAL DATA
http://statistics.data.gov.uk/id/local-authority/38,Oxfordshire County Council,"Older People, Phys Disabilities & Equip",Community Support Budget - Banbury,Other Agency and Contracted Services,57401,Direct Payments,05/11/2014,3301832498,752,REDACTED PERSONAL DATA
http://statistics.data.gov.uk/id/local-authority/38,Oxfordshire County Council,"Older People, Phys Disabilities & Equip",PHB OP Package,Other Agency and Contracted Services,57401,Direct Payments,05/11/2014,3301832499,6720,REDACTED PERSONAL DATA
http://statistics.data.gov.uk/id/local-authority/38,Oxfordshire County Council,"Older People, Phys Disabilities & Equip",Community Support Budget - Henley,Other Agency and Contracted Services,57401,Direct Payments,05/11/2014,3301832501,1732,REDACTED PERSONAL DATA
http://statistics.data.gov.uk/id/local-authority/38,Oxfordshire County Council,"Older People, Phys Disabilities & Equip",Community Support Budget - Abingdon,Other Agency and Contracted Services,57401,Direct Payments,05/11/2014,3301832504,1180,REDACTED PERSONAL DATA
http://statistics.data.gov.uk/id/local-authority/38,Oxfordshire County Council,"Older People, Phys Disabilities & Equip",Personal Health Budgets PD (PCT),Other Agency and Contracted Services,57401,Direct Payments,05/11/2014,3301832505,7982.28,REDACTED PERSONAL DATA
http://statistics.data.gov.uk/id/local-authority/38,Oxfordshire County Council,"Older People, Phys Disabilities & Equip",PD CS Purch Budget - Health S28a JC,Other Agency and Contracted Services,57401,Direct Payments,05/11/2014,3301832507,624,REDACTED PERSONAL DATA
http://statistics.data.gov.uk/id/local-authority/38,Oxfordshire County Council,"Older People, Phys Disabilities & Equip",PD Comm Supp Purchasg Budget - Didcot,Other Agency and Contracted Services,57401,Direct Payments,05/11/2014,3301832507,1752.64,REDACTED PERSONAL DATA
http://statistics.data.gov.uk/id/local-authority/38,Oxfordshire County Council,Learning  Disabilities Pooled Budget,Direct Payments North Team,Other Agency and Contracted Services,57401,Direct Payments,05/11/2014,3301832509,2110,REDACTED PERSONAL DATA
http://statistics.data.gov.uk/id/local-authority/38,Oxfordshire County Council,Learning  Disabilities Pooled Budget,Direct Payments North Team,Other Agency and Contracted Services,57401,Direct Payments,05/11/2014,3301832510,780,REDACTED PERSONAL DATA
http://statistics.data.gov.uk/id/local-authority/38,Oxfordshire County Council,Learning  Disabilities Pooled Budget,Direct Payments North Team,Other Agency and Contracted Services,57401,Direct Payments,05/11/2014,3301832511,832,REDACTED PERSONAL DATA
http://statistics.data.gov.uk/id/local-authority/38,Oxfordshire County Council,Learning  Disabilities Pooled Budget,Direct Payments North Team,Other Agency and Contracted Services,57401,Direct Payments,05/11/2014,3301832512,992.4,REDACTED PERSONAL DATA
http://statistics.data.gov.uk/id/local-authority/38,Oxfordshire County Council,Learning  Disabilities Pooled Budget,Direct Payments North Team,Other Agency and Contracted Services,57401,Direct Payments,05/11/2014,3301832513,904,REDACTED PERSONAL DATA
http://statistics.data.gov.uk/id/local-authority/38,Oxfordshire County Council,Learning  Disabilities Pooled Budget,Direct Payments South Team,Other Agency and Contracted Services,57401,Direct Payments,05/11/2014,3301832514,4707.6,REDACTED PERSONAL DATA
http://statistics.data.gov.uk/id/local-authority/38,Oxfordshire County Council,"Older People, Phys Disabilities & Equip",Community Support Budget - Banbury,Other Agency and Contracted Services,57401,Direct Payments,05/11/2014,3301832515,1100,REDACTED PERSONAL DATA
http://statistics.data.gov.uk/id/local-authority/38,Oxfordshire County Council,Learning  Disabilities Pooled Budget,Direct Payments North Team,Other Agency and Contracted Services,57401,Direct Payments,05/11/2014,3301832516,1435.32,REDACTED PERSONAL DATA
http://statistics.data.gov.uk/id/local-authority/38,Oxfordshire County Council,Learning  Disabilities Pooled Budget,Direct Payments South Team,Other Agency and Contracted Services,57401,Direct Payments,05/11/2014,3301832519,2538,REDACTED PERSONAL DATA
http://statistics.data.gov.uk/id/local-authority/38,Oxfordshire County Council,Learning  Disabilities Pooled Budget,Direct Payments City Team,Other Agency and Contracted Services,57401,Direct Payments,05/11/2014,3301832520,764,REDACTED PERSONAL DATA
http://statistics.data.gov.uk/id/local-authority/38,Oxfordshire County Council,Learning  Disabilities Pooled Budget,Direct Payments South Team,Other Agency and Contracted Services,57401,Direct Payments,05/11/2014,3301832522,2732.92,REDACTED PERSONAL DATA
http://statistics.data.gov.uk/id/local-authority/38,Oxfordshire County Council,Learning  Disabilities Pooled Budget,Direct Payments South Team,Other Agency and Contracted Services,57401,Direct Payments,05/11/2014,3301832523,5184,REDACTED PERSONAL DATA
http://statistics.data.gov.uk/id/local-authority/38,Oxfordshire County Council,Learning  Disabilities Pooled Budget,Direct Payments City Team,Other Agency and Contracted Services,57401,Direct Payments,05/11/2014,3301832524,692.01,REDACTED PERSONAL DATA
http://statistics.data.gov.uk/id/local-authority/38,Oxfordshire County Council,Learning  Disabilities Pooled Budget,Direct Payments City Team,Other Agency and Contracted Services,57401,Direct Payments,05/11/2014,3301832525,4551.6,REDACTED PERSONAL DATA
http://statistics.data.gov.uk/id/local-authority/38,Oxfordshire County Council,Learning  Disabilities Pooled Budget,Direct Payments South Team,Other Agency and Contracted Services,57401,Direct Payments,05/11/2014,3301832526,3308,REDACTED PERSONAL DATA
http://statistics.data.gov.uk/id/local-authority/38,Oxfordshire County Council,"Older People, Phys Disabilities & Equip",PHB OP Package,Other Agency and Contracted Services,57401,Direct Payments,05/11/2014,3301832527,6667.4,REDACTED PERSONAL DATA
http://statistics.data.gov.uk/id/local-authority/38,Oxfordshire County Council,"Older People, Phys Disabilities & Equip",PD Comm Supp Purchasg Budget - Thame,Other Agency and Contracted Services,57401,Direct Payments,05/11/2014,3301832528,2000,REDACTED PERSONAL DATA
http://statistics.data.gov.uk/id/local-authority/38,Oxfordshire County Council,Learning  Disabilities Pooled Budget,Direct Payments City Team,Other Agency and Contracted Services,57401,Direct Payments,05/11/2014,3301832529,1840.8,REDACTED PERSONAL DATA
http://statistics.data.gov.uk/id/local-authority/38,Oxfordshire County Council,"Older People, Phys Disabilities & Equip",Community Support Budget - Thame,Other Agency and Contracted Services,57401,Direct Payments,05/11/2014,3301832531,3556,REDACTED PERSONAL DATA
http://statistics.data.gov.uk/id/local-authority/38,Oxfordshire County Council,"Older People, Phys Disabilities & Equip",Community Support Budget - Banbury,Other Agency and Contracted Services,57401,Direct Payments,05/11/2014,3301832532,3968,REDACTED PERSONAL DATA
http://statistics.data.gov.uk/id/local-authority/38,Oxfordshire County Council,"Older People, Phys Disabilities & Equip",Community Support Budget - Banbury,Other Agency and Contracted Services,57401,Direct Payments,05/11/2014,3301832532,7794.29,REDACTED PERSONAL DATA
http://statistics.data.gov.uk/id/local-authority/38,Oxfordshire County Council,"Older People, Phys Disabilities & Equip",Community Support Budget - Banbury,Other Agency and Contracted Services,57401,Direct Payments,05/11/2014,3301832532,-7291.43,REDACTED PERSONAL DATA
http://statistics.data.gov.uk/id/local-authority/38,Oxfordshire County Council,Learning  Disabilities Pooled Budget,Direct Payments North Team,Other Agency and Contracted Services,57401,Direct Payments,05/11/2014,3301832533,2840,REDACTED PERSONAL DATA
http://statistics.data.gov.uk/id/local-authority/38,Oxfordshire County Council,Adult Social Care,MH Community Sup't,Other Agency and Contracted Services,57401,Direct Payments,05/11/2014,3301832534,1152,REDACTED PERSONAL DATA
http://statistics.data.gov.uk/id/local-authority/38,Oxfordshire County Council,Learning  Disabilities Pooled Budget,Direct Payments South Team,Other Agency and Contracted Services,57401,Direct Payments,05/11/2014,3301832536,1611.16,REDACTED PERSONAL DATA
http://statistics.data.gov.uk/id/local-authority/38,Oxfordshire County Council,"Older People, Phys Disabilities & Equip",Community Support Budget - Henley,Other Agency and Contracted Services,57401,Direct Payments,05/11/2014,3301832537,1520,REDACTED PERSONAL DATA
http://statistics.data.gov.uk/id/local-authority/38,Oxfordshire County Council,"Older People, Phys Disabilities & Equip",Community Support Budget - Witney,Other Agency and Contracted Services,57401,Direct Payments,05/11/2014,3301832539,792,REDACTED PERSONAL DATA
http://statistics.data.gov.uk/id/local-authority/38,Oxfordshire County Council,"Older People, Phys Disabilities & Equip",Community Support Budget - City,Other Agency and Contracted Services,57401,Direct Payments,05/11/2014,3301832541,2560,REDACTED PERSONAL DATA
http://statistics.data.gov.uk/id/local-authority/38,Oxfordshire County Council,Learning  Disabilities Pooled Budget,Direct Payments North Team,Other Agency and Contracted Services,57401,Direct Payments,05/11/2014,3301832542,2067.43,REDACTED PERSONAL DATA
http://statistics.data.gov.uk/id/local-authority/38,Oxfordshire County Council,Learning  Disabilities Pooled Budget,Direct Payments North Team,Other Agency and Contracted Services,57401,Direct Payments,05/11/2014,3301832543,787.68,REDACTED PERSONAL DATA
http://statistics.data.gov.uk/id/local-authority/38,Oxfordshire County Council,"Older People, Phys Disabilities & Equip",Community Support Budget - Abingdon,Other Agency and Contracted Services,57401,Direct Payments,05/11/2014,3301832546,4492,REDACTED PERSONAL DATA
http://statistics.data.gov.uk/id/local-authority/38,Oxfordshire County Council,"Older People, Phys Disabilities & Equip",PD CS Purch Budget - Health S28a JC,Other Agency and Contracted Services,57401,Direct Payments,05/11/2014,3301832546,708,REDACTED PERSONAL DATA
http://statistics.data.gov.uk/id/local-authority/38,Oxfordshire County Council,Learning  Disabilities Pooled Budget,Direct Payments North Team,Other Agency and Contracted Services,57401,Direct Payments,05/11/2014,3301832548,1130.48,REDACTED PERSONAL DATA
http://statistics.data.gov.uk/id/local-authority/38,Oxfordshire County Council,"Older People, Phys Disabilities & Equip",PD Comm Supp Purchasg Budget - Witney,Other Agency and Contracted Services,57401,Direct Payments,05/11/2014,3301832550,640,REDACTED PERSONAL DATA
http://statistics.data.gov.uk/id/local-authority/38,Oxfordshire County Council,"Older People, Phys Disabilities & Equip",Community Support Budget - Faringdon,Other Agency and Contracted Services,57401,Direct Payments,05/11/2014,3301832551,2139,REDACTED PERSONAL DATA
http://statistics.data.gov.uk/id/local-authority/38,Oxfordshire County Council,"Older People, Phys Disabilities & Equip",Community Support Budget - Faringdon,Other Agency and Contracted Services,57401,Direct Payments,05/11/2014,3301832551,713,REDACTED PERSONAL DATA
http://statistics.data.gov.uk/id/local-authority/38,Oxfordshire County Council,Learning  Disabilities Pooled Budget,Direct Payments City Team,Other Agency and Contracted Services,57401,Direct Payments,05/11/2014,3301832553,1341.68,REDACTED PERSONAL DATA
http://statistics.data.gov.uk/id/local-authority/38,Oxfordshire County Council,Learning  Disabilities Pooled Budget,Direct Payments City Team,Other Agency and Contracted Services,57401,Direct Payments,05/11/2014,3301832554,1185.68,REDACTED PERSONAL DATA
http://statistics.data.gov.uk/id/local-authority/38,Oxfordshire County Council,"Older People, Phys Disabilities & Equip",PD Comm Supp Purchasg Budget - Wantage,Other Agency and Contracted Services,57401,Direct Payments,05/11/2014,3301832557,548,REDACTED PERSONAL DATA
http://statistics.data.gov.uk/id/local-authority/38,Oxfordshire County Council,"Older People, Phys Disabilities & Equip",Community Support Budget - Kidlington,Other Agency and Contracted Services,57401,Direct Payments,05/11/2014,3301832558,2467.2,REDACTED PERSONAL DATA
http://statistics.data.gov.uk/id/local-authority/38,Oxfordshire County Council,Learning  Disabilities Pooled Budget,Direct Payments South Team,Other Agency and Contracted Services,57401,Direct Payments,05/11/2014,3301832559,2524.92,REDACTED PERSONAL DATA
http://statistics.data.gov.uk/id/local-authority/38,Oxfordshire County Council,Learning  Disabilities Pooled Budget,Direct Payments South Team,Other Agency and Contracted Services,57401,Direct Payments,05/11/2014,3301832560,2219.4,REDACTED PERSONAL DATA
http://statistics.data.gov.uk/id/local-authority/38,Oxfordshire County Council,Learning  Disabilities Pooled Budget,Direct Payments South Team,Other Agency and Contracted Services,57401,Direct Payments,05/11/2014,3301832561,832.16,REDACTED PERSONAL DATA
http://statistics.data.gov.uk/id/local-authority/38,Oxfordshire County Council,Learning  Disabilities Pooled Budget,Direct Payments City Team,Other Agency and Contracted Services,57401,Direct Payments,05/11/2014,3301832562,680.4,REDACTED PERSONAL DATA
http://statistics.data.gov.uk/id/local-authority/38,Oxfordshire County Council,Learning  Disabilities Pooled Budget,Direct Payments South Team,Other Agency and Contracted Services,57401,Direct Payments,05/11/2014,3301832563,763.08,REDACTED PERSONAL DATA
http://statistics.data.gov.uk/id/local-authority/38,Oxfordshire County Council,"Older People, Phys Disabilities & Equip",Community Support Budget - Thame,Other Agency and Contracted Services,57401,Direct Payments,05/11/2014,3301832564,620,REDACTED PERSONAL DATA
http://statistics.data.gov.uk/id/local-authority/38,Oxfordshire County Council,"Older People, Phys Disabilities & Equip",PD Comm Supp Purchasg Budget - Henley,Other Agency and Contracted Services,57401,Direct Payments,05/11/2014,3301832566,1140,REDACTED PERSONAL DATA
http://statistics.data.gov.uk/id/local-authority/38,Oxfordshire County Council,"Older People, Phys Disabilities & Equip",PD Comm Supp Purchasg Budget - Thame,Other Agency and Contracted Services,57401,Direct Payments,05/11/2014,3301832567,643.72,REDACTED PERSONAL DATA
http://statistics.data.gov.uk/id/local-authority/38,Oxfordshire County Council,Learning  Disabilities Pooled Budget,Direct Payments City Team,Other Agency and Contracted Services,57401,Direct Payments,05/11/2014,3301832568,980,REDACTED PERSONAL DATA
http://statistics.data.gov.uk/id/local-authority/38,Oxfordshire County Council,"Older People, Phys Disabilities & Equip",PD Comm Supp Purchasg Budget - Witney,Other Agency and Contracted Services,57401,Direct Payments,05/11/2014,3301832569,3825.16,REDACTED PERSONAL DATA
http://statistics.data.gov.uk/id/local-authority/38,Oxfordshire County Council,"Older People, Phys Disabilities & Equip",Community Support Budget - Witney,Other Agency and Contracted Services,57401,Direct Payments,05/11/2014,3301832570,780,REDACTED PERSONAL DATA
http://statistics.data.gov.uk/id/local-authority/38,Oxfordshire County Council,Learning  Disabilities Pooled Budget,Direct Payments North Team,Other Agency and Contracted Services,57401,Direct Payments,05/11/2014,3301832571,927.84,REDACTED PERSONAL DATA
http://statistics.data.gov.uk/id/local-authority/38,Oxfordshire County Council,Learning  Disabilities Pooled Budget,Direct Payments North Team,Other Agency and Contracted Services,57401,Direct Payments,05/11/2014,3301832572,4393.92,REDACTED PERSONAL DATA
http://statistics.data.gov.uk/id/local-authority/38,Oxfordshire County Council,Learning  Disabilities Pooled Budget,Direct Payments South Team,Other Agency and Contracted Services,57401,Direct Payments,05/11/2014,3301832573,3909.4,REDACTED PERSONAL DATA
http://statistics.data.gov.uk/id/local-authority/38,Oxfordshire County Council,Learning  Disabilities Pooled Budget,Direct Payments South Team,Other Agency and Contracted Services,57401,Direct Payments,05/11/2014,3301832574,738.28,REDACTED PERSONAL DATA
http://statistics.data.gov.uk/id/local-authority/38,Oxfordshire County Council,"Older People, Phys Disabilities & Equip",PD CS Purch Budget - Health S28a JC,Other Agency and Contracted Services,57401,Direct Payments,05/11/2014,3301832575,709.2,REDACTED PERSONAL DATA
http://statistics.data.gov.uk/id/local-authority/38,Oxfordshire County Council,"Older People, Phys Disabilities & Equip",PD Comm Supp Purchasg Budget - Abingdon,Other Agency and Contracted Services,57401,Direct Payments,05/11/2014,3301832575,4350.8,REDACTED PERSONAL DATA
http://statistics.data.gov.uk/id/local-authority/38,Oxfordshire County Council,"Older People, Phys Disabilities & Equip",PD Comm Supp Purchasg Budget - Abingdon,Other Agency and Contracted Services,57401,Direct Payments,05/11/2014,3301832576,3208,REDACTED PERSONAL DATA
http://statistics.data.gov.uk/id/local-authority/38,Oxfordshire County Council,Learning  Disabilities Pooled Budget,Direct Payments South Team,Other Agency and Contracted Services,57401,Direct Payments,05/11/2014,3301832577,4862.6,REDACTED PERSONAL DATA
http://statistics.data.gov.uk/id/local-authority/38,Oxfordshire County Council,Learning  Disabilities Pooled Budget,Direct Payments South Team,Other Agency and Contracted Services,57401,Direct Payments,05/11/2014,3301832578,616.88,REDACTED PERSONAL DATA
http://statistics.data.gov.uk/id/local-authority/38,Oxfordshire County Council,Learning  Disabilities Pooled Budget,Direct Payments City Team,Other Agency and Contracted Services,57401,Direct Payments,05/11/2014,3301832580,740,REDACTED PERSONAL DATA
http://statistics.data.gov.uk/id/local-authority/38,Oxfordshire County Council,"Older People, Phys Disabilities & Equip",PD Comm Supp Purchasg Budget - Abingdon,Other Agency and Contracted Services,57401,Direct Payments,05/11/2014,3301832581,1972,REDACTED PERSONAL DATA
http://statistics.data.gov.uk/id/local-authority/38,Oxfordshire County Council,"Older People, Phys Disabilities & Equip",PHB OP Package,Other Agency and Contracted Services,57401,Direct Payments,05/11/2014,3301832582,6236.64,REDACTED PERSONAL DATA
http://statistics.data.gov.uk/id/local-authority/38,Oxfordshire County Council,"Older People, Phys Disabilities & Equip",PHB OP Package,Other Agency and Contracted Services,57401,Direct Payments,05/11/2014,3301832582,2623.49,REDACTED PERSONAL DATA
http://statistics.data.gov.uk/id/local-authority/38,Oxfordshire County Council,"Older People, Phys Disabilities & Equip",PHB OP Package,Other Agency and Contracted Services,57401,Direct Payments,05/11/2014,3301832582,4677.48,REDACTED PERSONAL DATA
http://statistics.data.gov.uk/id/local-authority/38,Oxfordshire County Council,"Older People, Phys Disabilities & Equip",PHB OP Package,Other Agency and Contracted Services,57401,Direct Payments,05/11/2014,3301832582,-3067.08,REDACTED PERSONAL DATA
http://statistics.data.gov.uk/id/local-authority/38,Oxfordshire County Council,Learning  Disabilities Pooled Budget,Direct Payments North Team,Other Agency and Contracted Services,57401,Direct Payments,05/11/2014,3301832583,2015.64,REDACTED PERSONAL DATA
http://statistics.data.gov.uk/id/local-authority/38,Oxfordshire County Council,"Older People, Phys Disabilities & Equip",OP Pool Continuing Care Delegated Health,Other Agency and Contracted Services,57401,Direct Payments,05/11/2014,3301832584,1420,REDACTED PERSONAL DATA
http://statistics.data.gov.uk/id/local-authority/38,Oxfordshire County Council,"Older People, Phys Disabilities & Equip",Community Support Budget - City,Other Agency and Contracted Services,57401,Direct Payments,05/11/2014,3301832584,2920,REDACTED PERSONAL DATA
http://statistics.data.gov.uk/id/local-authority/38,Oxfordshire County Council,Learning  Disabilities Pooled Budget,Direct Payments City Team,Other Agency and Contracted Services,57401,Direct Payments,05/11/2014,3301832585,1201.84,REDACTED PERSONAL DATA
http://statistics.data.gov.uk/id/local-authority/38,Oxfordshire County Council,"Older People, Phys Disabilities & Equip",Community Support Budget - Didcot,Other Agency and Contracted Services,57401,Direct Payments,05/11/2014,3301832586,2320,REDACTED PERSONAL DATA
http://statistics.data.gov.uk/id/local-authority/38,Oxfordshire County Council,Learning  Disabilities Pooled Budget,Direct Payments North Team,Other Agency and Contracted Services,57401,Direct Payments,05/11/2014,3301832587,4969.8,REDACTED PERSONAL DATA
http://statistics.data.gov.uk/id/local-authority/38,Oxfordshire County Council,Learning  Disabilities Pooled Budget,Direct Payments North Team,Other Agency and Contracted Services,57401,Direct Payments,05/11/2014,3301832588,4983.08,REDACTED PERSONAL DATA
http://statistics.data.gov.uk/id/local-authority/38,Oxfordshire County Council,Learning  Disabilities Pooled Budget,Direct Payments South Team,Other Agency and Contracted Services,57401,Direct Payments,05/11/2014,3301832589,1787.52,REDACTED PERSONAL DATA
http://statistics.data.gov.uk/id/local-authority/38,Oxfordshire County Council,Learning  Disabilities Pooled Budget,Direct Payments South Team,Other Agency and Contracted Services,57401,Direct Payments,05/11/2014,3301832590,5397,REDACTED PERSONAL DATA
http://statistics.data.gov.uk/id/local-authority/38,Oxfordshire County Council,Learning  Disabilities Pooled Budget,Direct Payments South Team,Other Agency and Contracted Services,57401,Direct Payments,05/11/2014,3301832592,574.04,REDACTED PERSONAL DATA
http://statistics.data.gov.uk/id/local-authority/38,Oxfordshire County Council,Learning  Disabilities Pooled Budget,Direct Payments South Team,Other Agency and Contracted Services,57401,Direct Payments,05/11/2014,3301832595,3808.36,REDACTED PERSONAL DATA
http://statistics.data.gov.uk/id/local-authority/38,Oxfordshire County Council,Learning  Disabilities Pooled Budget,Continuing Health Care,Other Agency and Contracted Services,57401,Direct Payments,05/11/2014,3301832596,2056,REDACTED PERSONAL DATA
http://statistics.data.gov.uk/id/local-authority/38,Oxfordshire County Council,"Older People, Phys Disabilities & Equip",PD Comm Supp Purchasg Budget - Thame,Other Agency and Contracted Services,57401,Direct Payments,05/11/2014,3301832597,2508,REDACTED PERSONAL DATA
http://statistics.data.gov.uk/id/local-authority/38,Oxfordshire County Council,"Older People, Phys Disabilities & Equip",PD Comm Supp Purchasg Budget - Thame,Other Agency and Contracted Services,57401,Direct Payments,05/11/2014,3301832597,627,REDACTED PERSONAL DATA
http://statistics.data.gov.uk/id/local-authority/38,Oxfordshire County Council,"Older People, Phys Disabilities & Equip",Community Support Budget - Thame,Other Agency and Contracted Services,57401,Direct Payments,05/11/2014,3301832598,1776,REDACTED PERSONAL DATA
http://statistics.data.gov.uk/id/local-authority/38,Oxfordshire County Council,Learning  Disabilities Pooled Budget,Direct Payments North Team,Other Agency and Contracted Services,57401,Direct Payments,05/11/2014,3301832599,14465.24,REDACTED PERSONAL DATA
http://statistics.data.gov.uk/id/local-authority/38,Oxfordshire County Council,"Older People, Phys Disabilities & Equip",PD CS Purch Budget - Health S28a JC,Other Agency and Contracted Services,57401,Direct Payments,05/11/2014,3301832600,1400,REDACTED PERSONAL DATA
http://statistics.data.gov.uk/id/local-authority/38,Oxfordshire County Council,"Older People, Phys Disabilities & Equip",PD Comm Supp Budget - Banbury,Other Agency and Contracted Services,57401,Direct Payments,05/11/2014,3301832600,3448.36,REDACTED PERSONAL DATA
http://statistics.data.gov.uk/id/local-authority/38,Oxfordshire County Council,"Older People, Phys Disabilities & Equip",PD Community Support Budget - Kidlington,Other Agency and Contracted Services,57401,Direct Payments,05/11/2014,3301832601,2898.08,REDACTED PERSONAL DATA
http://statistics.data.gov.uk/id/local-authority/38,Oxfordshire County Council,Learning  Disabilities Pooled Budget,Direct Payments City Team,Other Agency and Contracted Services,57401,Direct Payments,05/11/2014,3301832602,773.16,REDACTED PERSONAL DATA
http://statistics.data.gov.uk/id/local-authority/38,Oxfordshire County Council,Learning  Disabilities Pooled Budget,Direct Payments North Team,Other Agency and Contracted Services,57401,Direct Payments,05/11/2014,3301832603,8553.08,REDACTED PERSONAL DATA
http://statistics.data.gov.uk/id/local-authority/38,Oxfordshire County Council,"Older People, Phys Disabilities & Equip",PD Comm Supp Purchasg Budget - Witney,Other Agency and Contracted Services,57401,Direct Payments,05/11/2014,3301832604,3458.36,REDACTED PERSONAL DATA
http://statistics.data.gov.uk/id/local-authority/38,Oxfordshire County Council,Learning  Disabilities Pooled Budget,Direct Payments North Team,Other Agency and Contracted Services,57401,Direct Payments,05/11/2014,3301832605,6397.32,REDACTED PERSONAL DATA
http://statistics.data.gov.uk/id/local-authority/38,Oxfordshire County Council,Learning  Disabilities Pooled Budget,Direct Payments North Team,Other Agency and Contracted Services,57401,Direct Payments,05/11/2014,3301832608,7448.88,REDACTED PERSONAL DATA
http://statistics.data.gov.uk/id/local-authority/38,Oxfordshire County Council,"Older People, Phys Disabilities & Equip",Community Support Budget - Witney,Other Agency and Contracted Services,57401,Direct Payments,05/11/2014,3301832610,1964,REDACTED PERSONAL DATA
http://statistics.data.gov.uk/id/local-authority/38,Oxfordshire County Council,Learning  Disabilities Pooled Budget,Direct Payments South Team,Other Agency and Contracted Services,57401,Direct Payments,05/11/2014,3301832612,1494.44,REDACTED PERSONAL DATA
http://statistics.data.gov.uk/id/local-authority/38,Oxfordshire County Council,"Older People, Phys Disabilities & Equip",PD Comm Supp Purchasg Budget - Witney,Other Agency and Contracted Services,57401,Direct Payments,05/11/2014,3301832613,1745.04,REDACTED PERSONAL DATA
http://statistics.data.gov.uk/id/local-authority/38,Oxfordshire County Council,"Older People, Phys Disabilities & Equip",Community Support Budget - Chipping Nort,Other Agency and Contracted Services,57401,Direct Payments,05/11/2014,3301832614,964,REDACTED PERSONAL DATA
http://statistics.data.gov.uk/id/local-authority/38,Oxfordshire County Council,"Older People, Phys Disabilities & Equip",Community Support Budget - Henley,Other Agency and Contracted Services,57401,Direct Payments,05/11/2014,3301832616,1924,Citibank NA London
http://statistics.data.gov.uk/id/local-authority/38,Oxfordshire County Council,"Older People, Phys Disabilities & Equip",Community Support Budget - City,Other Agency and Contracted Services,57401,Direct Payments,05/11/2014,3301832617,3727,Citibank NA London
http://statistics.data.gov.uk/id/local-authority/38,Oxfordshire County Council,"Older People, Phys Disabilities & Equip",Community Support Budget - Chipping Nort,Other Agency and Contracted Services,57401,Direct Payments,05/11/2014,3301832618,540,Citibank NA London
http://statistics.data.gov.uk/id/local-authority/38,Oxfordshire County Council,"Older People, Phys Disabilities & Equip",PD Comm Supp Purchasg Budget - Witney,Other Agency and Contracted Services,57401,Direct Payments,05/11/2014,3301832619,784,Citibank NA London
http://statistics.data.gov.uk/id/local-authority/38,Oxfordshire County Council,"Older People, Phys Disabilities & Equip",Community Support Budget - Didcot,Other Agency and Contracted Services,57401,Direct Payments,05/11/2014,3301832620,2268.6,Citibank NA London
http://statistics.data.gov.uk/id/local-authority/38,Oxfordshire County Council,"Older People, Phys Disabilities & Equip",PD Comm Supp Budget - Banbury,Other Agency and Contracted Services,57401,Direct Payments,05/11/2014,3301832622,1016,Citibank NA London
http://statistics.data.gov.uk/id/local-authority/38,Oxfordshire County Council,Learning  Disabilities Pooled Budget,Direct Payments South Team,Other Agency and Contracted Services,57401,Direct Payments,05/11/2014,3301832623,2634.16,Citibank NA London
http://statistics.data.gov.uk/id/local-authority/38,Oxfordshire County Council,"Older People, Phys Disabilities & Equip",Community Support Budget - Henley,Other Agency and Contracted Services,57401,Direct Payments,05/11/2014,3301832625,3400,Citibank NA London
http://statistics.data.gov.uk/id/local-authority/38,Oxfordshire County Council,"Older People, Phys Disabilities & Equip",PD Comm Supp Purchasg Budget - Abingdon,Other Agency and Contracted Services,57401,Direct Payments,05/11/2014,3301832626,789.4,Citibank NA London
http://statistics.data.gov.uk/id/local-authority/38,Oxfordshire County Council,"Older People, Phys Disabilities & Equip",Community Support Budget - Didcot,Other Agency and Contracted Services,57401,Direct Payments,05/11/2014,3301832627,1336,Citibank NA London
http://statistics.data.gov.uk/id/local-authority/38,Oxfordshire County Council,"Older People, Phys Disabilities & Equip",PD Comm Supp Purchasg Budget - Abingdon,Other Agency and Contracted Services,57401,Direct Payments,05/11/2014,3301832628,714.6,Citibank NA London
http://statistics.data.gov.uk/id/local-authority/38,Oxfordshire County Council,"Older People, Phys Disabilities & Equip",Community Support Budget - Banbury,Other Agency and Contracted Services,57401,Direct Payments,05/11/2014,3301832630,3280,WK2 Advance Housing & Support
http://statistics.data.gov.uk/id/local-authority/38,Oxfordshire County Council,Learning  Disabilities Pooled Budget,Direct Payments South Team,Other Agency and Contracted Services,57401,Direct Payments,05/11/2014,3301832631,921.68,WK2 Advance Housing & Support
http://statistics.data.gov.uk/id/local-authority/38,Oxfordshire County Council,"Older People, Phys Disabilities & Equip",Community Support Budget - Thame,Other Agency and Contracted Services,57401,Direct Payments,05/11/2014,3301832632,3382.48,WK2 Advance Housing & Support
http://statistics.data.gov.uk/id/local-authority/38,Oxfordshire County Council,"Older People, Phys Disabilities & Equip",Community Support Budget - Kidlington,Other Agency and Contracted Services,57401,Direct Payments,05/11/2014,3301832633,1916,WK2 Advance Housing & Support
http://statistics.data.gov.uk/id/local-authority/38,Oxfordshire County Council,"Older People, Phys Disabilities & Equip",Community Support Budget - Abingdon,Other Agency and Contracted Services,57401,Direct Payments,05/11/2014,3301832634,1579.2,WK2 Advance Housing & Support
http://statistics.data.gov.uk/id/local-authority/38,Oxfordshire County Council,"Older People, Phys Disabilities & Equip",Community Support Budget - Kidlington,Other Agency and Contracted Services,57401,Direct Payments,05/11/2014,3301832637,796,WK2 Advance Housing & Support
http://statistics.data.gov.uk/id/local-authority/38,Oxfordshire County Council,Learning  Disabilities Pooled Budget,Direct Payments North Team,Other Agency and Contracted Services,57401,Direct Payments,05/11/2014,3301832638,1220,WK2 Advance Housing & Support
http://statistics.data.gov.uk/id/local-authority/38,Oxfordshire County Council,"Older People, Phys Disabilities & Equip",PD Comm Supp Purchasg Budget - City,Other Agency and Contracted Services,57401,Direct Payments,05/11/2014,3301832640,1000,WK2 Advance Housing & Support
http://statistics.data.gov.uk/id/local-authority/38,Oxfordshire County Council,"Older People, Phys Disabilities & Equip",Community Support Budget - City,Other Agency and Contracted Services,57401,Direct Payments,05/11/2014,3301832641,520,WK2 Advance Housing & Support
http://statistics.data.gov.uk/id/local-authority/38,Oxfordshire County Council,"Older People, Phys Disabilities & Equip",Community Support Budget - City,Other Agency and Contracted Services,57401,Direct Payments,05/11/2014,3301832644,668.08,WK2 Advance Housing & Support
http://statistics.data.gov.uk/id/local-authority/38,Oxfordshire County Council,"Older People, Phys Disabilities & Equip",Community Support Budget - Kidlington,Other Agency and Contracted Services,57401,Direct Payments,05/11/2014,3301832645,1104,WK2 Advance Housing & Support
http://statistics.data.gov.uk/id/local-authority/38,Oxfordshire County Council,"Older People, Phys Disabilities & Equip",PD Comm Supp Purchasg Budget - Wantage,Other Agency and Contracted Services,57401,Direct Payments,05/11/2014,3301832647,524,WK2 Advance Housing & Support
http://statistics.data.gov.uk/id/local-authority/38,Oxfordshire County Council,"Older People, Phys Disabilities & Equip",Community Support Budget - Chipping Nort,Other Agency and Contracted Services,57401,Direct Payments,05/11/2014,3301832648,773.6,WK2 Advance Housing & Support
http://statistics.data.gov.uk/id/local-authority/38,Oxfordshire County Council,"Older People, Phys Disabilities & Equip",Community Support Budget - Chipping Nort,Other Agency and Contracted Services,57401,Direct Payments,05/11/2014,3301832648,1326.17,WK2 Advance Housing & Support
http://statistics.data.gov.uk/id/local-authority/38,Oxfordshire County Council,"Older People, Phys Disabilities & Equip",Community Support Budget - Chipping Nort,Other Agency and Contracted Services,57401,Direct Payments,05/11/2014,3301832648,-1017.6,WK2 Advance Housing & Support
http://statistics.data.gov.uk/id/local-authority/38,Oxfordshire County Council,"Older People, Phys Disabilities & Equip",PD Comm Supp Budget - Banbury,Other Agency and Contracted Services,57401,Direct Payments,05/11/2014,3301832649,1263.2,WK2 Advance Housing & Support
http://statistics.data.gov.uk/id/local-authority/38,Oxfordshire County Council,"Older People, Phys Disabilities & Equip",Community Support Budget - City,Other Agency and Contracted Services,57401,Direct Payments,05/11/2014,3301832653,4691.24,WK2 Advance Housing & Support
http://statistics.data.gov.uk/id/local-authority/38,Oxfordshire County Council,"Older People, Phys Disabilities & Equip",PD Comm Supp Budget - Banbury,Other Agency and Contracted Services,57401,Direct Payments,05/11/2014,3301832655,1076,WK2 Advance Housing & Support
http://statistics.data.gov.uk/id/local-authority/38,Oxfordshire County Council,"Older People, Phys Disabilities & Equip",Community Support Budget - Henley,Other Agency and Contracted Services,57401,Direct Payments,05/11/2014,3301832657,1344,WK2 Advance Housing & Support
http://statistics.data.gov.uk/id/local-authority/38,Oxfordshire County Council,"Older People, Phys Disabilities & Equip",Community Support Budget - Witney,Other Agency and Contracted Services,57401,Direct Payments,05/11/2014,3301832659,704,WK2 Advance Housing & Support
http://statistics.data.gov.uk/id/local-authority/38,Oxfordshire County Council,"Older People, Phys Disabilities & Equip",PD Comm Supp Purchasg Budget - City,Other Agency and Contracted Services,57401,Direct Payments,05/11/2014,3301832661,1112,WK2 Advance Housing & Support
http://statistics.data.gov.uk/id/local-authority/38,Oxfordshire County Council,"Older People, Phys Disabilities & Equip",Community Support Budget - Witney,Other Agency and Contracted Services,57401,Direct Payments,05/11/2014,3301832663,876,WK2 Advance Housing & Support
http://statistics.data.gov.uk/id/local-authority/38,Oxfordshire County Council,"Older People, Phys Disabilities & Equip",Community Support Budget - Abingdon,Other Agency and Contracted Services,57401,Direct Payments,05/11/2014,3301832665,1065.52,WK2 Advance Housing & Support
http://statistics.data.gov.uk/id/local-authority/38,Oxfordshire County Council,"Older People, Phys Disabilities & Equip",Community Support Budget - Wantage,Other Agency and Contracted Services,57401,Direct Payments,05/11/2014,3301832666,852,WK2 Advance Housing & Support
http://statistics.data.gov.uk/id/local-authority/38,Oxfordshire County Council,"Older People, Phys Disabilities & Equip",PD Comm Supp Purchasg Budget - City,Other Agency and Contracted Services,57401,Direct Payments,05/11/2014,3301832667,856.8,WK2 Advance Housing & Support
http://statistics.data.gov.uk/id/local-authority/38,Oxfordshire County Council,"Older People, Phys Disabilities & Equip",Community Support Budget - Banbury,Other Agency and Contracted Services,57401,Direct Payments,05/11/2014,3301832668,904,WK2 Advance Housing & Support
http://statistics.data.gov.uk/id/local-authority/38,Oxfordshire County Council,"Older People, Phys Disabilities & Equip",PD Comm Supp Purchasg Budget - Wantage,Other Agency and Contracted Services,57401,Direct Payments,05/11/2014,3301832669,847.16,WK2 Advance Housing & Support
http://statistics.data.gov.uk/id/local-authority/38,Oxfordshire County Council,"Older People, Phys Disabilities & Equip",PD Comm Supp Purchasg Budget - City,Other Agency and Contracted Services,57401,Direct Payments,05/11/2014,3301832670,1297.8,WK2 Advance Housing & Support
http://statistics.data.gov.uk/id/local-authority/38,Oxfordshire County Council,"Older People, Phys Disabilities & Equip",PD Comm Supp Purchasg Budget - City,Other Agency and Contracted Services,57401,Direct Payments,05/11/2014,3301832671,540,WK2 Advance Housing & Support
http://statistics.data.gov.uk/id/local-authority/38,Oxfordshire County Council,"Older People, Phys Disabilities & Equip",Community Support Budget - City,Other Agency and Contracted Services,57401,Direct Payments,05/11/2014,3301832672,908,WK2 Advance Housing & Support
http://statistics.data.gov.uk/id/local-authority/38,Oxfordshire County Council,"Older People, Phys Disabilities & Equip",Community Support Budget - Banbury,Other Agency and Contracted Services,57401,Direct Payments,05/11/2014,3301832674,844,WK2 Advance Housing & Support
http://statistics.data.gov.uk/id/local-authority/38,Oxfordshire County Council,"Older People, Phys Disabilities & Equip",Community Support Budget - Didcot,Other Agency and Contracted Services,57401,Direct Payments,05/11/2014,3301832676,1092.8,WK2 Advance Housing & Support
http://statistics.data.gov.uk/id/local-authority/38,Oxfordshire County Council,"Older People, Phys Disabilities & Equip",PD Comm Supp Purchasg Budget - Didcot,Other Agency and Contracted Services,57401,Direct Payments,05/11/2014,3301832678,1448,WK2 Advance Housing & Support
http://statistics.data.gov.uk/id/local-authority/38,Oxfordshire County Council,"Older People, Phys Disabilities & Equip",PD Comm Supp Budget - Banbury,Other Agency and Contracted Services,57401,Direct Payments,05/11/2014,3301832679,3510,WK2 Advance Housing & Support
http://statistics.data.gov.uk/id/local-authority/38,Oxfordshire County Council,"Older People, Phys Disabilities & Equip",Community Support Budget - City,Other Agency and Contracted Services,57401,Direct Payments,05/11/2014,3301832681,2520,WK2 Advance Housing & Support
http://statistics.data.gov.uk/id/local-authority/38,Oxfordshire County Council,"Older People, Phys Disabilities & Equip",Community Support Budget - City,Other Agency and Contracted Services,57401,Direct Payments,05/11/2014,3301832682,1440,WK2 Advance Housing & Support
http://statistics.data.gov.uk/id/local-authority/38,Oxfordshire County Council,"Older People, Phys Disabilities & Equip",Community Support Budget - Banbury,Other Agency and Contracted Services,57401,Direct Payments,05/11/2014,3301832683,2244,WK2 Advance Housing & Support
http://statistics.data.gov.uk/id/local-authority/38,Oxfordshire County Council,"Older People, Phys Disabilities & Equip",Community Support Budget - Witney,Other Agency and Contracted Services,57401,Direct Payments,05/11/2014,3301832684,4580,WK2 Advance Housing & Support
http://statistics.data.gov.uk/id/local-authority/38,Oxfordshire County Council,"Older People, Phys Disabilities & Equip",Community Support Budget - Banbury,Other Agency and Contracted Services,57401,Direct Payments,05/11/2014,3301832685,2988,WK2 Advance Housing & Support
http://statistics.data.gov.uk/id/local-authority/38,Oxfordshire County Council,"Older People, Phys Disabilities & Equip",Community Support Budget - Banbury,Other Agency and Contracted Services,57401,Direct Payments,05/11/2014,3301832685,7209.71,WK2 Advance Housing & Support
http://statistics.data.gov.uk/id/local-authority/38,Oxfordshire County Council,"Older People, Phys Disabilities & Equip",PD CS Purch Budget - Health S28a JC,Other Agency and Contracted Services,57401,Direct Payments,05/11/2014,3301832685,1984,WK2 Advance Housing & Support
http://statistics.data.gov.uk/id/local-authority/38,Oxfordshire County Council,"Older People, Phys Disabilities & Equip",OP Pool Continuing Care Delegated Health,Other Agency and Contracted Services,57401,Direct Payments,05/11/2014,3301832685,-797.14,WK2 Advance Housing & Support
http://statistics.data.gov.uk/id/local-authority/38,Oxfordshire County Council,"Older People, Phys Disabilities & Equip",Community Support Budget - Banbury,Other Agency and Contracted Services,57401,Direct Payments,05/11/2014,3301832685,-6616.29,WK2 Advance Housing & Support
http://statistics.data.gov.uk/id/local-authority/38,Oxfordshire County Council,"Older People, Phys Disabilities & Equip",Community Support Budget - Witney,Other Agency and Contracted Services,57401,Direct Payments,05/11/2014,3301832686,2696.6,WK2 Advance Housing & Support
http://statistics.data.gov.uk/id/local-authority/38,Oxfordshire County Council,"Older People, Phys Disabilities & Equip",Community Support Budget - Kidlington,Other Agency and Contracted Services,57401,Direct Payments,05/11/2014,3301832687,792,WK2 Advance Housing & Support
http://statistics.data.gov.uk/id/local-authority/38,Oxfordshire County Council,"Older People, Phys Disabilities & Equip",Community Support Budget - Witney,Other Agency and Contracted Services,57401,Direct Payments,05/11/2014,3301832688,3360,WK2 Advance Housing & Support
http://statistics.data.gov.uk/id/local-authority/38,Oxfordshire County Council,"Older People, Phys Disabilities & Equip",Community Support Budget - Chipping Nort,Other Agency and Contracted Services,57401,Direct Payments,05/11/2014,3301832689,3456,WK2 Advance Housing & Support
http://statistics.data.gov.uk/id/local-authority/38,Oxfordshire County Council,"Older People, Phys Disabilities & Equip",PD CS Purch Budget - Health S28a JC,Other Agency and Contracted Services,57401,Direct Payments,05/11/2014,3301832690,532,WK2 Advance Housing & Support
http://statistics.data.gov.uk/id/local-authority/38,Oxfordshire County Council,"Older People, Phys Disabilities & Equip",PD Comm Supp Budgt - Bicester/Kidlington,Other Agency and Contracted Services,57401,Direct Payments,05/11/2014,3301832690,3832,WK2 Advance Housing & Support
http://statistics.data.gov.uk/id/local-authority/38,Oxfordshire County Council,"Older People, Phys Disabilities & Equip",Community Support Budget - Faringdon,Other Agency and Contracted Services,57401,Direct Payments,05/11/2014,3301832691,1068,WK2 Advance Housing & Support
http://statistics.data.gov.uk/id/local-authority/38,Oxfordshire County Council,"Older People, Phys Disabilities & Equip",Community Support Budget - Thame,Other Agency and Contracted Services,57401,Direct Payments,05/11/2014,3301832695,860,WK2 Advance Housing & Support
http://statistics.data.gov.uk/id/local-authority/38,Oxfordshire County Council,"Older People, Phys Disabilities & Equip",Community Support Budget - City,Other Agency and Contracted Services,57401,Direct Payments,05/11/2014,3301832697,3200,WK2 Advance Housing & Support
http://statistics.data.gov.uk/id/local-authority/38,Oxfordshire County Council,"Older People, Phys Disabilities & Equip",PD Comm Supp Purchasg Budget - Witney,Other Agency and Contracted Services,57401,Direct Payments,05/11/2014,3301832698,712,WK2 Advance Housing & Support
http://statistics.data.gov.uk/id/local-authority/38,Oxfordshire County Council,"Older People, Phys Disabilities & Equip",PD CS Purch Budget - Health S28a JC,Other Agency and Contracted Services,57401,Direct Payments,05/11/2014,3301832699,1135.76,WK2 Advance Housing & Support
http://statistics.data.gov.uk/id/local-authority/38,Oxfordshire County Council,"Older People, Phys Disabilities & Equip",PD Comm Supp Purchasg Budget - City,Other Agency and Contracted Services,57401,Direct Payments,05/11/2014,3301832699,1964.24,WK2 Advance Housing & Support
http://statistics.data.gov.uk/id/local-authority/38,Oxfordshire County Council,"Older People, Phys Disabilities & Equip",Community Support Budget - Bicester,Other Agency and Contracted Services,57401,Direct Payments,05/11/2014,3301832704,1064.4,WK2 Advance Housing & Support
http://statistics.data.gov.uk/id/local-authority/38,Oxfordshire County Council,"Older People, Phys Disabilities & Equip",PD Comm Supp Purchasg Budget - Wantage,Other Agency and Contracted Services,57401,Direct Payments,05/11/2014,3301832706,740,WK2 Advance Housing & Support
http://statistics.data.gov.uk/id/local-authority/38,Oxfordshire County Council,"Older People, Phys Disabilities & Equip",Community Support Budget - Banbury,Other Agency and Contracted Services,57401,Direct Payments,05/11/2014,3301832707,2148,WK2 Advance Housing & Support
http://statistics.data.gov.uk/id/local-authority/38,Oxfordshire County Council,"Older People, Phys Disabilities & Equip",Community Support Budget - Kidlington,Other Agency and Contracted Services,57401,Direct Payments,05/11/2014,3301832708,4105.2,WK2 Advance Housing & Support
http://statistics.data.gov.uk/id/local-authority/38,Oxfordshire County Council,"Older People, Phys Disabilities & Equip",Community Support Budget - Banbury,Other Agency and Contracted Services,57401,Direct Payments,05/11/2014,3301832710,2088.08,WK2 Advance Housing & Support
http://statistics.data.gov.uk/id/local-authority/38,Oxfordshire County Council,"Older People, Phys Disabilities & Equip",PHB OP Package,Other Agency and Contracted Services,57401,Direct Payments,05/11/2014,3301832712,2268,WK2 Advance Housing & Support
http://statistics.data.gov.uk/id/local-authority/38,Oxfordshire County Council,"Older People, Phys Disabilities & Equip",Community Support Budget - Didcot,Other Agency and Contracted Services,57401,Direct Payments,05/11/2014,3301832713,3365.14,WK2 Advance Housing & Support
http://statistics.data.gov.uk/id/local-authority/38,Oxfordshire County Council,"Older People, Phys Disabilities & Equip",Community Support Budget - Didcot,Other Agency and Contracted Services,57401,Direct Payments,05/11/2014,3301832714,5692.43,WK2 Advance Housing & Support
http://statistics.data.gov.uk/id/local-authority/38,Oxfordshire County Council,"Older People, Phys Disabilities & Equip",OP Pool Continuing Care Delegated Health,Other Agency and Contracted Services,57401,Direct Payments,05/11/2014,3301832714,-2112.8,WK2 Advance Housing & Support
http://statistics.data.gov.uk/id/local-authority/38,Oxfordshire County Council,"Older People, Phys Disabilities & Equip",Community Support Budget - Didcot,Other Agency and Contracted Services,57401,Direct Payments,05/11/2014,3301832714,-2483.63,WK2 Advance Housing & Support
http://statistics.data.gov.uk/id/local-authority/38,Oxfordshire County Council,"Older People, Phys Disabilities & Equip",Community Support Budget - Didcot,Other Agency and Contracted Services,57401,Direct Payments,05/11/2014,3301832715,1256,WK2 Advance Housing & Support
http://statistics.data.gov.uk/id/local-authority/38,Oxfordshire County Council,"Older People, Phys Disabilities & Equip",Personal Health Budgets PD (PCT),Other Agency and Contracted Services,57401,Direct Payments,05/11/2014,3301832716,6569.76,WK2 Advance Housing & Support
http://statistics.data.gov.uk/id/local-authority/38,Oxfordshire County Council,"Older People, Phys Disabilities & Equip",PD Comm Supp Purchasg Budget - City,Other Agency and Contracted Services,57401,Direct Payments,05/11/2014,3301832717,1240,WK2 Advance Housing & Support
http://statistics.data.gov.uk/id/local-authority/38,Oxfordshire County Council,"Older People, Phys Disabilities & Equip",Community Support Budget - City,Other Agency and Contracted Services,57401,Direct Payments,05/11/2014,3301832718,1944.56,WK2 Advance Housing & Support
http://statistics.data.gov.uk/id/local-authority/38,Oxfordshire County Council,"Older People, Phys Disabilities & Equip",Community Support Budget - Banbury,Other Agency and Contracted Services,57401,Direct Payments,05/11/2014,3301832719,896,WK2 Advance Housing & Support
http://statistics.data.gov.uk/id/local-authority/38,Oxfordshire County Council,"Older People, Phys Disabilities & Equip",Community Support Budget - Thame,Other Agency and Contracted Services,57401,Direct Payments,05/11/2014,3301832720,560,WK2 Advance Housing & Support
http://statistics.data.gov.uk/id/local-authority/38,Oxfordshire County Council,"Older People, Phys Disabilities & Equip",Community Support Budget - Thame,Other Agency and Contracted Services,57401,Direct Payments,05/11/2014,3301832720,540,WK2 Advance Housing & Support
http://statistics.data.gov.uk/id/local-authority/38,Oxfordshire County Council,"Older People, Phys Disabilities & Equip",Community Support Budget - Banbury,Other Agency and Contracted Services,57401,Direct Payments,05/11/2014,3301832721,1008,WK2 Advance Housing & Support
http://statistics.data.gov.uk/id/local-authority/38,Oxfordshire County Council,"Older People, Phys Disabilities & Equip",PD Community Support Budget - Kidlington,Other Agency and Contracted Services,57401,Direct Payments,05/11/2014,3301832722,748,WK2 Advance Housing & Support
http://statistics.data.gov.uk/id/local-authority/38,Oxfordshire County Council,"Older People, Phys Disabilities & Equip",Community Support Budget - Abingdon,Other Agency and Contracted Services,57401,Direct Payments,05/11/2014,3301832723,1772,WK2 Advance Housing & Support
http://statistics.data.gov.uk/id/local-authority/38,Oxfordshire County Council,"Older People, Phys Disabilities & Equip",Community Support Budget - Witney,Other Agency and Contracted Services,57401,Direct Payments,05/11/2014,3301832724,2829.08,WK2 Advance Housing & Support
http://statistics.data.gov.uk/id/local-authority/38,Oxfordshire County Council,"Older People, Phys Disabilities & Equip",Community Support Budget - Banbury,Other Agency and Contracted Services,57401,Direct Payments,05/11/2014,3301832727,1964,WK2 Advance Housing & Support
http://statistics.data.gov.uk/id/local-authority/38,Oxfordshire County Council,"Older People, Phys Disabilities & Equip",Community Support Budget - Abingdon,Other Agency and Contracted Services,57401,Direct Payments,05/11/2014,3301832730,1052,WK2 Advance Housing & Support
http://statistics.data.gov.uk/id/local-authority/38,Oxfordshire County Council,"Older People, Phys Disabilities & Equip",Community Support Budget - Bicester,Other Agency and Contracted Services,57401,Direct Payments,05/11/2014,3301832731,1922,WK2 Advance Housing & Support
http://statistics.data.gov.uk/id/local-authority/38,Oxfordshire County Council,"Older People, Phys Disabilities & Equip",Community Support Budget - Bicester,Other Agency and Contracted Services,57401,Direct Payments,05/11/2014,3301832734,1040,WK2 Advance Housing & Support
http://statistics.data.gov.uk/id/local-authority/38,Oxfordshire County Council,"Older People, Phys Disabilities & Equip",Community Support Budget - Banbury,Other Agency and Contracted Services,57401,Direct Payments,05/11/2014,3301832735,556,WK2 Advance Housing & Support
http://statistics.data.gov.uk/id/local-authority/38,Oxfordshire County Council,"Older People, Phys Disabilities & Equip",Community Support Budget - Thame,Other Agency and Contracted Services,57401,Direct Payments,05/11/2014,3301832736,3216,WK2 Advance Housing & Support
http://statistics.data.gov.uk/id/local-authority/38,Oxfordshire County Council,Learning  Disabilities Pooled Budget,Direct Payments City Team,Other Agency and Contracted Services,57401,Direct Payments,05/11/2014,3301832737,564,WK2 Advance Housing & Support
http://statistics.data.gov.uk/id/local-authority/38,Oxfordshire County Council,"Older People, Phys Disabilities & Equip",PD CS Purch Budget - Health S28a JC,Other Agency and Contracted Services,57401,Direct Payments,05/11/2014,3301832738,709.2,WK2 Advance Housing & Support
http://statistics.data.gov.uk/id/local-authority/38,Oxfordshire County Council,"Older People, Phys Disabilities & Equip",PD Comm Supp Budget - Banbury,Other Agency and Contracted Services,57401,Direct Payments,05/11/2014,3301832738,3258.8,WK2 Advance Housing & Support
http://statistics.data.gov.uk/id/local-authority/38,Oxfordshire County Council,"Older People, Phys Disabilities & Equip",Community Support Budget - Witney,Other Agency and Contracted Services,57401,Direct Payments,05/11/2014,3301832739,500,WK2 Advance Housing & Support
http://statistics.data.gov.uk/id/local-authority/38,Oxfordshire County Council,"Older People, Phys Disabilities & Equip",PHB OP Package,Other Agency and Contracted Services,57401,Direct Payments,05/11/2014,3301832740,4167.6,WK2 Advance Housing & Support
http://statistics.data.gov.uk/id/local-authority/38,Oxfordshire County Council,"Older People, Phys Disabilities & Equip",PHB OP Package,Other Agency and Contracted Services,57401,Direct Payments,05/11/2014,3301832740,3572.23,WK2 Advance Housing & Support
http://statistics.data.gov.uk/id/local-authority/38,Oxfordshire County Council,"Older People, Phys Disabilities & Equip",Community Support Budget - City,Other Agency and Contracted Services,57401,Direct Payments,05/11/2014,3301832740,-1320.24,WK2 Advance Housing & Support
http://statistics.data.gov.uk/id/local-authority/38,Oxfordshire County Council,"Older People, Phys Disabilities & Equip",OP Pool Continuing Care Delegated Health,Other Agency and Contracted Services,57401,Direct Payments,05/11/2014,3301832740,-798.62,WK2 Advance Housing & Support
http://statistics.data.gov.uk/id/local-authority/38,Oxfordshire County Council,Learning  Disabilities Pooled Budget,Direct Payments South Team,Other Agency and Contracted Services,57401,Direct Payments,05/11/2014,3301832742,935.4,WK2 Advance Housing & Support
http://statistics.data.gov.uk/id/local-authority/38,Oxfordshire County Council,Learning  Disabilities Pooled Budget,Direct Payments City Team,Other Agency and Contracted Services,57401,Direct Payments,05/11/2014,3301832743,2756,WK2 Advance Housing & Support
http://statistics.data.gov.uk/id/local-authority/38,Oxfordshire County Council,Learning  Disabilities Pooled Budget,Direct Payments City Team,Other Agency and Contracted Services,57401,Direct Payments,05/11/2014,3301832744,1500,WK2 Advance Housing & Support
http://statistics.data.gov.uk/id/local-authority/38,Oxfordshire County Council,Learning  Disabilities Pooled Budget,Direct Payments North Team,Other Agency and Contracted Services,57401,Direct Payments,05/11/2014,3301832745,11586.4,WK2 Advance Housing & Support
http://statistics.data.gov.uk/id/local-authority/38,Oxfordshire County Council,Learning  Disabilities Pooled Budget,Direct Payments North Team,Other Agency and Contracted Services,57401,Direct Payments,05/11/2014,3301832745,-46090.8,WK2 Advance Housing & Support
http://statistics.data.gov.uk/id/local-authority/38,Oxfordshire County Council,Learning  Disabilities Pooled Budget,Direct Payments North Team,Other Agency and Contracted Services,57401,Direct Payments,05/11/2014,3301832745,52138.8,WK2 Advance Housing & Support
http://statistics.data.gov.uk/id/local-authority/38,Oxfordshire County Council,Learning  Disabilities Pooled Budget,Direct Payments North Team,Other Agency and Contracted Services,57401,Direct Payments,05/11/2014,3301832746,2093.16,WK2 Advance Housing & Support
http://statistics.data.gov.uk/id/local-authority/38,Oxfordshire County Council,"Older People, Phys Disabilities & Equip",PD Comm Supp Budgt - Bicester/Kidlington,Other Agency and Contracted Services,57401,Direct Payments,05/11/2014,3301832747,2184,WK2 Advance Housing & Support
http://statistics.data.gov.uk/id/local-authority/38,Oxfordshire County Council,"Older People, Phys Disabilities & Equip",Community Support Budget - Kidlington,Other Agency and Contracted Services,57401,Direct Payments,05/11/2014,3301832748,1436,WK2 Advance Housing & Support
http://statistics.data.gov.uk/id/local-authority/38,Oxfordshire County Council,"Older People, Phys Disabilities & Equip",Community Support Budget - Witney,Other Agency and Contracted Services,57401,Direct Payments,05/11/2014,3301832749,1968,WK2 Advance Housing & Support
http://statistics.data.gov.uk/id/local-authority/38,Oxfordshire County Council,Learning  Disabilities Pooled Budget,Direct Payments South Team,Other Agency and Contracted Services,57401,Direct Payments,05/11/2014,3301832750,614.76,WK2 Advance Housing & Support
http://statistics.data.gov.uk/id/local-authority/38,Oxfordshire County Council,"Older People, Phys Disabilities & Equip",Community Support Budget - Wantage,Other Agency and Contracted Services,57401,Direct Payments,05/11/2014,3301832751,596,WK2 Advance Housing & Support
http://statistics.data.gov.uk/id/local-authority/38,Oxfordshire County Council,"Older People, Phys Disabilities & Equip",Community Support Budget - Wantage,Other Agency and Contracted Services,57401,Direct Payments,05/11/2014,3301832753,1556,WK2 Advance Housing & Support
http://statistics.data.gov.uk/id/local-authority/38,Oxfordshire County Council,Learning  Disabilities Pooled Budget,Direct Payments North Team,Other Agency and Contracted Services,57401,Direct Payments,05/11/2014,3301832754,2164.48,WK2 Advance Housing & Support
http://statistics.data.gov.uk/id/local-authority/38,Oxfordshire County Council,"Older People, Phys Disabilities & Equip",Community Support Budget - Witney,Other Agency and Contracted Services,57401,Direct Payments,05/11/2014,3301832756,2364.6,WK2 Advance Housing & Support
http://statistics.data.gov.uk/id/local-authority/38,Oxfordshire County Council,"Older People, Phys Disabilities & Equip",Community Support Budget - Abingdon,Other Agency and Contracted Services,57401,Direct Payments,05/11/2014,3301832757,948,WK2 Advance Housing & Support
http://statistics.data.gov.uk/id/local-authority/38,Oxfordshire County Council,Learning  Disabilities Pooled Budget,Direct Payments City Team,Other Agency and Contracted Services,57401,Direct Payments,05/11/2014,3301832758,2524,WK2 Advance Housing & Support
http://statistics.data.gov.uk/id/local-authority/38,Oxfordshire County Council,"Older People, Phys Disabilities & Equip",Community Support Budget - City,Other Agency and Contracted Services,57401,Direct Payments,05/11/2014,3301832762,1104,WK2 Advance Housing & Support
http://statistics.data.gov.uk/id/local-authority/38,Oxfordshire County Council,"Older People, Phys Disabilities & Equip",Community Support Budget - Abingdon,Other Agency and Contracted Services,57401,Direct Payments,05/11/2014,3301832763,760,WK2 Advance Housing & Support
http://statistics.data.gov.uk/id/local-authority/38,Oxfordshire County Council,"Older People, Phys Disabilities & Equip",Community Support Budget - Didcot,Other Agency and Contracted Services,57401,Direct Payments,05/11/2014,3301832764,1352,WK2 Advance Housing & Support
http://statistics.data.gov.uk/id/local-authority/38,Oxfordshire County Council,"Older People, Phys Disabilities & Equip",PD Comm Supp Purchasg Budget - City,Other Agency and Contracted Services,57401,Direct Payments,05/11/2014,3301832765,1252,WK2 Advance Housing & Support
http://statistics.data.gov.uk/id/local-authority/38,Oxfordshire County Council,Learning  Disabilities Pooled Budget,Direct Payments City Team,Other Agency and Contracted Services,57401,Direct Payments,05/11/2014,3301832767,1606,WK2 Advance Housing & Support
http://statistics.data.gov.uk/id/local-authority/38,Oxfordshire County Council,"Older People, Phys Disabilities & Equip",Community Support Budget - Chipping Nort,Other Agency and Contracted Services,57401,Direct Payments,05/11/2014,3301832768,1932,WK2 Advance Housing & Support
http://statistics.data.gov.uk/id/local-authority/38,Oxfordshire County Council,"Older People, Phys Disabilities & Equip",Community Support Budget - Abingdon,Other Agency and Contracted Services,57401,Direct Payments,05/11/2014,3301832769,922.72,WK2 Advance Housing & Support
http://statistics.data.gov.uk/id/local-authority/38,Oxfordshire County Council,"Older People, Phys Disabilities & Equip",Community Support Budget - City,Other Agency and Contracted Services,57401,Direct Payments,05/11/2014,3301832771,1112,WK2 Advance Housing & Support
http://statistics.data.gov.uk/id/local-authority/38,Oxfordshire County Council,"Older People, Phys Disabilities & Equip",Community Support Budget - Wantage,Other Agency and Contracted Services,57401,Direct Payments,05/11/2014,3301832772,3224,WK2 Advance Housing & Support
http://statistics.data.gov.uk/id/local-authority/38,Oxfordshire County Council,"Older People, Phys Disabilities & Equip",PD Comm Supp Purchasg Budget - Witney,Other Agency and Contracted Services,57401,Direct Payments,05/11/2014,3301832773,4760,WK2 Advance Housing & Support
http://statistics.data.gov.uk/id/local-authority/38,Oxfordshire County Council,"Older People, Phys Disabilities & Equip",Community Support Budget - Banbury,Other Agency and Contracted Services,57401,Direct Payments,05/11/2014,3301832774,812,WK2 Advance Housing & Support
http://statistics.data.gov.uk/id/local-authority/38,Oxfordshire County Council,"Older People, Phys Disabilities & Equip",Community Support Budget - Witney,Other Agency and Contracted Services,57401,Direct Payments,05/11/2014,3301832775,1088,WK2 Advance Housing & Support
http://statistics.data.gov.uk/id/local-authority/38,Oxfordshire County Council,"Older People, Phys Disabilities & Equip",Community Support Budget - Faringdon,Other Agency and Contracted Services,57401,Direct Payments,05/11/2014,3301832776,860,WK2 Advance Housing & Support
http://statistics.data.gov.uk/id/local-authority/38,Oxfordshire County Council,Learning  Disabilities Pooled Budget,Direct Payments South Team,Other Agency and Contracted Services,57401,Direct Payments,05/11/2014,3301832777,600,WK2 Advance Housing & Support
http://statistics.data.gov.uk/id/local-authority/38,Oxfordshire County Council,"Older People, Phys Disabilities & Equip",Community Support Budget - Banbury,Other Agency and Contracted Services,57401,Direct Payments,05/11/2014,3301832780,636,WK2 Advance Housing & Support
http://statistics.data.gov.uk/id/local-authority/38,Oxfordshire County Council,Learning  Disabilities Pooled Budget,Direct Payments North Team,Other Agency and Contracted Services,57401,Direct Payments,05/11/2014,3301832781,7366.68,WK2 Advance Housing & Support
http://statistics.data.gov.uk/id/local-authority/38,Oxfordshire County Council,Learning  Disabilities Pooled Budget,Direct Payments North Team,Other Agency and Contracted Services,57401,Direct Payments,05/11/2014,3301832786,1446.92,WK2 Advance Housing & Support
http://statistics.data.gov.uk/id/local-authority/38,Oxfordshire County Council,"Older People, Phys Disabilities & Equip",Community Support Budget - City,Other Agency and Contracted Services,57401,Direct Payments,05/11/2014,3301832788,2214.86,WK2 Advance Housing & Support
http://statistics.data.gov.uk/id/local-authority/38,Oxfordshire County Council,"Older People, Phys Disabilities & Equip",Community Support Budget - City,Other Agency and Contracted Services,57401,Direct Payments,05/11/2014,3301832788,-631.43,WK2 Advance Housing & Support
http://statistics.data.gov.uk/id/local-authority/38,Oxfordshire County Council,Learning  Disabilities Pooled Budget,Direct Payments City Team,Other Agency and Contracted Services,57401,Direct Payments,05/11/2014,3301832789,683.24,WK2 Advance Housing & Support
http://statistics.data.gov.uk/id/local-authority/38,Oxfordshire County Council,"Older People, Phys Disabilities & Equip",Community Support Budget - Banbury,Other Agency and Contracted Services,57401,Direct Payments,05/11/2014,3301832790,600,WK2 Advance Housing & Support
http://statistics.data.gov.uk/id/local-authority/38,Oxfordshire County Council,"Older People, Phys Disabilities & Equip",Community Support Budget - Abingdon,Other Agency and Contracted Services,57401,Direct Payments,05/11/2014,3301832791,2376,WK2 Advance Housing & Support
http://statistics.data.gov.uk/id/local-authority/38,Oxfordshire County Council,"Older People, Phys Disabilities & Equip",Community Support Budget - City,Other Agency and Contracted Services,57401,Direct Payments,05/11/2014,3301832793,2052,WK2 Advance Housing & Support
http://statistics.data.gov.uk/id/local-authority/38,Oxfordshire County Council,Learning  Disabilities Pooled Budget,Direct Payments North Team,Other Agency and Contracted Services,57401,Direct Payments,05/11/2014,3301832795,1718.84,WK2 Advance Housing & Support
http://statistics.data.gov.uk/id/local-authority/38,Oxfordshire County Council,"Older People, Phys Disabilities & Equip",Community Support Budget - Didcot,Other Agency and Contracted Services,57401,Direct Payments,05/11/2014,3301832796,1387.24,WK2 Advance Housing & Support
http://statistics.data.gov.uk/id/local-authority/38,Oxfordshire County Council,"Older People, Phys Disabilities & Equip",PD Comm Supp Purchasg Budget - City,Other Agency and Contracted Services,57401,Direct Payments,05/11/2014,3301832797,560,WK2 Advance Housing & Support
http://statistics.data.gov.uk/id/local-authority/38,Oxfordshire County Council,"Older People, Phys Disabilities & Equip",Community Support Budget - Kidlington,Other Agency and Contracted Services,57401,Direct Payments,05/11/2014,3301832799,1452,WK2 Advance Housing & Support
http://statistics.data.gov.uk/id/local-authority/38,Oxfordshire County Council,"Older People, Phys Disabilities & Equip",Community Support Budget - City,Other Agency and Contracted Services,57401,Direct Payments,05/11/2014,3301832800,2760,WK2 Advance Housing & Support
http://statistics.data.gov.uk/id/local-authority/38,Oxfordshire County Council,"Older People, Phys Disabilities & Equip",PD Comm Supp Purchasg Budget - Abingdon,Other Agency and Contracted Services,57401,Direct Payments,05/11/2014,3301832801,928,WK2 Advance Housing & Support
http://statistics.data.gov.uk/id/local-authority/38,Oxfordshire County Council,Learning  Disabilities Pooled Budget,Direct Payments North Team,Other Agency and Contracted Services,57401,Direct Payments,05/11/2014,3301832804,2195.52,WK2 Advance Housing & Support
http://statistics.data.gov.uk/id/local-authority/38,Oxfordshire County Council,"Older People, Phys Disabilities & Equip",Community Support Budget - Bicester,Other Agency and Contracted Services,57401,Direct Payments,05/11/2014,3301832805,920,WK2 Advance Housing & Support
http://statistics.data.gov.uk/id/local-authority/38,Oxfordshire County Council,"Older People, Phys Disabilities & Equip",PD Comm Supp Budget - Banbury,Other Agency and Contracted Services,57401,Direct Payments,05/11/2014,3301832806,808,WK2 Advance Housing & Support
http://statistics.data.gov.uk/id/local-authority/38,Oxfordshire County Council,Learning  Disabilities Pooled Budget,Direct Payments South Team,Other Agency and Contracted Services,57401,Direct Payments,05/11/2014,3301832807,-2911.42,WK2 Advance Housing & Support
http://statistics.data.gov.uk/id/local-authority/38,Oxfordshire County Council,Learning  Disabilities Pooled Budget,Direct Payments South Team,Other Agency and Contracted Services,57401,Direct Payments,05/11/2014,3301832807,2965.24,WK2 Advance Housing & Support
http://statistics.data.gov.uk/id/local-authority/38,Oxfordshire County Council,Learning  Disabilities Pooled Budget,Direct Payments South Team,Other Agency and Contracted Services,57401,Direct Payments,05/11/2014,3301832807,2407.96,WK2 Advance Housing & Support
http://statistics.data.gov.uk/id/local-authority/38,Oxfordshire County Council,Learning  Disabilities Pooled Budget,Direct Payments North Team,Other Agency and Contracted Services,57401,Direct Payments,05/11/2014,3301832808,764.92,WK2 Advance Housing & Support
http://statistics.data.gov.uk/id/local-authority/38,Oxfordshire County Council,"Older People, Phys Disabilities & Equip",Community Support Budget - Witney,Other Agency and Contracted Services,57401,Direct Payments,05/11/2014,3301832809,1520,WK2 Advance Housing & Support
http://statistics.data.gov.uk/id/local-authority/38,Oxfordshire County Council,"Older People, Phys Disabilities & Equip",PD Comm Supp Purchasg Budget - Thame,Other Agency and Contracted Services,57401,Direct Payments,05/11/2014,3301832810,1108,WK2 Advance Housing & Support
http://statistics.data.gov.uk/id/local-authority/38,Oxfordshire County Council,Adult Social Care,MH Community Sup't,Other Agency and Contracted Services,57401,Direct Payments,05/11/2014,3301832811,864,WK2 Advance Housing & Support
http://statistics.data.gov.uk/id/local-authority/38,Oxfordshire County Council,"Older People, Phys Disabilities & Equip",Community Support Budget - Banbury,Other Agency and Contracted Services,57401,Direct Payments,05/11/2014,3301832813,714,WK2 Advance Housing & Support
http://statistics.data.gov.uk/id/local-authority/38,Oxfordshire County Council,Learning  Disabilities Pooled Budget,Direct Payments City Team,Other Agency and Contracted Services,57401,Direct Payments,05/11/2014,3301832815,1678.24,WK2 Advance Housing & Support
http://statistics.data.gov.uk/id/local-authority/38,Oxfordshire County Council,"Older People, Phys Disabilities & Equip",Community Support Budget - City,Other Agency and Contracted Services,57401,Direct Payments,05/11/2014,3301832816,1260,WK2 Advance Housing & Support
http://statistics.data.gov.uk/id/local-authority/38,Oxfordshire County Council,Learning  Disabilities Pooled Budget,Direct Payments City Team,Other Agency and Contracted Services,57401,Direct Payments,05/11/2014,3301832817,6293.06,WK2 Advance Housing & Support
http://statistics.data.gov.uk/id/local-authority/38,Oxfordshire County Council,"Older People, Phys Disabilities & Equip",OP Pool Continuing Care Delegated Health,Other Agency and Contracted Services,57401,Direct Payments,05/11/2014,3301832818,1288,WK2 Advance Housing & Support
http://statistics.data.gov.uk/id/local-authority/38,Oxfordshire County Council,"Older People, Phys Disabilities & Equip",Community Support Budget - City,Other Agency and Contracted Services,57401,Direct Payments,05/11/2014,3301832818,2316,WK2 Advance Housing & Support
http://statistics.data.gov.uk/id/local-authority/38,Oxfordshire County Council,Learning  Disabilities Pooled Budget,Direct Payments North Team,Other Agency and Contracted Services,57401,Direct Payments,05/11/2014,3301832819,1516,WK2 Advance Housing & Support
http://statistics.data.gov.uk/id/local-authority/38,Oxfordshire County Council,"Older People, Phys Disabilities & Equip",PD Comm Supp Purchasg Budget - Witney,Other Agency and Contracted Services,57401,Direct Payments,05/11/2014,3301832820,3191.88,WK2 Advance Housing & Support
http://statistics.data.gov.uk/id/local-authority/38,Oxfordshire County Council,Learning  Disabilities Pooled Budget,Direct Payments City Team,Other Agency and Contracted Services,57401,Direct Payments,05/11/2014,3301832821,2613,WK2 Advance Housing & Support
http://statistics.data.gov.uk/id/local-authority/38,Oxfordshire County Council,Learning  Disabilities Pooled Budget,Direct Payments City Team,Other Agency and Contracted Services,57401,Direct Payments,05/11/2014,3301832821,1126.6,WK2 Advance Housing & Support
http://statistics.data.gov.uk/id/local-authority/38,Oxfordshire County Council,Learning  Disabilities Pooled Budget,Direct Payments North Team,Other Agency and Contracted Services,57401,Direct Payments,05/11/2014,3301832823,841.16,WK2 Advance Housing & Support
http://statistics.data.gov.uk/id/local-authority/38,Oxfordshire County Council,Learning  Disabilities Pooled Budget,Direct Payments South Team,Other Agency and Contracted Services,57401,Direct Payments,05/11/2014,3301832825,909,WK2 Advance Housing & Support
http://statistics.data.gov.uk/id/local-authority/38,Oxfordshire County Council,"Older People, Phys Disabilities & Equip",PD Comm Supp Purchasg Budget - Abingdon,Other Agency and Contracted Services,57401,Direct Payments,05/11/2014,3301832826,984,WK2 Advance Housing & Support
http://statistics.data.gov.uk/id/local-authority/38,Oxfordshire County Council,Learning  Disabilities Pooled Budget,Direct Payments City Team,Other Agency and Contracted Services,57401,Direct Payments,05/11/2014,3301832827,3549.84,WK2 Advance Housing & Support
http://statistics.data.gov.uk/id/local-authority/38,Oxfordshire County Council,"Older People, Phys Disabilities & Equip",Community Support Budget - Abingdon,Other Agency and Contracted Services,57401,Direct Payments,05/11/2014,3301832828,1424,WK2 Advance Housing & Support
http://statistics.data.gov.uk/id/local-authority/38,Oxfordshire County Council,Learning  Disabilities Pooled Budget,Direct Payments South Team,Other Agency and Contracted Services,57401,Direct Payments,05/11/2014,3301832829,1826.32,WK2 Advance Housing & Support
http://statistics.data.gov.uk/id/local-authority/38,Oxfordshire County Council,"Older People, Phys Disabilities & Equip",Community Support Budget - Abingdon,Other Agency and Contracted Services,57401,Direct Payments,05/11/2014,3301832830,3081,WK2 Advance Housing & Support
http://statistics.data.gov.uk/id/local-authority/38,Oxfordshire County Council,"Older People, Phys Disabilities & Equip",PD Comm Supp Purchasg Budget - Abingdon,Other Agency and Contracted Services,57401,Direct Payments,05/11/2014,3301832831,883.12,WK2 Advance Housing & Support
http://statistics.data.gov.uk/id/local-authority/38,Oxfordshire County Council,"Older People, Phys Disabilities & Equip",PD Comm Supp Purchasg Budget - City,Other Agency and Contracted Services,57401,Direct Payments,05/11/2014,3301832832,544,WK2 Advance Housing & Support
http://statistics.data.gov.uk/id/local-authority/38,Oxfordshire County Council,"Older People, Phys Disabilities & Equip",PD Comm Supp Purchasg Budget - Abingdon,Other Agency and Contracted Services,57401,Direct Payments,05/11/2014,3301832833,700,WK2 Advance Housing & Support
http://statistics.data.gov.uk/id/local-authority/38,Oxfordshire County Council,"Older People, Phys Disabilities & Equip",PD Comm Supp Purchasg Budget - City,Other Agency and Contracted Services,57401,Direct Payments,05/11/2014,3301832834,1029.32,WK2 Advance Housing & Support
http://statistics.data.gov.uk/id/local-authority/38,Oxfordshire County Council,"Older People, Phys Disabilities & Equip",Personal Health Budgets PD (PCT),Other Agency and Contracted Services,57401,Direct Payments,05/11/2014,3301832836,9596.24,WK2 Advance Housing & Support
http://statistics.data.gov.uk/id/local-authority/38,Oxfordshire County Council,Learning  Disabilities Pooled Budget,Direct Payments City Team,Other Agency and Contracted Services,57401,Direct Payments,05/11/2014,3301832839,592,WK2 Advance Housing & Support
http://statistics.data.gov.uk/id/local-authority/38,Oxfordshire County Council,Learning  Disabilities Pooled Budget,Direct Payments City Team,Other Agency and Contracted Services,57401,Direct Payments,05/11/2014,3301832840,7999.6,WK2 Advance Housing & Support
http://statistics.data.gov.uk/id/local-authority/38,Oxfordshire County Council,"Older People, Phys Disabilities & Equip",Community Support Budget - Bicester,Other Agency and Contracted Services,57401,Direct Payments,05/11/2014,3301832843,1400,WK2 Advance Housing & Support
http://statistics.data.gov.uk/id/local-authority/38,Oxfordshire County Council,"Older People, Phys Disabilities & Equip",PD Comm Supp Purchasg Budget - City,Other Agency and Contracted Services,57401,Direct Payments,05/11/2014,3301832844,1040,WK2 Advance Housing & Support
http://statistics.data.gov.uk/id/local-authority/38,Oxfordshire County Council,Learning  Disabilities Pooled Budget,Direct Payments South Team,Other Agency and Contracted Services,57401,Direct Payments,05/11/2014,3301832845,908.18,WK2 Advance Housing & Support
http://statistics.data.gov.uk/id/local-authority/38,Oxfordshire County Council,"Older People, Phys Disabilities & Equip",PD Comm Supp Purchasg Budget - Witney,Other Agency and Contracted Services,57401,Direct Payments,05/11/2014,3301832846,1360,WK2 Advance Housing & Support
http://statistics.data.gov.uk/id/local-authority/38,Oxfordshire County Council,Learning  Disabilities Pooled Budget,Continuing Health Care,Other Agency and Contracted Services,57401,Direct Payments,05/11/2014,3301832847,14344.96,WK2 Advance Housing & Support
http://statistics.data.gov.uk/id/local-authority/38,Oxfordshire County Council,Learning  Disabilities Pooled Budget,Direct Payments South Team,Other Agency and Contracted Services,57401,Direct Payments,05/11/2014,3301832850,5024.32,WK2 Advance Housing & Support
http://statistics.data.gov.uk/id/local-authority/38,Oxfordshire County Council,"Older People, Phys Disabilities & Equip",PD Comm Supp Purchasg Budget - Thame,Other Agency and Contracted Services,57401,Direct Payments,05/11/2014,3301832851,4480,WK2 Advance Housing & Support
http://statistics.data.gov.uk/id/local-authority/38,Oxfordshire County Council,"Older People, Phys Disabilities & Equip",OP Pool Continuing Care Delegated Health,Other Agency and Contracted Services,57401,Direct Payments,05/11/2014,3301832852,919.6,WK2 Advance Housing & Support
http://statistics.data.gov.uk/id/local-authority/38,Oxfordshire County Council,"Older People, Phys Disabilities & Equip",Community Support Budget - City,Other Agency and Contracted Services,57401,Direct Payments,05/11/2014,3301832852,3496.4,WK2 Advance Housing & Support
http://statistics.data.gov.uk/id/local-authority/38,Oxfordshire County Council,"Older People, Phys Disabilities & Equip",PD Comm Supp Purchasg Budget - Didcot,Other Agency and Contracted Services,57401,Direct Payments,05/11/2014,3301832853,540,WK2 Advance Housing & Support
http://statistics.data.gov.uk/id/local-authority/38,Oxfordshire County Council,"Older People, Phys Disabilities & Equip",PD Comm Supp Purchasg Budget - Didcot,Other Agency and Contracted Services,57401,Direct Payments,05/11/2014,3301832854,3111,WK2 Advance Housing & Support
http://statistics.data.gov.uk/id/local-authority/38,Oxfordshire County Council,"Older People, Phys Disabilities & Equip",Community Support Budget - Banbury,Other Agency and Contracted Services,57401,Direct Payments,05/11/2014,3301832855,1184,WK2 Advance Housing & Support
http://statistics.data.gov.uk/id/local-authority/38,Oxfordshire County Council,"Older People, Phys Disabilities & Equip",PD CS Purch Budget - Health S28a JC,Other Agency and Contracted Services,57401,Direct Payments,05/11/2014,3301832856,1288,WK2 Advance Housing & Support
http://statistics.data.gov.uk/id/local-authority/38,Oxfordshire County Council,"Older People, Phys Disabilities & Equip",PD Comm Supp Purchasg Budget - Witney,Other Agency and Contracted Services,57401,Direct Payments,05/11/2014,3301832856,1455.16,WK2 Advance Housing & Support
http://statistics.data.gov.uk/id/local-authority/38,Oxfordshire County Council,"Older People, Phys Disabilities & Equip",Community Support Budget - Banbury,Other Agency and Contracted Services,57401,Direct Payments,05/11/2014,3301832858,1076,WK2 Advance Housing & Support
http://statistics.data.gov.uk/id/local-authority/38,Oxfordshire County Council,Learning  Disabilities Pooled Budget,Direct Payments North Team,Other Agency and Contracted Services,57401,Direct Payments,05/11/2014,3301832859,591,WK2 Advance Housing & Support
http://statistics.data.gov.uk/id/local-authority/38,Oxfordshire County Council,"Older People, Phys Disabilities & Equip",Community Support Budget - Banbury,Other Agency and Contracted Services,57401,Direct Payments,05/11/2014,3301832860,1360,WK2 Advance Housing & Support
http://statistics.data.gov.uk/id/local-authority/38,Oxfordshire County Council,"Older People, Phys Disabilities & Equip",Community Support Budget - Banbury,Other Agency and Contracted Services,57401,Direct Payments,05/11/2014,3301832861,1100,WK2 Advance Housing & Support
http://statistics.data.gov.uk/id/local-authority/38,Oxfordshire County Council,"Older People, Phys Disabilities & Equip",Community Support Budget - Banbury,Other Agency and Contracted Services,57401,Direct Payments,05/11/2014,3301832861,2160.71,WK2 Advance Housing & Support
http://statistics.data.gov.uk/id/local-authority/38,Oxfordshire County Council,"Older People, Phys Disabilities & Equip",Community Support Budget - Banbury,Other Agency and Contracted Services,57401,Direct Payments,05/11/2014,3301832861,-1893.57,WK2 Advance Housing & Support
http://statistics.data.gov.uk/id/local-authority/38,Oxfordshire County Council,"Older People, Phys Disabilities & Equip",Community Support Budget - Banbury,Other Agency and Contracted Services,57401,Direct Payments,05/11/2014,3301832862,1260,WK2 Advance Housing & Support
http://statistics.data.gov.uk/id/local-authority/38,Oxfordshire County Council,"Older People, Phys Disabilities & Equip",Community Support Budget - Banbury,Other Agency and Contracted Services,57401,Direct Payments,05/11/2014,3301832864,1520,WK2 Advance Housing & Support
http://statistics.data.gov.uk/id/local-authority/38,Oxfordshire County Council,"Older People, Phys Disabilities & Equip",Community Support Budget - Witney,Other Agency and Contracted Services,57401,Direct Payments,05/11/2014,3301832867,968,WK2 Advance Housing & Support
http://statistics.data.gov.uk/id/local-authority/38,Oxfordshire County Council,"Older People, Phys Disabilities & Equip",PD Comm Supp Purchasg Budget - Chip. N.,Other Agency and Contracted Services,57401,Direct Payments,05/11/2014,3301832869,2063,WK2 Advance Housing & Support
http://statistics.data.gov.uk/id/local-authority/38,Oxfordshire County Council,"Older People, Phys Disabilities & Equip",PD Comm Supp Purchasg Budget - City,Other Agency and Contracted Services,57401,Direct Payments,05/11/2014,3301832870,3440,WK2 Advance Housing & Support
http://statistics.data.gov.uk/id/local-authority/38,Oxfordshire County Council,"Older People, Phys Disabilities & Equip",Community Support Budget - Didcot,Other Agency and Contracted Services,57401,Direct Payments,05/11/2014,3301832872,800,WK2 Advance Housing & Support
http://statistics.data.gov.uk/id/local-authority/38,Oxfordshire County Council,"Older People, Phys Disabilities & Equip",Community Support Budget - Banbury,Other Agency and Contracted Services,57401,Direct Payments,05/11/2014,3301832874,616,WK2 Advance Housing & Support
http://statistics.data.gov.uk/id/local-authority/38,Oxfordshire County Council,"Older People, Phys Disabilities & Equip",Community Support Budget - Witney,Other Agency and Contracted Services,57401,Direct Payments,05/11/2014,3301832875,1068,WK2 Advance Housing & Support
http://statistics.data.gov.uk/id/local-authority/38,Oxfordshire County Council,"Older People, Phys Disabilities & Equip",Community Support Budget - Bicester,Other Agency and Contracted Services,57401,Direct Payments,05/11/2014,3301832878,1196,WK2 Advance Housing & Support
http://statistics.data.gov.uk/id/local-authority/38,Oxfordshire County Council,"Older People, Phys Disabilities & Equip",Community Support Budget - City,Other Agency and Contracted Services,57401,Direct Payments,05/11/2014,3301832879,521.6,WK2 Advance Housing & Support
http://statistics.data.gov.uk/id/local-authority/38,Oxfordshire County Council,"Older People, Phys Disabilities & Equip",Community Support Budget - Banbury,Other Agency and Contracted Services,57401,Direct Payments,05/11/2014,3301832880,880,WK2 Advance Housing & Support
http://statistics.data.gov.uk/id/local-authority/38,Oxfordshire County Council,Adult Social Care,MH Community Sup't,Other Agency and Contracted Services,57401,Direct Payments,05/11/2014,3301832932,580,REDACTED PERSONAL DATA
http://statistics.data.gov.uk/id/local-authority/38,Oxfordshire County Council,"Older People, Phys Disabilities & Equip",PHB OP Package,Other Agency and Contracted Services,57401,Direct Payments,05/11/2014,3301832974,1090.87,WK2 Advance Housing & Support
http://statistics.data.gov.uk/id/local-authority/38,Oxfordshire County Council,Chief Executive & Business Support,Councillor Community Budgets,Grants and Subscriptions,47100,Grants to Voluntary,05/11/2014,3301833131,1000,Woodcote Parish Council
http://statistics.data.gov.uk/id/local-authority/38,Oxfordshire County Council,Chief Executive & Business Support,Councillor Community Budgets,Grants and Subscriptions,47100,Grants to Voluntary,05/11/2014,3301833132,1000,6th Banbury Scout Group
http://statistics.data.gov.uk/id/local-authority/38,Oxfordshire County Council,Chief Executive & Business Support,Councillor Community Budgets,Grants and Subscriptions,47100,Grants to Voluntary,05/11/2014,3301833133,500,Aston Parish Community Mini Bus Acc
http://statistics.data.gov.uk/id/local-authority/38,Oxfordshire County Council,Chief Executive & Business Support,Councillor Community Budgets,Grants and Subscriptions,47100,Grants to Voluntary,05/11/2014,3301833134,1500,Friends of Kennington Library
http://statistics.data.gov.uk/id/local-authority/38,Oxfordshire County Council,Chief Executive & Business Support,Councillor Community Budgets,Grants and Subscriptions,47100,Grants to Voluntary,05/11/2014,3301833136,1000,"St Leonard's Church, Grimsbury"
http://statistics.data.gov.uk/id/local-authority/38,Oxfordshire County Council,Chief Executive & Business Support,Councillor Community Budgets,Grants and Subscriptions,47100,Grants to Voluntary,05/11/2014,3301833137,500,Tiddy Hall Trustees
http://statistics.data.gov.uk/id/local-authority/38,Oxfordshire County Council,Chief Executive & Business Support,Councillor Community Budgets,Grants and Subscriptions,47100,Grants to Voluntary,11/11/2014,3301833138,2060,Donnington Doorstep Family Centre
http://statistics.data.gov.uk/id/local-authority/38,Oxfordshire County Council,Learning  Disabilities Pooled Budget,OCCG Carers,Other Agency and Contracted Services,57401,Direct Payments,06/11/2014,3301833323,600,REDACTED PERSONAL DATA
http://statistics.data.gov.uk/id/local-authority/38,Oxfordshire County Council,"Older People, Phys Disabilities & Equip",PD Comm Supp Purchasg Budget - Thame,Other Agency and Contracted Services,57401,Direct Payments,06/11/2014,3301833573,3000,1 Off Advance Housing & Support
http://statistics.data.gov.uk/id/local-authority/38,Oxfordshire County Council,"Older People, Phys Disabilities & Equip",Community Support Budget - Henley,Other Agency and Contracted Services,57401,Direct Payments,06/11/2014,3301833574,1313.64,1 Off Advance Housing & Support
http://statistics.data.gov.uk/id/local-authority/38,Oxfordshire County Council,Education & Early Intervention,ECC - Every Child Counts,Other Committees of the Council,51300,Devolved Standards Fund Expenditure,06/11/2014,3301833616,4440,"Cutteslowe Primary, Cherwell School"
http://statistics.data.gov.uk/id/local-authority/38,Oxfordshire County Council,Education & Early Intervention,ECC - Every Child Counts,Other Committees of the Council,51300,Devolved Standards Fund Expenditure,06/11/2014,3301833617,4440,Ladygrove Park Primary School
http://statistics.data.gov.uk/id/local-authority/38,Oxfordshire County Council,Education & Early Intervention,Chillout Fund,Grants and Subscriptions,47100,Grants to Voluntary,18/11/2014,3301833645,1865,Parasol Projects
http://statistics.data.gov.uk/id/local-authority/38,Oxfordshire County Council,Learning  Disabilities Pooled Budget,OCCG Carers,Other Agency and Contracted Services,57401,Direct Payments,07/11/2014,3301833709,600,REDACTED PERSONAL DATA
http://statistics.data.gov.uk/id/local-authority/38,Oxfordshire County Council,STD Insurance,Motor Fleet,Motor Insurance Fund Rev AC,Z5153,Motor IF TP Damage,07/11/2014,3301833710,944.71,Nationwide Crash Repair Centres Ltd
http://statistics.data.gov.uk/id/local-authority/38,Oxfordshire County Council,Adult Social Care,MH Carers Grant,Other Agency and Contracted Services,57401,Direct Payments,07/11/2014,3301833809,600,REDACTED PERSONAL DATA
http://statistics.data.gov.uk/id/local-authority/38,Oxfordshire County Council,Children's Social Care,Service Manager - Disabilities,Other Agency and Contracted Services,57401,Direct Payments,10/11/2014,3301834066,1920,REDACTED PERSONAL DATA
http://statistics.data.gov.uk/id/local-authority/38,Oxfordshire County Council,Chief Executive & Business Support,Councillor Community Budgets,Grants and Subscriptions,47100,Grants to Voluntary,10/11/2014,3301834082,620,The Thursday Lunch Club
http://statistics.data.gov.uk/id/local-authority/38,Oxfordshire County Council,STD Insurance,Motor Fleet,Motor Insurance Fund Rev AC,Z5151,Motor IF Own Damage,17/11/2014,3301834108,2223.55,AWP Body Repairs
http://statistics.data.gov.uk/id/local-authority/38,Oxfordshire County Council,Commercial,Signing & Lining,Private Contractors,56400,Major Contracts,11/11/2014,3301834392,2703.68,Southern Electric Contracting Ltd.
http://statistics.data.gov.uk/id/local-authority/38,Oxfordshire County Council,Commercial,Safety Camera Maintenance,"Equipment, Furniture and Materials",41613,Equipment Maintenanc,11/11/2014,3301834393,1006.5,Westcotec Ltd
http://statistics.data.gov.uk/id/local-authority/38,Oxfordshire County Council,Oxfordshire Customer Services,Disclosure & Barring Service (DBS Team),Expenses,46512,Criminal Records Bureau Charges Invoiced,28/11/2014,3301834416,2250,Capita Education Resourcing
http://statistics.data.gov.uk/id/local-authority/38,Oxfordshire County Council,"Older People, Phys Disabilities & Equip",PD CS Purch Budget - Health S28a JC,Other Agency and Contracted Services,57401,Direct Payments,11/11/2014,3301834793,1036,WK3 Advance Housing & Support
http://statistics.data.gov.uk/id/local-authority/38,Oxfordshire County Council,"Older People, Phys Disabilities & Equip",PD Community Support Budget - Kidlington,Other Agency and Contracted Services,57401,Direct Payments,11/11/2014,3301834793,2743.2,WK3 Advance Housing & Support
http://statistics.data.gov.uk/id/local-authority/38,Oxfordshire County Council,"Older People, Phys Disabilities & Equip",Community Support Budget - Didcot,Other Agency and Contracted Services,57401,Direct Payments,11/11/2014,3301834796,1112,WK3 Advance Housing & Support
http://statistics.data.gov.uk/id/local-authority/38,Oxfordshire County Council,Learning  Disabilities Pooled Budget,Direct Payments City Team,Other Agency and Contracted Services,57401,Direct Payments,11/11/2014,3301834797,960,WK3 Advance Housing & Support
http://statistics.data.gov.uk/id/local-authority/38,Oxfordshire County Council,"Older People, Phys Disabilities & Equip",PD Comm Supp Budget - Banbury,Other Agency and Contracted Services,57401,Direct Payments,11/11/2014,3301834798,1180,WK3 Advance Housing & Support
http://statistics.data.gov.uk/id/local-authority/38,Oxfordshire County Council,"Older People, Phys Disabilities & Equip",PD Comm Supp Purchasg Budget - Witney,Other Agency and Contracted Services,57401,Direct Payments,11/11/2014,3301834800,1056,WK3 Advance Housing & Support
http://statistics.data.gov.uk/id/local-authority/38,Oxfordshire County Council,"Older People, Phys Disabilities & Equip",Community Support Budget - Kidlington,Other Agency and Contracted Services,57401,Direct Payments,11/11/2014,3301834801,606.24,WK3 Advance Housing & Support
http://statistics.data.gov.uk/id/local-authority/38,Oxfordshire County Council,Learning  Disabilities Pooled Budget,Direct Payments City Team,Other Agency and Contracted Services,57401,Direct Payments,11/11/2014,3301834802,1107.48,WK3 Advance Housing & Support
http://statistics.data.gov.uk/id/local-authority/38,Oxfordshire County Council,"Older People, Phys Disabilities & Equip",PD Comm Supp Budget - Banbury,Other Agency and Contracted Services,57401,Direct Payments,11/11/2014,3301834803,563.48,WK3 Advance Housing & Support
http://statistics.data.gov.uk/id/local-authority/38,Oxfordshire County Council,"Older People, Phys Disabilities & Equip",PD Comm Supp Purchasg Budget - City,Other Agency and Contracted Services,57401,Direct Payments,11/11/2014,3301834804,1484.44,WK3 Advance Housing & Support
http://statistics.data.gov.uk/id/local-authority/38,Oxfordshire County Council,"Older People, Phys Disabilities & Equip",Community Support Budget - Chipping Nort,Other Agency and Contracted Services,57401,Direct Payments,11/11/2014,3301834808,739.44,WK3 Advance Housing & Support
http://statistics.data.gov.uk/id/local-authority/38,Oxfordshire County Council,"Older People, Phys Disabilities & Equip",Community Support Budget - Banbury,Other Agency and Contracted Services,57401,Direct Payments,11/11/2014,3301834809,784,WK3 Advance Housing & Support
http://statistics.data.gov.uk/id/local-authority/38,Oxfordshire County Council,Learning  Disabilities Pooled Budget,Direct Payments South Team,Other Agency and Contracted Services,57401,Direct Payments,11/11/2014,3301834813,907.2,WK3 Advance Housing & Support
http://statistics.data.gov.uk/id/local-authority/38,Oxfordshire County Council,"Older People, Phys Disabilities & Equip",PD Comm Supp Budgt - Bicester/Kidlington,Other Agency and Contracted Services,57401,Direct Payments,11/11/2014,3301834816,1824,WK3 Advance Housing & Support
http://statistics.data.gov.uk/id/local-authority/38,Oxfordshire County Council,"Older People, Phys Disabilities & Equip",Community Support Budget - Witney,Other Agency and Contracted Services,57401,Direct Payments,11/11/2014,3301834818,1025.6,WK3 Advance Housing & Support
http://statistics.data.gov.uk/id/local-authority/38,Oxfordshire County Council,"Older People, Phys Disabilities & Equip",Personal Health Budgets PD (PCT),Other Agency and Contracted Services,57401,Direct Payments,11/11/2014,3301834819,7334.52,WK3 Advance Housing & Support
http://statistics.data.gov.uk/id/local-authority/38,Oxfordshire County Council,"Older People, Phys Disabilities & Equip",Community Support Budget - Faringdon,Other Agency and Contracted Services,57401,Direct Payments,11/11/2014,3301834821,1312,WK3 Advance Housing & Support
http://statistics.data.gov.uk/id/local-authority/38,Oxfordshire County Council,Learning  Disabilities Pooled Budget,Direct Payments South Team,Other Agency and Contracted Services,57401,Direct Payments,11/11/2014,3301834823,1036.76,WK3 Advance Housing & Support
http://statistics.data.gov.uk/id/local-authority/38,Oxfordshire County Council,"Older People, Phys Disabilities & Equip",Community Support Budget - Abingdon,Other Agency and Contracted Services,57401,Direct Payments,11/11/2014,3301834824,1226.68,WK3 Advance Housing & Support
http://statistics.data.gov.uk/id/local-authority/38,Oxfordshire County Council,"Older People, Phys Disabilities & Equip",OP Pool Continuing Care Delegated Health,Other Agency and Contracted Services,57401,Direct Payments,11/11/2014,3301834824,917.32,WK3 Advance Housing & Support
http://statistics.data.gov.uk/id/local-authority/38,Oxfordshire County Council,"Older People, Phys Disabilities & Equip",Community Support Budget - Banbury,Other Agency and Contracted Services,57401,Direct Payments,11/11/2014,3301834825,1068,WK3 Advance Housing & Support
http://statistics.data.gov.uk/id/local-authority/38,Oxfordshire County Council,"Older People, Phys Disabilities & Equip",PD Comm Supp Purchasg Budget - Witney,Other Agency and Contracted Services,57401,Direct Payments,11/11/2014,3301834826,1040,WK3 Advance Housing & Support
http://statistics.data.gov.uk/id/local-authority/38,Oxfordshire County Council,"Older People, Phys Disabilities & Equip",Community Support Budget - Wantage,Other Agency and Contracted Services,57401,Direct Payments,11/11/2014,3301834827,1898.36,WK3 Advance Housing & Support
http://statistics.data.gov.uk/id/local-authority/38,Oxfordshire County Council,"Older People, Phys Disabilities & Equip",Community Support Budget - Abingdon,Other Agency and Contracted Services,57401,Direct Payments,11/11/2014,3301834829,512,WK3 Advance Housing & Support
http://statistics.data.gov.uk/id/local-authority/38,Oxfordshire County Council,"Older People, Phys Disabilities & Equip",Community Support Budget - City,Other Agency and Contracted Services,57401,Direct Payments,11/11/2014,3301834830,688,WK3 Advance Housing & Support
http://statistics.data.gov.uk/id/local-authority/38,Oxfordshire County Council,"Older People, Phys Disabilities & Equip",Community Support Budget - Banbury,Other Agency and Contracted Services,57401,Direct Payments,11/11/2014,3301834831,834.8,WK3 Advance Housing & Support
http://statistics.data.gov.uk/id/local-authority/38,Oxfordshire County Council,"Older People, Phys Disabilities & Equip",Community Support Budget - Didcot,Other Agency and Contracted Services,57401,Direct Payments,11/11/2014,3301834833,540,WK3 Advance Housing & Support
http://statistics.data.gov.uk/id/local-authority/38,Oxfordshire County Council,"Older People, Phys Disabilities & Equip",Community Support Budget - Chipping Nort,Other Agency and Contracted Services,57401,Direct Payments,11/11/2014,3301834836,512,WK3 Advance Housing & Support
http://statistics.data.gov.uk/id/local-authority/38,Oxfordshire County Council,"Older People, Phys Disabilities & Equip",Community Support Budget - Didcot,Other Agency and Contracted Services,57401,Direct Payments,11/11/2014,3301834837,732,WK3 Advance Housing & Support
http://statistics.data.gov.uk/id/local-authority/38,Oxfordshire County Council,"Older People, Phys Disabilities & Equip",PD Comm Supp Purchasg Budget - City,Other Agency and Contracted Services,57401,Direct Payments,11/11/2014,3301834839,784,WK3 Advance Housing & Support
http://statistics.data.gov.uk/id/local-authority/38,Oxfordshire County Council,"Older People, Phys Disabilities & Equip",PD Comm Supp Purchasg Budget - Abingdon,Other Agency and Contracted Services,57401,Direct Payments,11/11/2014,3301834840,1016,WK3 Advance Housing & Support
http://statistics.data.gov.uk/id/local-authority/38,Oxfordshire County Council,"Older People, Phys Disabilities & Equip",PD Community Support Budget - Kidlington,Other Agency and Contracted Services,57401,Direct Payments,11/11/2014,3301834842,3264,WK3 Advance Housing & Support
http://statistics.data.gov.uk/id/local-authority/38,Oxfordshire County Council,Adult Social Care,MH Community Sup't,Other Agency and Contracted Services,57401,Direct Payments,11/11/2014,3301834843,880,WK3 Advance Housing & Support
http://statistics.data.gov.uk/id/local-authority/38,Oxfordshire County Council,"Older People, Phys Disabilities & Equip",Community Support Budget - Faringdon,Other Agency and Contracted Services,57401,Direct Payments,11/11/2014,3301834844,592,WK3 Advance Housing & Support
http://statistics.data.gov.uk/id/local-authority/38,Oxfordshire County Council,"Older People, Phys Disabilities & Equip",PD Comm Supp Purchasg Budget - City,Other Agency and Contracted Services,57401,Direct Payments,11/11/2014,3301834845,520,WK3 Advance Housing & Support
http://statistics.data.gov.uk/id/local-authority/38,Oxfordshire County Council,"Older People, Phys Disabilities & Equip",Community Support Budget - City,Other Agency and Contracted Services,57401,Direct Payments,11/11/2014,3301834846,1040,WK3 Advance Housing & Support
http://statistics.data.gov.uk/id/local-authority/38,Oxfordshire County Council,"Older People, Phys Disabilities & Equip",Community Support Budget - Bicester,Other Agency and Contracted Services,57401,Direct Payments,11/11/2014,3301834848,912,WK3 Advance Housing & Support
http://statistics.data.gov.uk/id/local-authority/38,Oxfordshire County Council,"Older People, Phys Disabilities & Equip",PD Comm Supp Purchasg Budget - Thame,Other Agency and Contracted Services,57401,Direct Payments,11/11/2014,3301834849,1228.24,WK3 Advance Housing & Support
http://statistics.data.gov.uk/id/local-authority/38,Oxfordshire County Council,Learning  Disabilities Pooled Budget,Direct Payments South Team,Other Agency and Contracted Services,57401,Direct Payments,11/11/2014,3301834850,1068,WK3 Advance Housing & Support
http://statistics.data.gov.uk/id/local-authority/38,Oxfordshire County Council,"Older People, Phys Disabilities & Equip",PD Comm Supp Purchasg Budget - City,Other Agency and Contracted Services,57401,Direct Payments,11/11/2014,3301834852,560,WK3 Advance Housing & Support
http://statistics.data.gov.uk/id/local-authority/38,Oxfordshire County Council,"Older People, Phys Disabilities & Equip",Community Support Budget - Didcot,Other Agency and Contracted Services,57401,Direct Payments,11/11/2014,3301834853,5952,WK3 Advance Housing & Support
http://statistics.data.gov.uk/id/local-authority/38,Oxfordshire County Council,"Older People, Phys Disabilities & Equip",Community Support Budget - Witney,Other Agency and Contracted Services,57401,Direct Payments,11/11/2014,3301834854,1528,WK3 Advance Housing & Support
http://statistics.data.gov.uk/id/local-authority/38,Oxfordshire County Council,"Older People, Phys Disabilities & Equip",Community Support Budget - Banbury,Other Agency and Contracted Services,57401,Direct Payments,11/11/2014,3301834856,1232,WK3 Advance Housing & Support
http://statistics.data.gov.uk/id/local-authority/38,Oxfordshire County Council,"Older People, Phys Disabilities & Equip",Community Support Budget - City,Other Agency and Contracted Services,57401,Direct Payments,11/11/2014,3301834857,796,WK3 Advance Housing & Support
http://statistics.data.gov.uk/id/local-authority/38,Oxfordshire County Council,Learning  Disabilities Pooled Budget,Direct Payments South Team,Other Agency and Contracted Services,57401,Direct Payments,11/11/2014,3301834858,907.2,WK3 Advance Housing & Support
http://statistics.data.gov.uk/id/local-authority/38,Oxfordshire County Council,"Older People, Phys Disabilities & Equip",PD Comm Supp Purchasg Budget - Witney,Other Agency and Contracted Services,57401,Direct Payments,11/11/2014,3301834861,2392,WK3 Advance Housing & Support
http://statistics.data.gov.uk/id/local-authority/38,Oxfordshire County Council,"Older People, Phys Disabilities & Equip",Community Support Budget - Banbury,Other Agency and Contracted Services,57401,Direct Payments,11/11/2014,3301834863,1304,WK3 Advance Housing & Support
http://statistics.data.gov.uk/id/local-authority/38,Oxfordshire County Council,"Older People, Phys Disabilities & Equip",Community Support Budget - Banbury,Other Agency and Contracted Services,57401,Direct Payments,11/11/2014,3301834864,616,WK3 Advance Housing & Support
http://statistics.data.gov.uk/id/local-authority/38,Oxfordshire County Council,"Older People, Phys Disabilities & Equip",PD Comm Supp Budget - Banbury,Other Agency and Contracted Services,57401,Direct Payments,11/11/2014,3301834865,900,WK3 Advance Housing & Support
http://statistics.data.gov.uk/id/local-authority/38,Oxfordshire County Council,"Older People, Phys Disabilities & Equip",Community Support Budget - Banbury,Other Agency and Contracted Services,57401,Direct Payments,11/11/2014,3301834866,504,WK3 Advance Housing & Support
http://statistics.data.gov.uk/id/local-authority/38,Oxfordshire County Council,"Older People, Phys Disabilities & Equip",Community Support Budget - Banbury,Other Agency and Contracted Services,57401,Direct Payments,11/11/2014,3301834870,724,WK3 Advance Housing & Support
http://statistics.data.gov.uk/id/local-authority/38,Oxfordshire County Council,Learning  Disabilities Pooled Budget,Direct Payments City Team,Other Agency and Contracted Services,57401,Direct Payments,11/11/2014,3301834871,1875.24,WK3 Advance Housing & Support
http://statistics.data.gov.uk/id/local-authority/38,Oxfordshire County Council,"Older People, Phys Disabilities & Equip",Community Support Budget - Wantage,Other Agency and Contracted Services,57401,Direct Payments,11/11/2014,3301834872,3227.2,WK3 Advance Housing & Support
http://statistics.data.gov.uk/id/local-authority/38,Oxfordshire County Council,"Older People, Phys Disabilities & Equip",Community Support Budget - Abingdon,Other Agency and Contracted Services,57401,Direct Payments,11/11/2014,3301834874,2612,WK3 Advance Housing & Support
http://statistics.data.gov.uk/id/local-authority/38,Oxfordshire County Council,"Older People, Phys Disabilities & Equip",PD Comm Supp Purchasg Budget - Thame,Other Agency and Contracted Services,57401,Direct Payments,11/11/2014,3301834875,540,WK3 Advance Housing & Support
http://statistics.data.gov.uk/id/local-authority/38,Oxfordshire County Council,"Older People, Phys Disabilities & Equip",Community Support Budget - Banbury,Other Agency and Contracted Services,57401,Direct Payments,11/11/2014,3301834877,3012.8,WK3 Advance Housing & Support
http://statistics.data.gov.uk/id/local-authority/38,Oxfordshire County Council,Learning  Disabilities Pooled Budget,Direct Payments South Team,Other Agency and Contracted Services,57401,Direct Payments,11/11/2014,3301834879,735.2,WK3 Advance Housing & Support
http://statistics.data.gov.uk/id/local-authority/38,Oxfordshire County Council,Learning  Disabilities Pooled Budget,Direct Payments North Team,Other Agency and Contracted Services,57401,Direct Payments,11/11/2014,3301834880,3691.32,WK3 Advance Housing & Support
http://statistics.data.gov.uk/id/local-authority/38,Oxfordshire County Council,"Older People, Phys Disabilities & Equip",PD Comm Supp Purchasg Budget - Didcot,Other Agency and Contracted Services,57401,Direct Payments,11/11/2014,3301834883,1519,WK3 Advance Housing & Support
http://statistics.data.gov.uk/id/local-authority/38,Oxfordshire County Council,"Older People, Phys Disabilities & Equip",PD Comm Supp Purchasg Budget - Witney,Other Agency and Contracted Services,57401,Direct Payments,11/11/2014,3301834885,1888,WK3 Advance Housing & Support
http://statistics.data.gov.uk/id/local-authority/38,Oxfordshire County Council,"Older People, Phys Disabilities & Equip",PD Comm Supp Purchasg Budget - Witney,Other Agency and Contracted Services,57401,Direct Payments,11/11/2014,3301834885,944,WK3 Advance Housing & Support
http://statistics.data.gov.uk/id/local-authority/38,Oxfordshire County Council,"Older People, Phys Disabilities & Equip",Community Support Budget - Chipping Nort,Other Agency and Contracted Services,57401,Direct Payments,11/11/2014,3301834886,622.28,WK3 Advance Housing & Support
http://statistics.data.gov.uk/id/local-authority/38,Oxfordshire County Council,"Older People, Phys Disabilities & Equip",Community Support Budget - Banbury,Other Agency and Contracted Services,57401,Direct Payments,11/11/2014,3301834887,600,WK3 Advance Housing & Support
http://statistics.data.gov.uk/id/local-authority/38,Oxfordshire County Council,"Older People, Phys Disabilities & Equip",PD Comm Supp Budget - Banbury,Other Agency and Contracted Services,57401,Direct Payments,11/11/2014,3301834889,676,WK3 Advance Housing & Support
http://statistics.data.gov.uk/id/local-authority/38,Oxfordshire County Council,"Older People, Phys Disabilities & Equip",Community Support Budget - Banbury,Other Agency and Contracted Services,57401,Direct Payments,11/11/2014,3301834890,688,WK3 Advance Housing & Support
http://statistics.data.gov.uk/id/local-authority/38,Oxfordshire County Council,"Older People, Phys Disabilities & Equip",Community Support Budget - Witney,Other Agency and Contracted Services,57401,Direct Payments,11/11/2014,3301834891,1092,WK3 Advance Housing & Support
http://statistics.data.gov.uk/id/local-authority/38,Oxfordshire County Council,"Older People, Phys Disabilities & Equip",PD Comm Supp Purchasg Budget - Thame,Other Agency and Contracted Services,57401,Direct Payments,11/11/2014,3301834893,708,WK3 Advance Housing & Support
http://statistics.data.gov.uk/id/local-authority/38,Oxfordshire County Council,"Older People, Phys Disabilities & Equip",Community Support Budget - Didcot,Other Agency and Contracted Services,57401,Direct Payments,11/11/2014,3301834894,1160,WK3 Advance Housing & Support
http://statistics.data.gov.uk/id/local-authority/38,Oxfordshire County Council,"Older People, Phys Disabilities & Equip",PD Comm Supp Purchasg Budget - Witney,Other Agency and Contracted Services,57401,Direct Payments,11/11/2014,3301834895,616,WK3 Advance Housing & Support
http://statistics.data.gov.uk/id/local-authority/38,Oxfordshire County Council,Learning  Disabilities Pooled Budget,Direct Payments North Team,Other Agency and Contracted Services,57401,Direct Payments,11/11/2014,3301834896,1681,WK3 Advance Housing & Support
http://statistics.data.gov.uk/id/local-authority/38,Oxfordshire County Council,Learning  Disabilities Pooled Budget,Direct Payments North Team,Other Agency and Contracted Services,57401,Direct Payments,11/11/2014,3301834897,1880,WK3 Advance Housing & Support
http://statistics.data.gov.uk/id/local-authority/38,Oxfordshire County Council,"Older People, Phys Disabilities & Equip",Community Support Budget - Bicester,Other Agency and Contracted Services,57401,Direct Payments,11/11/2014,3301834898,500,WK3 Advance Housing & Support
http://statistics.data.gov.uk/id/local-authority/38,Oxfordshire County Council,"Older People, Phys Disabilities & Equip",PD Comm Supp Purchasg Budget - Didcot,Other Agency and Contracted Services,57401,Direct Payments,11/11/2014,3301834902,776,WK3 Advance Housing & Support
http://statistics.data.gov.uk/id/local-authority/38,Oxfordshire County Council,"Older People, Phys Disabilities & Equip",Community Support Budget - Didcot,Other Agency and Contracted Services,57401,Direct Payments,11/11/2014,3301834903,816,WK3 Advance Housing & Support
http://statistics.data.gov.uk/id/local-authority/38,Oxfordshire County Council,"Older People, Phys Disabilities & Equip",Community Support Budget - Henley,Other Agency and Contracted Services,57401,Direct Payments,11/11/2014,3301834904,1400,WK3 Advance Housing & Support
http://statistics.data.gov.uk/id/local-authority/38,Oxfordshire County Council,"Older People, Phys Disabilities & Equip",Community Support Budget - Abingdon,Other Agency and Contracted Services,57401,Direct Payments,11/11/2014,3301834905,3000,WK3 Advance Housing & Support
http://statistics.data.gov.uk/id/local-authority/38,Oxfordshire County Council,Learning  Disabilities Pooled Budget,Direct Payments South Team,Other Agency and Contracted Services,57401,Direct Payments,11/11/2014,3301834906,774,WK3 Advance Housing & Support
http://statistics.data.gov.uk/id/local-authority/38,Oxfordshire County Council,Learning  Disabilities Pooled Budget,Direct Payments North Team,Other Agency and Contracted Services,57401,Direct Payments,11/11/2014,3301834907,660,WK3 Advance Housing & Support
http://statistics.data.gov.uk/id/local-authority/38,Oxfordshire County Council,"Older People, Phys Disabilities & Equip",Community Support Budget - Banbury,Other Agency and Contracted Services,57401,Direct Payments,11/11/2014,3301834908,2527.68,WK3 Advance Housing & Support
http://statistics.data.gov.uk/id/local-authority/38,Oxfordshire County Council,"Older People, Phys Disabilities & Equip",Community Support Budget - Witney,Other Agency and Contracted Services,57401,Direct Payments,11/11/2014,3301834909,972,WK3 Advance Housing & Support
http://statistics.data.gov.uk/id/local-authority/38,Oxfordshire County Council,"Older People, Phys Disabilities & Equip",Community Support Budget - Witney,Other Agency and Contracted Services,57401,Direct Payments,11/11/2014,3301834909,1388.57,WK3 Advance Housing & Support
http://statistics.data.gov.uk/id/local-authority/38,Oxfordshire County Council,"Older People, Phys Disabilities & Equip",Community Support Budget - Witney,Other Agency and Contracted Services,57401,Direct Payments,11/11/2014,3301834909,-1194.29,WK3 Advance Housing & Support
http://statistics.data.gov.uk/id/local-authority/38,Oxfordshire County Council,Learning  Disabilities Pooled Budget,Direct Payments City Team,Other Agency and Contracted Services,57401,Direct Payments,11/11/2014,3301834910,1280,WK3 Advance Housing & Support
http://statistics.data.gov.uk/id/local-authority/38,Oxfordshire County Council,"Older People, Phys Disabilities & Equip",Community Support Budget - Thame,Other Agency and Contracted Services,57401,Direct Payments,11/11/2014,3301834911,756.6,WK3 Advance Housing & Support
http://statistics.data.gov.uk/id/local-authority/38,Oxfordshire County Council,Learning  Disabilities Pooled Budget,Direct Payments City Team,Other Agency and Contracted Services,57401,Direct Payments,11/11/2014,3301834912,2800,WK3 Advance Housing & Support
http://statistics.data.gov.uk/id/local-authority/38,Oxfordshire County Council,"Older People, Phys Disabilities & Equip",PD Comm Supp Purchasg Budget - Abingdon,Other Agency and Contracted Services,57401,Direct Payments,11/11/2014,3301834913,1040,WK3 Advance Housing & Support
http://statistics.data.gov.uk/id/local-authority/38,Oxfordshire County Council,"Older People, Phys Disabilities & Equip",Community Support Budget - City,Other Agency and Contracted Services,57401,Direct Payments,12/11/2014,3301834914,1948,WK3 Advance Housing & Support
http://statistics.data.gov.uk/id/local-authority/38,Oxfordshire County Council,"Older People, Phys Disabilities & Equip",Community Support Budget - Henley,Other Agency and Contracted Services,57401,Direct Payments,12/11/2014,3301834915,880,WK3 Advance Housing & Support
http://statistics.data.gov.uk/id/local-authority/38,Oxfordshire County Council,"Older People, Phys Disabilities & Equip",PD Comm Supp Purchasg Budget - Wantage,Other Agency and Contracted Services,57401,Direct Payments,12/11/2014,3301834916,856,WK3 Advance Housing & Support
http://statistics.data.gov.uk/id/local-authority/38,Oxfordshire County Council,"Older People, Phys Disabilities & Equip",PD Comm Supp Budget - Banbury,Other Agency and Contracted Services,57401,Direct Payments,12/11/2014,3301834917,600,WK3 Advance Housing & Support
http://statistics.data.gov.uk/id/local-authority/38,Oxfordshire County Council,"Older People, Phys Disabilities & Equip",Community Support Budget - Witney,Other Agency and Contracted Services,57401,Direct Payments,12/11/2014,3301834918,1448,WK3 Advance Housing & Support
http://statistics.data.gov.uk/id/local-authority/38,Oxfordshire County Council,Learning  Disabilities Pooled Budget,Direct Payments North Team,Other Agency and Contracted Services,57401,Direct Payments,12/11/2014,3301834919,3201.92,WK3 Advance Housing & Support
http://statistics.data.gov.uk/id/local-authority/38,Oxfordshire County Council,"Older People, Phys Disabilities & Equip",Community Support Budget - City,Other Agency and Contracted Services,57401,Direct Payments,12/11/2014,3301834920,2008,WK3 Advance Housing & Support
http://statistics.data.gov.uk/id/local-authority/38,Oxfordshire County Council,"Older People, Phys Disabilities & Equip",Community Support Budget - Banbury,Other Agency and Contracted Services,57401,Direct Payments,12/11/2014,3301834921,1296,WK3 Advance Housing & Support
http://statistics.data.gov.uk/id/local-authority/38,Oxfordshire County Council,"Older People, Phys Disabilities & Equip",PD Comm Supp Budgt - Bicester/Kidlington,Other Agency and Contracted Services,57401,Direct Payments,12/11/2014,3301834922,716,WK3 Advance Housing & Support
http://statistics.data.gov.uk/id/local-authority/38,Oxfordshire County Council,Learning  Disabilities Pooled Budget,Direct Payments North Team,Other Agency and Contracted Services,57401,Direct Payments,12/11/2014,3301834923,664.6,WK3 Advance Housing & Support
http://statistics.data.gov.uk/id/local-authority/38,Oxfordshire County Council,"Older People, Phys Disabilities & Equip",PD Comm Supp Budget - Banbury,Other Agency and Contracted Services,57401,Direct Payments,12/11/2014,3301834924,1916.6,WK3 Advance Housing & Support
http://statistics.data.gov.uk/id/local-authority/38,Oxfordshire County Council,"Older People, Phys Disabilities & Equip",PD Comm Supp Budgt - Bicester/Kidlington,Other Agency and Contracted Services,57401,Direct Payments,12/11/2014,3301834925,661.6,WK3 Advance Housing & Support
http://statistics.data.gov.uk/id/local-authority/38,Oxfordshire County Council,"Older People, Phys Disabilities & Equip",Community Support Budget - Witney,Other Agency and Contracted Services,57401,Direct Payments,12/11/2014,3301834926,1228,WK3 Advance Housing & Support
http://statistics.data.gov.uk/id/local-authority/38,Oxfordshire County Council,"Older People, Phys Disabilities & Equip",Community Support Budget - Abingdon,Other Agency and Contracted Services,57401,Direct Payments,12/11/2014,3301834928,504,WK3 Advance Housing & Support
http://statistics.data.gov.uk/id/local-authority/38,Oxfordshire County Council,Learning  Disabilities Pooled Budget,Direct Payments North Team,Other Agency and Contracted Services,57401,Direct Payments,12/11/2014,3301834930,5540,WK3 Advance Housing & Support
http://statistics.data.gov.uk/id/local-authority/38,Oxfordshire County Council,"Older People, Phys Disabilities & Equip",Community Support Budget - Banbury,Other Agency and Contracted Services,57401,Direct Payments,12/11/2014,3301834931,712,WK3 Advance Housing & Support
http://statistics.data.gov.uk/id/local-authority/38,Oxfordshire County Council,"Older People, Phys Disabilities & Equip",Community Support Budget - Bicester,Other Agency and Contracted Services,57401,Direct Payments,12/11/2014,3301834932,712,WK3 Advance Housing & Support
http://statistics.data.gov.uk/id/local-authority/38,Oxfordshire County Council,"Older People, Phys Disabilities & Equip",Community Support Budget - Bicester,Other Agency and Contracted Services,57401,Direct Payments,12/11/2014,3301834933,1377.6,WK3 Advance Housing & Support
http://statistics.data.gov.uk/id/local-authority/38,Oxfordshire County Council,"Older People, Phys Disabilities & Equip",PD Comm Supp Purchasg Budget - Abingdon,Other Agency and Contracted Services,57401,Direct Payments,12/11/2014,3301834934,772,WK3 Advance Housing & Support
http://statistics.data.gov.uk/id/local-authority/38,Oxfordshire County Council,Learning  Disabilities Pooled Budget,Direct Payments South Team,Other Agency and Contracted Services,57401,Direct Payments,12/11/2014,3301834935,798.52,WK3 Advance Housing & Support
http://statistics.data.gov.uk/id/local-authority/38,Oxfordshire County Council,Learning  Disabilities Pooled Budget,Direct Payments South Team,Other Agency and Contracted Services,57401,Direct Payments,12/11/2014,3301834936,914,WK3 Advance Housing & Support
http://statistics.data.gov.uk/id/local-authority/38,Oxfordshire County Council,"Older People, Phys Disabilities & Equip",PD Comm Supp Budgt - Bicester/Kidlington,Other Agency and Contracted Services,57401,Direct Payments,12/11/2014,3301834942,856,WK3 Advance Housing & Support
http://statistics.data.gov.uk/id/local-authority/38,Oxfordshire County Council,Learning  Disabilities Pooled Budget,Direct Payments North Team,Other Agency and Contracted Services,57401,Direct Payments,12/11/2014,3301834944,2893.6,WK3 Advance Housing & Support
http://statistics.data.gov.uk/id/local-authority/38,Oxfordshire County Council,Learning  Disabilities Pooled Budget,Direct Payments North Team,Other Agency and Contracted Services,57401,Direct Payments,12/11/2014,3301834945,5893.84,WK3 Advance Housing & Support
http://statistics.data.gov.uk/id/local-authority/38,Oxfordshire County Council,"Older People, Phys Disabilities & Equip",PHB OP Package,Other Agency and Contracted Services,57401,Direct Payments,12/11/2014,3301834947,6251.92,WK3 Advance Housing & Support
http://statistics.data.gov.uk/id/local-authority/38,Oxfordshire County Council,Learning  Disabilities Pooled Budget,Direct Payments North Team,Other Agency and Contracted Services,57401,Direct Payments,12/11/2014,3301834948,4480,WK3 Advance Housing & Support
http://statistics.data.gov.uk/id/local-authority/38,Oxfordshire County Council,Learning  Disabilities Pooled Budget,Direct Payments South Team,Other Agency and Contracted Services,57401,Direct Payments,12/11/2014,3301834949,907.2,WK3 Advance Housing & Support
http://statistics.data.gov.uk/id/local-authority/38,Oxfordshire County Council,Learning  Disabilities Pooled Budget,Direct Payments South Team,Other Agency and Contracted Services,57401,Direct Payments,12/11/2014,3301834951,1166.4,WK3 Advance Housing & Support
http://statistics.data.gov.uk/id/local-authority/38,Oxfordshire County Council,Learning  Disabilities Pooled Budget,Direct Payments South Team,Other Agency and Contracted Services,57401,Direct Payments,12/11/2014,3301834952,1060,WK3 Advance Housing & Support
http://statistics.data.gov.uk/id/local-authority/38,Oxfordshire County Council,Learning  Disabilities Pooled Budget,Direct Payments South Team,Other Agency and Contracted Services,57401,Direct Payments,12/11/2014,3301834954,907.2,WK3 Advance Housing & Support
http://statistics.data.gov.uk/id/local-authority/38,Oxfordshire County Council,Learning  Disabilities Pooled Budget,Direct Payments South Team,Other Agency and Contracted Services,57401,Direct Payments,12/11/2014,3301834955,907.2,WK3 Advance Housing & Support
http://statistics.data.gov.uk/id/local-authority/38,Oxfordshire County Council,Learning  Disabilities Pooled Budget,Direct Payments South Team,Other Agency and Contracted Services,57401,Direct Payments,12/11/2014,3301834956,3400,WK3 Advance Housing & Support
http://statistics.data.gov.uk/id/local-authority/38,Oxfordshire County Council,Learning  Disabilities Pooled Budget,Direct Payments South Team,Other Agency and Contracted Services,57401,Direct Payments,12/11/2014,3301834957,907.2,WK3 Advance Housing & Support
http://statistics.data.gov.uk/id/local-authority/38,Oxfordshire County Council,Learning  Disabilities Pooled Budget,Direct Payments South Team,Other Agency and Contracted Services,57401,Direct Payments,12/11/2014,3301834960,907.2,WK3 Advance Housing & Support
http://statistics.data.gov.uk/id/local-authority/38,Oxfordshire County Council,"Older People, Phys Disabilities & Equip",Community Support Budget - Abingdon,Other Agency and Contracted Services,57401,Direct Payments,12/11/2014,3301834961,2828,WK3 Advance Housing & Support
http://statistics.data.gov.uk/id/local-authority/38,Oxfordshire County Council,Learning  Disabilities Pooled Budget,Direct Payments South Team,Other Agency and Contracted Services,57401,Direct Payments,12/11/2014,3301834962,777.6,WK3 Advance Housing & Support
http://statistics.data.gov.uk/id/local-authority/38,Oxfordshire County Council,"Older People, Phys Disabilities & Equip",PD Community Support Budget - Kidlington,Other Agency and Contracted Services,57401,Direct Payments,12/11/2014,3301834963,560,WK3 Advance Housing & Support
http://statistics.data.gov.uk/id/local-authority/38,Oxfordshire County Council,"Older People, Phys Disabilities & Equip",PD Comm Supp Purchasg Budget - City,Other Agency and Contracted Services,57401,Direct Payments,12/11/2014,3301834965,1116,WK3 Advance Housing & Support
http://statistics.data.gov.uk/id/local-authority/38,Oxfordshire County Council,"Older People, Phys Disabilities & Equip",Community Support Budget - City,Other Agency and Contracted Services,57401,Direct Payments,12/11/2014,3301834966,3108,WK3 Advance Housing & Support
http://statistics.data.gov.uk/id/local-authority/38,Oxfordshire County Council,"Older People, Phys Disabilities & Equip",OP Pool Continuing Care Delegated Health,Other Agency and Contracted Services,57401,Direct Payments,12/11/2014,3301834966,1764,WK3 Advance Housing & Support
http://statistics.data.gov.uk/id/local-authority/38,Oxfordshire County Council,"Older People, Phys Disabilities & Equip",PD Community Support Budget - Kidlington,Other Agency and Contracted Services,57401,Direct Payments,12/11/2014,3301834967,2872,WK3 Advance Housing & Support
http://statistics.data.gov.uk/id/local-authority/38,Oxfordshire County Council,Learning  Disabilities Pooled Budget,Direct Payments City Team,Other Agency and Contracted Services,57401,Direct Payments,12/11/2014,3301834969,2754.32,WK3 Advance Housing & Support
http://statistics.data.gov.uk/id/local-authority/38,Oxfordshire County Council,Learning  Disabilities Pooled Budget,Direct Payments City Team,Other Agency and Contracted Services,57401,Direct Payments,12/11/2014,3301834970,840,WK3 Advance Housing & Support
http://statistics.data.gov.uk/id/local-authority/38,Oxfordshire County Council,Learning  Disabilities Pooled Budget,Direct Payments City Team,Other Agency and Contracted Services,57401,Direct Payments,12/11/2014,3301834971,648,WK3 Advance Housing & Support
http://statistics.data.gov.uk/id/local-authority/38,Oxfordshire County Council,Learning  Disabilities Pooled Budget,Direct Payments City Team,Other Agency and Contracted Services,57401,Direct Payments,12/11/2014,3301834972,1016.4,WK3 Advance Housing & Support
http://statistics.data.gov.uk/id/local-authority/38,Oxfordshire County Council,"Older People, Phys Disabilities & Equip",PD Comm Supp Purchasg Budget - City,Other Agency and Contracted Services,57401,Direct Payments,12/11/2014,3301834973,1673.04,WK3 Advance Housing & Support
http://statistics.data.gov.uk/id/local-authority/38,Oxfordshire County Council,"Older People, Phys Disabilities & Equip",PD CS Purch Budget - Health S28a JC,Other Agency and Contracted Services,57401,Direct Payments,12/11/2014,3301834973,582.28,WK3 Advance Housing & Support
http://statistics.data.gov.uk/id/local-authority/38,Oxfordshire County Council,"Older People, Phys Disabilities & Equip",Community Support Budget - City,Other Agency and Contracted Services,57401,Direct Payments,12/11/2014,3301834974,3675.2,WK3 Advance Housing & Support
http://statistics.data.gov.uk/id/local-authority/38,Oxfordshire County Council,Learning  Disabilities Pooled Budget,Direct Payments South Team,Other Agency and Contracted Services,57401,Direct Payments,12/11/2014,3301834976,648,WK3 Advance Housing & Support
http://statistics.data.gov.uk/id/local-authority/38,Oxfordshire County Council,Learning  Disabilities Pooled Budget,Direct Payments South Team,Other Agency and Contracted Services,57401,Direct Payments,12/11/2014,3301834977,1101.6,WK3 Advance Housing & Support
http://statistics.data.gov.uk/id/local-authority/38,Oxfordshire County Council,Learning  Disabilities Pooled Budget,Direct Payments South Team,Other Agency and Contracted Services,57401,Direct Payments,12/11/2014,3301834980,907.2,WK3 Advance Housing & Support
http://statistics.data.gov.uk/id/local-authority/38,Oxfordshire County Council,Learning  Disabilities Pooled Budget,Direct Payments South Team,Other Agency and Contracted Services,57401,Direct Payments,12/11/2014,3301834981,705.6,WK3 Advance Housing & Support
http://statistics.data.gov.uk/id/local-authority/38,Oxfordshire County Council,Learning  Disabilities Pooled Budget,Direct Payments North Team,Other Agency and Contracted Services,57401,Direct Payments,12/11/2014,3301834982,705.68,WK3 Advance Housing & Support
http://statistics.data.gov.uk/id/local-authority/38,Oxfordshire County Council,Learning  Disabilities Pooled Budget,Direct Payments South Team,Other Agency and Contracted Services,57401,Direct Payments,12/11/2014,3301834984,5040,WK3 Advance Housing & Support
http://statistics.data.gov.uk/id/local-authority/38,Oxfordshire County Council,Learning  Disabilities Pooled Budget,Direct Payments South Team,Other Agency and Contracted Services,57401,Direct Payments,12/11/2014,3301834985,777.6,WK3 Advance Housing & Support
http://statistics.data.gov.uk/id/local-authority/38,Oxfordshire County Council,"Older People, Phys Disabilities & Equip",Community Support Budget - Didcot,Other Agency and Contracted Services,57401,Direct Payments,12/11/2014,3301834986,1476,WK3 Advance Housing & Support
http://statistics.data.gov.uk/id/local-authority/38,Oxfordshire County Council,"Older People, Phys Disabilities & Equip",Community Support Budget - Didcot,Other Agency and Contracted Services,57401,Direct Payments,12/11/2014,3301834986,1476,WK3 Advance Housing & Support
http://statistics.data.gov.uk/id/local-authority/38,Oxfordshire County Council,"Older People, Phys Disabilities & Equip",PD Comm Supp Purchasg Budget - Thame,Other Agency and Contracted Services,57401,Direct Payments,12/11/2014,3301834987,904,WK3 Advance Housing & Support
http://statistics.data.gov.uk/id/local-authority/38,Oxfordshire County Council,"Older People, Phys Disabilities & Equip",PD Comm Supp Budget - Banbury,Other Agency and Contracted Services,57401,Direct Payments,12/11/2014,3301834989,873.6,WK3 Advance Housing & Support
http://statistics.data.gov.uk/id/local-authority/38,Oxfordshire County Council,"Older People, Phys Disabilities & Equip",PD Comm Supp Budgt - Bicester/Kidlington,Other Agency and Contracted Services,57401,Direct Payments,12/11/2014,3301834990,1015.2,WK3 Advance Housing & Support
http://statistics.data.gov.uk/id/local-authority/38,Oxfordshire County Council,"Older People, Phys Disabilities & Equip",PD Comm Supp Budget - Banbury,Other Agency and Contracted Services,57401,Direct Payments,12/11/2014,3301834991,1000,WK3 Advance Housing & Support
http://statistics.data.gov.uk/id/local-authority/38,Oxfordshire County Council,Learning  Disabilities Pooled Budget,Direct Payments North Team,Other Agency and Contracted Services,57401,Direct Payments,12/11/2014,3301834992,7973,WK3 Advance Housing & Support
http://statistics.data.gov.uk/id/local-authority/38,Oxfordshire County Council,"Older People, Phys Disabilities & Equip",Community Support Budget - Banbury,Other Agency and Contracted Services,57401,Direct Payments,12/11/2014,3301834993,612,WK3 Advance Housing & Support
http://statistics.data.gov.uk/id/local-authority/38,Oxfordshire County Council,"Older People, Phys Disabilities & Equip",Community Support Budget - Banbury,Other Agency and Contracted Services,57401,Direct Payments,12/11/2014,3301834994,1020,WK3 Advance Housing & Support
http://statistics.data.gov.uk/id/local-authority/38,Oxfordshire County Council,"Older People, Phys Disabilities & Equip",Community Support Budget - Banbury,Other Agency and Contracted Services,57401,Direct Payments,12/11/2014,3301834996,1556,WK3 Advance Housing & Support
http://statistics.data.gov.uk/id/local-authority/38,Oxfordshire County Council,Learning  Disabilities Pooled Budget,Direct Payments North Team,Other Agency and Contracted Services,57401,Direct Payments,12/11/2014,3301834998,4224,WK3 Advance Housing & Support
http://statistics.data.gov.uk/id/local-authority/38,Oxfordshire County Council,"Older People, Phys Disabilities & Equip",Community Support Budget - Banbury,Other Agency and Contracted Services,57401,Direct Payments,12/11/2014,3301834999,1920,WK3 Advance Housing & Support
http://statistics.data.gov.uk/id/local-authority/38,Oxfordshire County Council,"Older People, Phys Disabilities & Equip",PD Comm Supp Budget - Banbury,Other Agency and Contracted Services,57401,Direct Payments,12/11/2014,3301835001,548,WK3 Advance Housing & Support
http://statistics.data.gov.uk/id/local-authority/38,Oxfordshire County Council,"Older People, Phys Disabilities & Equip",PD CS Purch Budget - Health S28a JC,Other Agency and Contracted Services,57401,Direct Payments,12/11/2014,3301835002,1456,WK3 Advance Housing & Support
http://statistics.data.gov.uk/id/local-authority/38,Oxfordshire County Council,"Older People, Phys Disabilities & Equip",PD Comm Supp Budget - Banbury,Other Agency and Contracted Services,57401,Direct Payments,12/11/2014,3301835002,4824,WK3 Advance Housing & Support
http://statistics.data.gov.uk/id/local-authority/38,Oxfordshire County Council,"Older People, Phys Disabilities & Equip",PD Comm Supp Purchasg Budget - City,Other Agency and Contracted Services,57401,Direct Payments,12/11/2014,3301835005,662.96,WK3 Advance Housing & Support
http://statistics.data.gov.uk/id/local-authority/38,Oxfordshire County Council,"Older People, Phys Disabilities & Equip",PD Comm Supp Purchasg Budget - Witney,Other Agency and Contracted Services,57401,Direct Payments,12/11/2014,3301835006,876,WK3 Advance Housing & Support
http://statistics.data.gov.uk/id/local-authority/38,Oxfordshire County Council,"Older People, Phys Disabilities & Equip",Community Support Budget - Abingdon,Other Agency and Contracted Services,57401,Direct Payments,12/11/2014,3301835008,2592.43,WK3 Advance Housing & Support
http://statistics.data.gov.uk/id/local-authority/38,Oxfordshire County Council,"Older People, Phys Disabilities & Equip",Community Support Budget - Abingdon,Other Agency and Contracted Services,57401,Direct Payments,12/11/2014,3301835008,1052,WK3 Advance Housing & Support
http://statistics.data.gov.uk/id/local-authority/38,Oxfordshire County Council,Learning  Disabilities Pooled Budget,Direct Payments North Team,Other Agency and Contracted Services,57401,Direct Payments,12/11/2014,3301835009,600,WK3 Advance Housing & Support
http://statistics.data.gov.uk/id/local-authority/38,Oxfordshire County Council,"Older People, Phys Disabilities & Equip",Community Support Budget - Banbury,Other Agency and Contracted Services,57401,Direct Payments,12/11/2014,3301835011,1011.2,WK3 Advance Housing & Support
http://statistics.data.gov.uk/id/local-authority/38,Oxfordshire County Council,"Older People, Phys Disabilities & Equip",Community Support Budget - Witney,Other Agency and Contracted Services,57401,Direct Payments,12/11/2014,3301835013,1438.8,WK3 Advance Housing & Support
http://statistics.data.gov.uk/id/local-authority/38,Oxfordshire County Council,"Older People, Phys Disabilities & Equip",Community Support Budget - Didcot,Other Agency and Contracted Services,57401,Direct Payments,12/11/2014,3301835014,920,Citibank NA London
http://statistics.data.gov.uk/id/local-authority/38,Oxfordshire County Council,"Older People, Phys Disabilities & Equip",PD Comm Supp Purchasg Budget - Didcot,Other Agency and Contracted Services,57401,Direct Payments,12/11/2014,3301835016,964,Citibank NA London
http://statistics.data.gov.uk/id/local-authority/38,Oxfordshire County Council,"Older People, Phys Disabilities & Equip",PD Comm Supp Purchasg Budget - Didcot,Other Agency and Contracted Services,57401,Direct Payments,12/11/2014,3301835019,1712,Citibank NA London
http://statistics.data.gov.uk/id/local-authority/38,Oxfordshire County Council,"Older People, Phys Disabilities & Equip",Community Support Budget - Didcot,Other Agency and Contracted Services,57401,Direct Payments,12/11/2014,3301835022,2400,Citibank NA London
http://statistics.data.gov.uk/id/local-authority/38,Oxfordshire County Council,"Older People, Phys Disabilities & Equip",Community Support Budget - Witney,Other Agency and Contracted Services,57401,Direct Payments,12/11/2014,3301835024,1520,Citibank NA London
http://statistics.data.gov.uk/id/local-authority/38,Oxfordshire County Council,"Older People, Phys Disabilities & Equip",Community Support Budget - Banbury,Other Agency and Contracted Services,57401,Direct Payments,12/11/2014,3301835027,567.6,REDACTED PERSONAL DATA
http://statistics.data.gov.uk/id/local-authority/38,Oxfordshire County Council,Learning  Disabilities Pooled Budget,Direct Payments City Team,Other Agency and Contracted Services,57401,Direct Payments,12/11/2014,3301835028,1716.6,REDACTED PERSONAL DATA
http://statistics.data.gov.uk/id/local-authority/38,Oxfordshire County Council,"Older People, Phys Disabilities & Equip",PD Comm Supp Purchasg Budget - City,Other Agency and Contracted Services,57401,Direct Payments,12/11/2014,3301835030,993.56,REDACTED PERSONAL DATA
http://statistics.data.gov.uk/id/local-authority/38,Oxfordshire County Council,"Older People, Phys Disabilities & Equip",PD Comm Supp Purchasg Budget - City,Other Agency and Contracted Services,57401,Direct Payments,12/11/2014,3301835033,2162.12,REDACTED PERSONAL DATA
http://statistics.data.gov.uk/id/local-authority/38,Oxfordshire County Council,"Older People, Phys Disabilities & Equip",PD Comm Supp Budget - Banbury,Other Agency and Contracted Services,57401,Direct Payments,12/11/2014,3301835034,2624,REDACTED PERSONAL DATA
http://statistics.data.gov.uk/id/local-authority/38,Oxfordshire County Council,Learning  Disabilities Pooled Budget,Direct Payments South Team,Other Agency and Contracted Services,57401,Direct Payments,12/11/2014,3301835035,3600,REDACTED PERSONAL DATA
http://statistics.data.gov.uk/id/local-authority/38,Oxfordshire County Council,"Older People, Phys Disabilities & Equip",Community Support Budget - Banbury,Other Agency and Contracted Services,57401,Direct Payments,12/11/2014,3301835036,652,REDACTED PERSONAL DATA
http://statistics.data.gov.uk/id/local-authority/38,Oxfordshire County Council,Learning  Disabilities Pooled Budget,Direct Payments North Team,Other Agency and Contracted Services,57401,Direct Payments,12/11/2014,3301835037,1013.6,REDACTED PERSONAL DATA
http://statistics.data.gov.uk/id/local-authority/38,Oxfordshire County Council,"Older People, Phys Disabilities & Equip",Personal Health Budgets PD (PCT),Other Agency and Contracted Services,57401,Direct Payments,12/11/2014,3301835039,6773.88,REDACTED PERSONAL DATA
http://statistics.data.gov.uk/id/local-authority/38,Oxfordshire County Council,"Older People, Phys Disabilities & Equip",Community Support Budget - Thame,Other Agency and Contracted Services,57401,Direct Payments,12/11/2014,3301835041,964,REDACTED PERSONAL DATA
http://statistics.data.gov.uk/id/local-authority/38,Oxfordshire County Council,"Older People, Phys Disabilities & Equip",Community Support Budget - City,Other Agency and Contracted Services,57401,Direct Payments,12/11/2014,3301835042,828,REDACTED PERSONAL DATA
http://statistics.data.gov.uk/id/local-authority/38,Oxfordshire County Council,"Older People, Phys Disabilities & Equip",Community Support Budget - City,Other Agency and Contracted Services,57401,Direct Payments,12/11/2014,3301835043,2391.52,REDACTED PERSONAL DATA
http://statistics.data.gov.uk/id/local-authority/38,Oxfordshire County Council,Learning  Disabilities Pooled Budget,Direct Payments South Team,Other Agency and Contracted Services,57401,Direct Payments,12/11/2014,3301835045,536,REDACTED PERSONAL DATA
http://statistics.data.gov.uk/id/local-authority/38,Oxfordshire County Council,"Older People, Phys Disabilities & Equip",Community Support Budget - City,Other Agency and Contracted Services,57401,Direct Payments,12/11/2014,3301835046,1079.36,REDACTED PERSONAL DATA
http://statistics.data.gov.uk/id/local-authority/38,Oxfordshire County Council,"Older People, Phys Disabilities & Equip",Community Support Budget - Thame,Other Agency and Contracted Services,57401,Direct Payments,12/11/2014,3301835047,1904,REDACTED PERSONAL DATA
http://statistics.data.gov.uk/id/local-authority/38,Oxfordshire County Council,"Older People, Phys Disabilities & Equip",Community Support Budget - Abingdon,Other Agency and Contracted Services,57401,Direct Payments,12/11/2014,3301835049,1305.57,REDACTED PERSONAL DATA
http://statistics.data.gov.uk/id/local-authority/38,Oxfordshire County Council,"Older People, Phys Disabilities & Equip",Community Support Budget - Abingdon,Other Agency and Contracted Services,57401,Direct Payments,12/11/2014,3301835049,2812,REDACTED PERSONAL DATA
http://statistics.data.gov.uk/id/local-authority/38,Oxfordshire County Council,"Older People, Phys Disabilities & Equip",Community Support Budget - Abingdon,Other Agency and Contracted Services,57401,Direct Payments,12/11/2014,3301835049,-876.57,REDACTED PERSONAL DATA
http://statistics.data.gov.uk/id/local-authority/38,Oxfordshire County Council,Adult Social Care,MH Community Sup't,Other Agency and Contracted Services,57401,Direct Payments,12/11/2014,3301835052,640,REDACTED PERSONAL DATA
http://statistics.data.gov.uk/id/local-authority/38,Oxfordshire County Council,"Older People, Phys Disabilities & Equip",Community Support Budget - Thame,Other Agency and Contracted Services,57401,Direct Payments,12/11/2014,3301835053,1896,REDACTED PERSONAL DATA
http://statistics.data.gov.uk/id/local-authority/38,Oxfordshire County Council,"Older People, Phys Disabilities & Equip",Community Support Budget - Didcot,Other Agency and Contracted Services,57401,Direct Payments,12/11/2014,3301835054,3240,REDACTED PERSONAL DATA
http://statistics.data.gov.uk/id/local-authority/38,Oxfordshire County Council,"Older People, Phys Disabilities & Equip",Community Support Budget - Didcot,Other Agency and Contracted Services,57401,Direct Payments,12/11/2014,3301835055,2532,REDACTED PERSONAL DATA
http://statistics.data.gov.uk/id/local-authority/38,Oxfordshire County Council,"Older People, Phys Disabilities & Equip",PD Comm Supp Budget - Banbury,Other Agency and Contracted Services,57401,Direct Payments,12/11/2014,3301835057,628,REDACTED PERSONAL DATA
http://statistics.data.gov.uk/id/local-authority/38,Oxfordshire County Council,Learning  Disabilities Pooled Budget,Direct Payments South Team,Other Agency and Contracted Services,57401,Direct Payments,12/11/2014,3301835060,954.68,REDACTED PERSONAL DATA
http://statistics.data.gov.uk/id/local-authority/38,Oxfordshire County Council,Learning  Disabilities Pooled Budget,Direct Payments South Team,Other Agency and Contracted Services,57401,Direct Payments,12/11/2014,3301835061,954.68,REDACTED PERSONAL DATA
http://statistics.data.gov.uk/id/local-authority/38,Oxfordshire County Council,"Older People, Phys Disabilities & Equip",Community Support Budget - Didcot,Other Agency and Contracted Services,57401,Direct Payments,12/11/2014,3301835062,1560,REDACTED PERSONAL DATA
http://statistics.data.gov.uk/id/local-authority/38,Oxfordshire County Council,"Older People, Phys Disabilities & Equip",Community Support Budget - City,Other Agency and Contracted Services,57401,Direct Payments,12/11/2014,3301835063,632,REDACTED PERSONAL DATA
http://statistics.data.gov.uk/id/local-authority/38,Oxfordshire County Council,"Older People, Phys Disabilities & Equip",Community Support Budget - Abingdon,Other Agency and Contracted Services,57401,Direct Payments,12/11/2014,3301835064,2708,REDACTED PERSONAL DATA
http://statistics.data.gov.uk/id/local-authority/38,Oxfordshire County Council,"Older People, Phys Disabilities & Equip",Community Support Budget - Henley,Other Agency and Contracted Services,57401,Direct Payments,12/11/2014,3301835065,878.57,REDACTED PERSONAL DATA
http://statistics.data.gov.uk/id/local-authority/38,Oxfordshire County Council,"Older People, Phys Disabilities & Equip",Community Support Budget - Banbury,Other Agency and Contracted Services,57401,Direct Payments,12/11/2014,3301835066,876,REDACTED PERSONAL DATA
http://statistics.data.gov.uk/id/local-authority/38,Oxfordshire County Council,Learning  Disabilities Pooled Budget,Direct Payments City Team,Other Agency and Contracted Services,57401,Direct Payments,12/11/2014,3301835067,1125.76,REDACTED PERSONAL DATA
http://statistics.data.gov.uk/id/local-authority/38,Oxfordshire County Council,Learning  Disabilities Pooled Budget,Direct Payments South Team,Other Agency and Contracted Services,57401,Direct Payments,12/11/2014,3301835068,2307.68,REDACTED PERSONAL DATA
http://statistics.data.gov.uk/id/local-authority/38,Oxfordshire County Council,Learning  Disabilities Pooled Budget,Direct Payments North Team,Other Agency and Contracted Services,57401,Direct Payments,12/11/2014,3301835069,11165.08,REDACTED PERSONAL DATA
http://statistics.data.gov.uk/id/local-authority/38,Oxfordshire County Council,Learning  Disabilities Pooled Budget,Direct Payments South Team,Other Agency and Contracted Services,57401,Direct Payments,12/11/2014,3301835070,1537.6,REDACTED PERSONAL DATA
http://statistics.data.gov.uk/id/local-authority/38,Oxfordshire County Council,"Older People, Phys Disabilities & Equip",Personal Health Budgets PD (PCT),Other Agency and Contracted Services,57401,Direct Payments,12/11/2014,3301835071,4444,REDACTED PERSONAL DATA
http://statistics.data.gov.uk/id/local-authority/38,Oxfordshire County Council,"Older People, Phys Disabilities & Equip",PD Comm Supp Purchasg Budget - Henley,Other Agency and Contracted Services,57401,Direct Payments,12/11/2014,3301835072,1280,REDACTED PERSONAL DATA
http://statistics.data.gov.uk/id/local-authority/38,Oxfordshire County Council,"Older People, Phys Disabilities & Equip",PD Comm Supp Purchasg Budget - Thame,Other Agency and Contracted Services,57401,Direct Payments,12/11/2014,3301835074,784.32,REDACTED PERSONAL DATA
http://statistics.data.gov.uk/id/local-authority/38,Oxfordshire County Council,"Older People, Phys Disabilities & Equip",Community Support Budget - Abingdon,Other Agency and Contracted Services,57401,Direct Payments,12/11/2014,3301835075,1216,REDACTED PERSONAL DATA
http://statistics.data.gov.uk/id/local-authority/38,Oxfordshire County Council,"Older People, Phys Disabilities & Equip",PD Comm Supp Purchasg Budget - Witney,Other Agency and Contracted Services,57401,Direct Payments,12/11/2014,3301835077,1232.2,REDACTED PERSONAL DATA
http://statistics.data.gov.uk/id/local-authority/38,Oxfordshire County Council,Learning  Disabilities Pooled Budget,Direct Payments City Team,Other Agency and Contracted Services,57401,Direct Payments,12/11/2014,3301835078,560,REDACTED PERSONAL DATA
http://statistics.data.gov.uk/id/local-authority/38,Oxfordshire County Council,Learning  Disabilities Pooled Budget,Direct Payments South Team,Other Agency and Contracted Services,57401,Direct Payments,12/11/2014,3301835079,1184.48,REDACTED PERSONAL DATA
http://statistics.data.gov.uk/id/local-authority/38,Oxfordshire County Council,"Older People, Phys Disabilities & Equip",Community Support Budget - Witney,Other Agency and Contracted Services,57401,Direct Payments,12/11/2014,3301835080,1623,REDACTED PERSONAL DATA
http://statistics.data.gov.uk/id/local-authority/38,Oxfordshire County Council,"Older People, Phys Disabilities & Equip",Community Support Budget - Witney,Other Agency and Contracted Services,57401,Direct Payments,12/11/2014,3301835080,3323.29,REDACTED PERSONAL DATA
http://statistics.data.gov.uk/id/local-authority/38,Oxfordshire County Council,"Older People, Phys Disabilities & Equip",Community Support Budget - Witney,Other Agency and Contracted Services,57401,Direct Payments,12/11/2014,3301835080,-2254.43,REDACTED PERSONAL DATA
http://statistics.data.gov.uk/id/local-authority/38,Oxfordshire County Council,"Older People, Phys Disabilities & Equip",PD Comm Supp Purchasg Budget - Wantage,Other Agency and Contracted Services,57401,Direct Payments,12/11/2014,3301835081,516,REDACTED PERSONAL DATA
http://statistics.data.gov.uk/id/local-authority/38,Oxfordshire County Council,Learning  Disabilities Pooled Budget,Direct Payments South Team,Other Agency and Contracted Services,57401,Direct Payments,12/11/2014,3301835082,2198.68,REDACTED PERSONAL DATA
http://statistics.data.gov.uk/id/local-authority/38,Oxfordshire County Council,"Older People, Phys Disabilities & Equip",PD Comm Supp Purchasg Budget - Witney,Other Agency and Contracted Services,57401,Direct Payments,12/11/2014,3301835083,1200,REDACTED PERSONAL DATA
http://statistics.data.gov.uk/id/local-authority/38,Oxfordshire County Council,"Older People, Phys Disabilities & Equip",Community Support Budget - Faringdon,Other Agency and Contracted Services,57401,Direct Payments,12/11/2014,3301835085,672,REDACTED PERSONAL DATA
http://statistics.data.gov.uk/id/local-authority/38,Oxfordshire County Council,Learning  Disabilities Pooled Budget,Direct Payments North Team,Other Agency and Contracted Services,57401,Direct Payments,12/11/2014,3301835086,4333.84,REDACTED PERSONAL DATA
http://statistics.data.gov.uk/id/local-authority/38,Oxfordshire County Council,"Older People, Phys Disabilities & Equip",Community Support Budget - Chipping Nort,Other Agency and Contracted Services,57401,Direct Payments,12/11/2014,3301835087,864,REDACTED PERSONAL DATA
http://statistics.data.gov.uk/id/local-authority/38,Oxfordshire County Council,"Older People, Phys Disabilities & Equip",Community Support Budget - Henley,Other Agency and Contracted Services,57401,Direct Payments,12/11/2014,3301835088,1680,REDACTED PERSONAL DATA
http://statistics.data.gov.uk/id/local-authority/38,Oxfordshire County Council,Learning  Disabilities Pooled Budget,Direct Payments City Team,Other Agency and Contracted Services,57401,Direct Payments,12/11/2014,3301835090,1856,REDACTED PERSONAL DATA
http://statistics.data.gov.uk/id/local-authority/38,Oxfordshire County Council,"Older People, Phys Disabilities & Equip",Community Support Budget - Didcot,Other Agency and Contracted Services,57401,Direct Payments,12/11/2014,3301835092,1144,REDACTED PERSONAL DATA
http://statistics.data.gov.uk/id/local-authority/38,Oxfordshire County Council,"Older People, Phys Disabilities & Equip",Community Support Budget - Didcot,Other Agency and Contracted Services,57401,Direct Payments,12/11/2014,3301835092,1675.14,REDACTED PERSONAL DATA
http://statistics.data.gov.uk/id/local-authority/38,Oxfordshire County Council,"Older People, Phys Disabilities & Equip",Community Support Budget - Didcot,Other Agency and Contracted Services,57401,Direct Payments,12/11/2014,3301835092,-843.43,REDACTED PERSONAL DATA
http://statistics.data.gov.uk/id/local-authority/38,Oxfordshire County Council,"Older People, Phys Disabilities & Equip",PD Comm Supp Purchasg Budget - City,Other Agency and Contracted Services,57401,Direct Payments,12/11/2014,3301835093,1316,REDACTED PERSONAL DATA
http://statistics.data.gov.uk/id/local-authority/38,Oxfordshire County Council,"Older People, Phys Disabilities & Equip",PD Comm Supp Purchasg Budget - City,Other Agency and Contracted Services,57401,Direct Payments,12/11/2014,3301835094,532,REDACTED PERSONAL DATA
http://statistics.data.gov.uk/id/local-authority/38,Oxfordshire County Council,Learning  Disabilities Pooled Budget,Direct Payments North Team,Other Agency and Contracted Services,57401,Direct Payments,12/11/2014,3301835097,863.08,REDACTED PERSONAL DATA
http://statistics.data.gov.uk/id/local-authority/38,Oxfordshire County Council,Learning  Disabilities Pooled Budget,Direct Payments North Team,Other Agency and Contracted Services,57401,Direct Payments,12/11/2014,3301835098,581.48,REDACTED PERSONAL DATA
http://statistics.data.gov.uk/id/local-authority/38,Oxfordshire County Council,"Older People, Phys Disabilities & Equip",Community Support Budget - Wantage,Other Agency and Contracted Services,57401,Direct Payments,12/11/2014,3301835099,964.32,REDACTED PERSONAL DATA
http://statistics.data.gov.uk/id/local-authority/38,Oxfordshire County Council,Learning  Disabilities Pooled Budget,Direct Payments City Team,Other Agency and Contracted Services,57401,Direct Payments,12/11/2014,3301835100,2990.24,REDACTED PERSONAL DATA
http://statistics.data.gov.uk/id/local-authority/38,Oxfordshire County Council,Learning  Disabilities Pooled Budget,Direct Payments City Team,Other Agency and Contracted Services,57401,Direct Payments,12/11/2014,3301835101,988,REDACTED PERSONAL DATA
http://statistics.data.gov.uk/id/local-authority/38,Oxfordshire County Council,Learning  Disabilities Pooled Budget,Direct Payments South Team,Other Agency and Contracted Services,57401,Direct Payments,12/11/2014,3301835105,1287.68,REDACTED PERSONAL DATA
http://statistics.data.gov.uk/id/local-authority/38,Oxfordshire County Council,Learning  Disabilities Pooled Budget,Direct Payments City Team,Other Agency and Contracted Services,57401,Direct Payments,12/11/2014,3301835106,2964.16,REDACTED PERSONAL DATA
http://statistics.data.gov.uk/id/local-authority/38,Oxfordshire County Council,"Older People, Phys Disabilities & Equip",Community Support Budget - City,Other Agency and Contracted Services,57401,Direct Payments,12/11/2014,3301835107,740,REDACTED PERSONAL DATA
http://statistics.data.gov.uk/id/local-authority/38,Oxfordshire County Council,Learning  Disabilities Pooled Budget,Direct Payments South Team,Other Agency and Contracted Services,57401,Direct Payments,12/11/2014,3301835108,702.48,REDACTED PERSONAL DATA
http://statistics.data.gov.uk/id/local-authority/38,Oxfordshire County Council,Learning  Disabilities Pooled Budget,Direct Payments City Team,Other Agency and Contracted Services,57401,Direct Payments,12/11/2014,3301835109,717.48,REDACTED PERSONAL DATA
http://statistics.data.gov.uk/id/local-authority/38,Oxfordshire County Council,"Older People, Phys Disabilities & Equip",Community Support Budget - Chipping Nort,Other Agency and Contracted Services,57401,Direct Payments,12/11/2014,3301835110,624,REDACTED PERSONAL DATA
http://statistics.data.gov.uk/id/local-authority/38,Oxfordshire County Council,Learning  Disabilities Pooled Budget,Direct Payments South Team,Other Agency and Contracted Services,57401,Direct Payments,12/11/2014,3301835112,2171.48,REDACTED PERSONAL DATA
http://statistics.data.gov.uk/id/local-authority/38,Oxfordshire County Council,Learning  Disabilities Pooled Budget,Direct Payments North Team,Other Agency and Contracted Services,57401,Direct Payments,12/11/2014,3301835113,756,REDACTED PERSONAL DATA
http://statistics.data.gov.uk/id/local-authority/38,Oxfordshire County Council,"Older People, Phys Disabilities & Equip",Community Support Budget - Didcot,Other Agency and Contracted Services,57401,Direct Payments,12/11/2014,3301835114,700,REDACTED PERSONAL DATA
http://statistics.data.gov.uk/id/local-authority/38,Oxfordshire County Council,"Older People, Phys Disabilities & Equip",PD Comm Supp Budgt - Bicester/Kidlington,Other Agency and Contracted Services,57401,Direct Payments,12/11/2014,3301835118,632,REDACTED PERSONAL DATA
http://statistics.data.gov.uk/id/local-authority/38,Oxfordshire County Council,Learning  Disabilities Pooled Budget,Direct Payments North Team,Other Agency and Contracted Services,57401,Direct Payments,12/11/2014,3301835120,6820.84,REDACTED PERSONAL DATA
http://statistics.data.gov.uk/id/local-authority/38,Oxfordshire County Council,"Older People, Phys Disabilities & Equip",PD Comm Supp Purchasg Budget - Witney,Other Agency and Contracted Services,57401,Direct Payments,12/11/2014,3301835121,1846.44,REDACTED PERSONAL DATA
http://statistics.data.gov.uk/id/local-authority/38,Oxfordshire County Council,Learning  Disabilities Pooled Budget,Direct Payments South Team,Other Agency and Contracted Services,57401,Direct Payments,12/11/2014,3301835122,15370.2,REDACTED PERSONAL DATA
http://statistics.data.gov.uk/id/local-authority/38,Oxfordshire County Council,"Older People, Phys Disabilities & Equip",OP Pool Continuing Care Delegated Health,Other Agency and Contracted Services,57401,Direct Payments,12/11/2014,3301835123,552,REDACTED PERSONAL DATA
http://statistics.data.gov.uk/id/local-authority/38,Oxfordshire County Council,"Older People, Phys Disabilities & Equip",Community Support Budget - Thame,Other Agency and Contracted Services,57401,Direct Payments,12/11/2014,3301835123,1064,REDACTED PERSONAL DATA
http://statistics.data.gov.uk/id/local-authority/38,Oxfordshire County Council,Learning  Disabilities Pooled Budget,Direct Payments South Team,Other Agency and Contracted Services,57401,Direct Payments,12/11/2014,3301835125,766,REDACTED PERSONAL DATA
http://statistics.data.gov.uk/id/local-authority/38,Oxfordshire County Council,"Older People, Phys Disabilities & Equip",PD Comm Supp Purchasg Budget - Abingdon,Other Agency and Contracted Services,57401,Direct Payments,12/11/2014,3301835126,1481.64,REDACTED PERSONAL DATA
http://statistics.data.gov.uk/id/local-authority/38,Oxfordshire County Council,"Older People, Phys Disabilities & Equip",Community Support Budget - Abingdon,Other Agency and Contracted Services,57401,Direct Payments,12/11/2014,3301835127,1817.8,REDACTED PERSONAL DATA
http://statistics.data.gov.uk/id/local-authority/38,Oxfordshire County Council,"Older People, Phys Disabilities & Equip",PD Comm Supp Purchasg Budget - City,Other Agency and Contracted Services,57401,Direct Payments,12/11/2014,3301835128,1520.52,REDACTED PERSONAL DATA
http://statistics.data.gov.uk/id/local-authority/38,Oxfordshire County Council,"Older People, Phys Disabilities & Equip",PD Comm Supp Purchasg Budget - Chip. N.,Other Agency and Contracted Services,57401,Direct Payments,12/11/2014,3301835129,1372,REDACTED PERSONAL DATA
http://statistics.data.gov.uk/id/local-authority/38,Oxfordshire County Council,"Older People, Phys Disabilities & Equip",Community Support Budget - Didcot,Other Agency and Contracted Services,57401,Direct Payments,12/11/2014,3301835130,3175.48,REDACTED PERSONAL DATA
http://statistics.data.gov.uk/id/local-authority/38,Oxfordshire County Council,"Older People, Phys Disabilities & Equip",OP Pool Continuing Care Delegated Health,Other Agency and Contracted Services,57401,Direct Payments,12/11/2014,3301835130,886.52,REDACTED PERSONAL DATA
http://statistics.data.gov.uk/id/local-authority/38,Oxfordshire County Council,Learning  Disabilities Pooled Budget,Direct Payments North Team,Other Agency and Contracted Services,57401,Direct Payments,12/11/2014,3301835131,656,REDACTED PERSONAL DATA
http://statistics.data.gov.uk/id/local-authority/38,Oxfordshire County Council,Learning  Disabilities Pooled Budget,Direct Payments South Team,Other Agency and Contracted Services,57401,Direct Payments,12/11/2014,3301835132,5684.16,REDACTED PERSONAL DATA
http://statistics.data.gov.uk/id/local-authority/38,Oxfordshire County Council,Learning  Disabilities Pooled Budget,Direct Payments South Team,Other Agency and Contracted Services,57401,Direct Payments,12/11/2014,3301835133,3842.2,REDACTED PERSONAL DATA
http://statistics.data.gov.uk/id/local-authority/38,Oxfordshire County Council,Learning  Disabilities Pooled Budget,Direct Payments South Team,Other Agency and Contracted Services,57401,Direct Payments,12/11/2014,3301835134,6036,REDACTED PERSONAL DATA
http://statistics.data.gov.uk/id/local-authority/38,Oxfordshire County Council,"Older People, Phys Disabilities & Equip",PD CS Purch Budget - Health S28a JC,Other Agency and Contracted Services,57401,Direct Payments,12/11/2014,3301835136,532,REDACTED PERSONAL DATA
http://statistics.data.gov.uk/id/local-authority/38,Oxfordshire County Council,"Older People, Phys Disabilities & Equip",PD Comm Supp Budget - Banbury,Other Agency and Contracted Services,57401,Direct Payments,12/11/2014,3301835136,2323.12,REDACTED PERSONAL DATA
http://statistics.data.gov.uk/id/local-authority/38,Oxfordshire County Council,"Older People, Phys Disabilities & Equip",PD Comm Supp Budget - Banbury,Other Agency and Contracted Services,57401,Direct Payments,12/11/2014,3301835138,1859.08,REDACTED PERSONAL DATA
http://statistics.data.gov.uk/id/local-authority/38,Oxfordshire County Council,Learning  Disabilities Pooled Budget,Direct Payments City Team,Other Agency and Contracted Services,57401,Direct Payments,12/11/2014,3301835139,1360,REDACTED PERSONAL DATA
http://statistics.data.gov.uk/id/local-authority/38,Oxfordshire County Council,"Older People, Phys Disabilities & Equip",PD Comm Supp Budget - Banbury,Other Agency and Contracted Services,57401,Direct Payments,12/11/2014,3301835140,1644,REDACTED PERSONAL DATA
http://statistics.data.gov.uk/id/local-authority/38,Oxfordshire County Council,"Older People, Phys Disabilities & Equip",OP Pool Continuing Care Delegated Health,Other Agency and Contracted Services,57401,Direct Payments,12/11/2014,3301835141,919.32,REDACTED PERSONAL DATA
http://statistics.data.gov.uk/id/local-authority/38,Oxfordshire County Council,"Older People, Phys Disabilities & Equip",Community Support Budget - Banbury,Other Agency and Contracted Services,57401,Direct Payments,12/11/2014,3301835141,1748.68,REDACTED PERSONAL DATA
http://statistics.data.gov.uk/id/local-authority/38,Oxfordshire County Council,Learning  Disabilities Pooled Budget,Direct Payments North Team,Other Agency and Contracted Services,57401,Direct Payments,12/11/2014,3301835142,585,REDACTED PERSONAL DATA
http://statistics.data.gov.uk/id/local-authority/38,Oxfordshire County Council,Learning  Disabilities Pooled Budget,Direct Payments South Team,Other Agency and Contracted Services,57401,Direct Payments,12/11/2014,3301835143,917.24,REDACTED PERSONAL DATA
http://statistics.data.gov.uk/id/local-authority/38,Oxfordshire County Council,Adult Social Care,MH Carers Grant,Other Agency and Contracted Services,57401,Direct Payments,12/11/2014,3301835313,600,REDACTED PERSONAL DATA
http://statistics.data.gov.uk/id/local-authority/38,Oxfordshire County Council,"Older People, Phys Disabilities & Equip",Carers Break / Respite Project,Other Agency and Contracted Services,57401,Direct Payments,12/11/2014,3301835314,600,REDACTED PERSONAL DATA
http://statistics.data.gov.uk/id/local-authority/38,Oxfordshire County Council,"Older People, Phys Disabilities & Equip",Carers Break / Respite Project,Other Agency and Contracted Services,57401,Direct Payments,12/11/2014,3301835315,600,REDACTED PERSONAL DATA
http://statistics.data.gov.uk/id/local-authority/38,Oxfordshire County Council,"Older People, Phys Disabilities & Equip",Carers Break / Respite Project,Other Agency and Contracted Services,57401,Direct Payments,12/11/2014,3301835316,600,REDACTED PERSONAL DATA
http://statistics.data.gov.uk/id/local-authority/38,Oxfordshire County Council,"Older People, Phys Disabilities & Equip",Carers Break / Respite Project,Other Agency and Contracted Services,57401,Direct Payments,12/11/2014,3301835317,600,REDACTED PERSONAL DATA
http://statistics.data.gov.uk/id/local-authority/38,Oxfordshire County Council,Adult Social Care,MH Carers Grant,Other Agency and Contracted Services,57401,Direct Payments,12/11/2014,3301835320,600,REDACTED PERSONAL DATA
http://statistics.data.gov.uk/id/local-authority/38,Oxfordshire County Council,"Older People, Phys Disabilities & Equip",Carers Break / Respite Project,Other Agency and Contracted Services,57401,Direct Payments,12/11/2014,3301835321,600,REDACTED PERSONAL DATA
http://statistics.data.gov.uk/id/local-authority/38,Oxfordshire County Council,"Older People, Phys Disabilities & Equip",Carers Break / Respite Project,Other Agency and Contracted Services,57401,Direct Payments,12/11/2014,3301835325,600,REDACTED PERSONAL DATA
http://statistics.data.gov.uk/id/local-authority/38,Oxfordshire County Council,"Older People, Phys Disabilities & Equip",Carers Break / Respite Project,Other Agency and Contracted Services,57401,Direct Payments,12/11/2014,3301835327,600,REDACTED PERSONAL DATA
http://statistics.data.gov.uk/id/local-authority/38,Oxfordshire County Council,Learning  Disabilities Pooled Budget,OCCG Carers,Other Agency and Contracted Services,57401,Direct Payments,12/11/2014,3301835331,600,REDACTED PERSONAL DATA
http://statistics.data.gov.uk/id/local-authority/38,Oxfordshire County Council,"Older People, Phys Disabilities & Equip",Carers Break / Respite Project,Other Agency and Contracted Services,57401,Direct Payments,12/11/2014,3301835332,600,REDACTED PERSONAL DATA
http://statistics.data.gov.uk/id/local-authority/38,Oxfordshire County Council,Adult Social Care,OCCG Carers GP Breaks Funding,Other Agency and Contracted Services,57401,Direct Payments,12/11/2014,3301835337,600,REDACTED PERSONAL DATA
http://statistics.data.gov.uk/id/local-authority/38,Oxfordshire County Council,"Older People, Phys Disabilities & Equip",Carers Break / Respite Project,Other Agency and Contracted Services,57401,Direct Payments,12/11/2014,3301835338,600,REDACTED PERSONAL DATA
http://statistics.data.gov.uk/id/local-authority/38,Oxfordshire County Council,"Older People, Phys Disabilities & Equip",Carers Break / Respite Project,Other Agency and Contracted Services,57401,Direct Payments,12/11/2014,3301835340,600,REDACTED PERSONAL DATA
http://statistics.data.gov.uk/id/local-authority/38,Oxfordshire County Council,"Older People, Phys Disabilities & Equip",Carers Break / Respite Project,Other Agency and Contracted Services,57401,Direct Payments,12/11/2014,3301835342,600,REDACTED PERSONAL DATA
http://statistics.data.gov.uk/id/local-authority/38,Oxfordshire County Council,Adult Social Care,MH Carers Grant,Other Agency and Contracted Services,57401,Direct Payments,12/11/2014,3301835347,600,REDACTED PERSONAL DATA
http://statistics.data.gov.uk/id/local-authority/38,Oxfordshire County Council,"Older People, Phys Disabilities & Equip",Carers Break / Respite Project,Other Agency and Contracted Services,57401,Direct Payments,12/11/2014,3301835352,600,REDACTED PERSONAL DATA
http://statistics.data.gov.uk/id/local-authority/38,Oxfordshire County Council,"Older People, Phys Disabilities & Equip",Carers Break / Respite Project,Other Agency and Contracted Services,57401,Direct Payments,12/11/2014,3301835353,600,REDACTED PERSONAL DATA
http://statistics.data.gov.uk/id/local-authority/38,Oxfordshire County Council,"Older People, Phys Disabilities & Equip",Carers Break / Respite Project,Other Agency and Contracted Services,57401,Direct Payments,12/11/2014,3301835354,600,REDACTED PERSONAL DATA
http://statistics.data.gov.uk/id/local-authority/38,Oxfordshire County Council,Adult Social Care,MH Carers Grant,Other Agency and Contracted Services,57401,Direct Payments,12/11/2014,3301835356,600,REDACTED PERSONAL DATA
http://statistics.data.gov.uk/id/local-authority/38,Oxfordshire County Council,"Older People, Phys Disabilities & Equip",Carers Break / Respite Project,Other Agency and Contracted Services,57401,Direct Payments,12/11/2014,3301835359,600,REDACTED PERSONAL DATA
http://statistics.data.gov.uk/id/local-authority/38,Oxfordshire County Council,Adult Social Care,MH Carers Grant,Other Agency and Contracted Services,57401,Direct Payments,12/11/2014,3301835362,600,REDACTED PERSONAL DATA
http://statistics.data.gov.uk/id/local-authority/38,Oxfordshire County Council,Adult Social Care,MH Carers Grant,Other Agency and Contracted Services,57401,Direct Payments,12/11/2014,3301835364,600,REDACTED PERSONAL DATA
http://statistics.data.gov.uk/id/local-authority/38,Oxfordshire County Council,"Older People, Phys Disabilities & Equip",Community Support Budget - Wantage,Other Agency and Contracted Services,57401,Direct Payments,12/11/2014,3301835367,1603.71,1 Off Advance Housing & Support
http://statistics.data.gov.uk/id/local-authority/38,Oxfordshire County Council,"Older People, Phys Disabilities & Equip",Community Support Budget - Witney,Other Agency and Contracted Services,57401,Direct Payments,12/11/2014,3301835368,1960,1 Off Advance Housing & Support
http://statistics.data.gov.uk/id/local-authority/38,Oxfordshire County Council,Personal Budgets,Personal Budgets LD City,Other Agency and Contracted Services,57401,Direct Payments,12/11/2014,3301835427,1000,Citibank NA London
http://statistics.data.gov.uk/id/local-authority/38,Oxfordshire County Council,Personal Budgets,Personal Budgets LD City,Other Agency and Contracted Services,57401,Direct Payments,12/11/2014,3301835428,1000,Citibank NA London
http://statistics.data.gov.uk/id/local-authority/38,Oxfordshire County Council,Oxfordshire Customer Services,Disclosure & Barring Service (DBS Team),Expenses,46512,Criminal Records Bureau Charges Invoiced,14/11/2014,3301835451,33175,Disclosure & Barring Service
http://statistics.data.gov.uk/id/local-authority/38,Oxfordshire County Council,Children's Social Care,Service Manager - Disabilities,Other Agency and Contracted Services,57401,Direct Payments,12/11/2014,3301835452,4084.87,REDACTED PERSONAL DATA
http://statistics.data.gov.uk/id/local-authority/38,Oxfordshire County Council,"Older People, Phys Disabilities & Equip",PD Comm Supp Purchasg Budget - Thame,Other Agency and Contracted Services,57401,Direct Payments,14/11/2014,3301836134,6596.57,WK4 Advance Housing & Support
http://statistics.data.gov.uk/id/local-authority/38,Oxfordshire County Council,"Older People, Phys Disabilities & Equip",Community Support Budget - Henley,Other Agency and Contracted Services,57401,Direct Payments,14/11/2014,3301836145,4499.56,REDACTED PERSONAL DATA
http://statistics.data.gov.uk/id/local-authority/38,Oxfordshire County Council,"Older People, Phys Disabilities & Equip",Community Support Budget - Henley,Other Agency and Contracted Services,57401,Direct Payments,14/11/2014,3301836145,-506.82,REDACTED PERSONAL DATA
http://statistics.data.gov.uk/id/local-authority/38,Oxfordshire County Council,Commercial,Traffic Signals Maintenance,Private Contractors,56202,Maint Costs 2nd Sche,14/11/2014,3301836159,2081.67,SIEMENS PLC
http://statistics.data.gov.uk/id/local-authority/38,Oxfordshire County Council,Commercial,Traffic Signals Maintenance,Private Contractors,56202,Maint Costs 2nd Sche,14/11/2014,3301836160,553,SIEMENS PLC
http://statistics.data.gov.uk/id/local-authority/38,Oxfordshire County Council,Commercial,Traffic Signals Maintenance,Private Contractors,56202,Maint Costs 2nd Sche,17/11/2014,3301836256,1653.67,SIEMENS PLC
http://statistics.data.gov.uk/id/local-authority/38,Oxfordshire County Council,Commercial,Traffic Signals Maintenance,Private Contractors,56202,Maint Costs 2nd Sche,17/11/2014,3301836257,1989,SIEMENS PLC
http://statistics.data.gov.uk/id/local-authority/38,Oxfordshire County Council,Commercial,Traffic Signals Maintenance,Private Contractors,56202,Maint Costs 2nd Sche,17/11/2014,3301836258,1792.66,SIEMENS PLC
http://statistics.data.gov.uk/id/local-authority/38,Oxfordshire County Council,Commercial,Traffic Signals Maintenance,Private Contractors,56202,Maint Costs 2nd Sche,17/11/2014,3301836259,425.68,SIEMENS PLC
http://statistics.data.gov.uk/id/local-authority/38,Oxfordshire County Council,Commercial,Traffic Signals Maintenance,Private Contractors,56202,Maint Costs 2nd Sche,17/11/2014,3301836260,589.02,SIEMENS PLC
http://statistics.data.gov.uk/id/local-authority/38,Oxfordshire County Council,Commercial,Traffic Signals Maintenance,Private Contractors,56202,Maint Costs 2nd Sche,17/11/2014,3301836261,1653.67,SIEMENS PLC
http://statistics.data.gov.uk/id/local-authority/38,Oxfordshire County Council,Commercial,Traffic Signals Maintenance,Private Contractors,56202,Maint Costs 2nd Sche,17/11/2014,3301836262,1819.65,SIEMENS PLC
http://statistics.data.gov.uk/id/local-authority/38,Oxfordshire County Council,Commercial,Traffic Signals Maintenance,Private Contractors,56202,Maint Costs 2nd Sche,17/11/2014,3301836263,16719.77,SIEMENS PLC
http://statistics.data.gov.uk/id/local-authority/38,Oxfordshire County Council,Commercial,Traffic Signals Maintenance,Private Contractors,56202,Maint Costs 2nd Sche,17/11/2014,3301836264,1216.6,SIEMENS PLC
http://statistics.data.gov.uk/id/local-authority/38,Oxfordshire County Council,Commercial,Traffic Signals Maintenance,Private Contractors,56202,Maint Costs 2nd Sche,17/11/2014,3301836265,1441.5,SIEMENS PLC
http://statistics.data.gov.uk/id/local-authority/38,Oxfordshire County Council,Commercial,Traffic Signals Maintenance,Private Contractors,56202,Maint Costs 2nd Sche,17/11/2014,3301836266,1418.82,SIEMENS PLC
http://statistics.data.gov.uk/id/local-authority/38,Oxfordshire County Council,Commercial,Traffic Signals Maintenance,Private Contractors,56202,Maint Costs 2nd Sche,17/11/2014,3301836267,1819.65,SIEMENS PLC
http://statistics.data.gov.uk/id/local-authority/38,Oxfordshire County Council,Commercial,Traffic Signals Maintenance,Private Contractors,56202,Maint Costs 2nd Sche,17/11/2014,3301836268,2305.75,SIEMENS PLC
http://statistics.data.gov.uk/id/local-authority/38,Oxfordshire County Council,Commercial,Traffic Signals Maintenance,Private Contractors,56202,Maint Costs 2nd Sche,17/11/2014,3301836269,754.93,SIEMENS PLC
http://statistics.data.gov.uk/id/local-authority/38,Oxfordshire County Council,Commercial,Traffic Signals Maintenance,Private Contractors,56202,Maint Costs 2nd Sche,17/11/2014,3301836270,3138.52,SIEMENS PLC
http://statistics.data.gov.uk/id/local-authority/38,Oxfordshire County Council,Commercial,Traffic Signals Maintenance,Private Contractors,56202,Maint Costs 2nd Sche,17/11/2014,3301836271,3899.24,SIEMENS PLC
http://statistics.data.gov.uk/id/local-authority/38,Oxfordshire County Council,Commercial,Traffic Signals Maintenance,Private Contractors,56202,Maint Costs 2nd Sche,17/11/2014,3301836272,1769.6,SIEMENS PLC
http://statistics.data.gov.uk/id/local-authority/38,Oxfordshire County Council,Commercial,Traffic Signals Maintenance,Private Contractors,56202,Maint Costs 2nd Sche,17/11/2014,3301836273,18767.39,SIEMENS PLC
http://statistics.data.gov.uk/id/local-authority/38,Oxfordshire County Council,Commercial,"Electrical NP Rds, Street Lighting",Private Contractors,56400,Major Contracts,17/11/2014,3301836276,4110.95,Southern Electric Contracting Ltd.
http://statistics.data.gov.uk/id/local-authority/38,Oxfordshire County Council,Commercial,"Electrical NP Rds, Street Lighting",Private Contractors,56400,Major Contracts,17/11/2014,3301836284,898.44,Southern Electric Contracting Ltd.
http://statistics.data.gov.uk/id/local-authority/38,Oxfordshire County Council,Commercial,"Electrical NP Rds, illuminated Signs",Private Contractors,56400,Major Contracts,17/11/2014,3301836286,1398.27,Southern Electric Contracting Ltd.
http://statistics.data.gov.uk/id/local-authority/38,Oxfordshire County Council,Oxfordshire Customer Services,MIS Payroll Workflow,Balance Sheet General,B7100,Local Government Pension Scheme,17/11/2014,3301836354,3286394.99,Oxfordshire County Council
http://statistics.data.gov.uk/id/local-authority/38,Oxfordshire County Council,"Older People, Phys Disabilities & Equip",Carers Break / Respite Project,Other Agency and Contracted Services,57401,Direct Payments,17/11/2014,3301836371,600,REDACTED PERSONAL DATA
http://statistics.data.gov.uk/id/local-authority/38,Oxfordshire County Council,"Older People, Phys Disabilities & Equip",Carers Break / Respite Project,Other Agency and Contracted Services,57401,Direct Payments,17/11/2014,3301836375,600,REDACTED PERSONAL DATA
